{"text_format":"3","workbook":"xlsx","n_sheets":1,"sheets":["MOTSWEDI-BILL"],"not_rendered":{"defined_names":1},"read":"whole","date_system":"1900"}

{"sheet":"MOTSWEDI-BILL","index":0,"n_rows":5487,"n_cols":7,"rows_kept":5487}
[]
[null,"ITEM NO","DESCRIPTION","UNIT","QUANTITY","RATE","AMOUNT"]
[]
[]
[null,null,"SECTION NO. 1","H1"]
[]
[null,null,"BILL NO. 1","H1"]
[]
[null,null,"PRELIMINARIES","H1"]
[]
[null,null,"BUILDING AGREEMENT AND PRELIMINARIES","H2"]
[]
[null,null,"The JBCC Principal Building Agreement (Edition 6.2 - May 2018) prepared by the Joint Building Contracts Committee shall be the applicable building agreement, amended as hereinafter described"]
[]
[null,null,"The JBCC Principal Building Agreement contract data form an integral part of this agreement"]
[]
[null,null,"The JBCC General Preliminaries (May 2018) published by the Joint Building Contracts Committee for use with the JBCC Principal Building Agreement (Edition 6.2 - May 2018) shall be deemed to be incorporated in these bills of quantities, amended as hereinafter described"]
[]
[null,null,"The contractor is deemed to have referred to the abovementioned documents for the full intent and meaning of each clause"]
[]
[null,null,"The clauses in the abovementioned documents are hereinafter referred to by clause number and heading only"]
[]
[null,null,"Where any item is not relevant to this agreement such item is marked N/A signifying \"not applicable\""]
[]
[null,null,"Where standard clauses or alternatives are not entirely applicable to this agreement such amendments, modifications, corrections or supplements as will apply are given under each relevant clause heading and such amendments, modifications, corrections or supplements shall take precedence notwithstanding anything to the contrary contained in the abovementioned documents"]
[]
[null,null,"PREAMBLES FOR TRADES","H2"]
[]
[null,null,"The General Preambles for Trades 2017 published by the Association of South African Quantity Surveyors shall be deemed to be incorporated in these bills of quantities and no claims arising from brevity of description of items fully described in the said General Preambles will be entertained"]
[]
[null,null,"Supplementary preambles and/or specifications are incorporated in these bills of quantities to satisfy the requirements of this project. Such supplementary preambles and/or specifications shall take precedence over the provisions of the General Preambles"]
[]
[null,null,"The contractor's prices for all items throughout these bills of quantities shall take account of and include where applicable for all of the obligations, requirements and specifications given in the General Preambles and in any supplementary preambles and/or specifications"]
[]
[null,null,"STRUCTURE OF THIS PRELIMINARIES BILL","H2"]
[]
[null,null,"Section A :  A recital of the headings of the individual clauses in the aforementioned JBCC Principal Building Agreement"]
[]
[null,null,"Section B :  A recital of the headings of the individual clauses in the aforementioned JBCC General Preliminaries"]
[]
[null,null,"Section C : Any special clauses to meet the particular circumstances of the project"]
[]
[null,null,"PRICING OF PRELIMINARIES","H2"]
[]
[null,null,"Should the contractor select Option A in the contract data for the adjustment of preliminaries, the amounts entered against the relevant items in these preliminaries are to be divided into one or more of the three categories provided namely fixed (F), value related (V) and time related (T) "]
[]
[null,null,"SECTION A: PRINCIPAL BUILDING AGREEMENT","H2"]
[]
[null,null,"Interpretation (A1-A7)","H3"]
[]
[null,1,"Clause 1.0 - Definitions and interpretation","CONT"]
[]
[null,null,"Pricing of bills of quantities","CONT"]
[]
[null,null,"The contractor is to allow opposite each item for all costs in connection therewith. All prices to include, unless otherwise stated, for all materials, fabrication, conveyance and delivery, unloading, storing, unpacking, hoisting, labour, setting, fitting and fixing in position, cutting and waste (except where to be measured in accordance with the standard system of measurement), patterns, models and templates, plant, temporary works, returning of packaging, duties, taxes (other than Value Added Tax), imposts, establishment charges, overheads, profit and all other obligations arising out of this agreement. Value Added Tax (VAT) is to be separately stated on the summary page of these bills of quantities","CONT"]
[]
[null,null,"Items left unpriced will be deemed to be covered in prices against other items throughout these bills of quantities and no claim for any extras arising out of the contractor's omission to price any item will be entertained","CONT"]
[]
[null,null,"Prices for all construction equipment, temporary works, services and other items shall include for the supply, maintenance, operating cost and subsequent removal and making good as necessary","CONT"]
[]
[null,null,"Abbreviated descriptions","CONT"]
[]
[null,null,"The items in these bills of quantities utilise abbreviated descriptions. It is the intention that the abbreviated descriptions be fully described when read with the applicable measuring system and the relevant preambles and/or specifications. However, should the full intent and meaning of any description not be clear, the contractor shall, before submission of his tender, call for a written directive from the principal agent, failing which it shall be assumed that the contractor has allowed in his pricing for materials and workmanship in terms of international best practice","CONT"]
[]
[null,null,"Legal status of contractor","CONT"]
[]
[null,null,"If the contractor constitutes a joint venture, consortium or other unincorporated grouping of two or more persons then:","CONT"]
[]
[null,null,"1.   These persons are deemed to be jointly and severally liable to the employer for the performance of this agreement","CONT"]
[]
[null,null,"2.   These persons shall notify the employer of their leader who has assigned authority to bind the contractor and each of these persons                                                                                                                                          ","CONT"]
[]
[null,null,"3.  The contractor shall not alter its composition or legal status without the prior written consent of the employer","CONT"]
[]
[null,null,"F:............................. V:............................ T:............................","Item"]
[]
[null,2,"Clause 2.0 - Law, regulations and notices","CONT"]
[]
[null,null,"I NHBRC leviesThe employer shall allow for and pay any levies required by the National Home Builders Registration Council (NHBRC). The contractor warrants that he is registered and will maintain registration with the NHBRC for the duration of this agreement [2.1] N/A","CONT"]
[]
[null,null,"F:............................. V:............................ T:............................","Item"]
[]
[null,3,"Clause 3.0 - Offer and acceptance  F:............................. V:............................ T:............................ ","Item"]
[]
[null,4,"Clause 4.0 - Cession and assignment  F:............................. V:............................ T:............................","Item"]
[]
[null,5,"Clause 5.0 - Documents","CONT"]
[]
[null,null,"Value Added Tax","CONT"]
[]
[null,null,"Provision is made in the summary page of these bills of quantities for the inclusion of Value Added Tax (VAT)","CONT"]
[]
[null,null,"Priced document as specification  Clause 5.4 is deemed to be deleted","CONT"]
[]
[null,null,"The principal agent shall decide which portion of the priced document may be used as a specification of materials and goods or methods, if any.","CONT"]
[]
[null,null,"Electronic issue of drawingsAll drawings for this project will be issued electronically and the contractor shall be deemed to have received such drawings on the date that such drawings have been dispatched electronically [5.6] YES","CONT"]
[]
[null,null,"F:............................. V:............................ T:............................","Item"]
[]
[null,6,"Clause 6.0 - Employer's agents","CONT"]
[]
[null,null," Delegated authority - Moditi Consulting EngineersPostal Address: P. O. Box 3964The Reeds0158Tel: (012) 661 3600Email: miyelani@moditi.co.za","CONT"]
[]
[null,null,"The authority of the principal agent to issue contract instructions [17.1] and perform duties for specific aspects of the works is delegated to agents as follows [6.2]. This does not preclude the principal agent from issuing such contract instructions: Yes","CONT"]
[]
[null,null,"1. Architect  ASL Architecture & Project Management  Postal address: P O Box 3964 The Reeds 0158  Tel: (018) 381 8719  Email: asl.architects@gmail.com","CONT"]
[]
[null,null,"1.1 Duties [6.2] :  The architect is responsible for the architectural design, functional design and quality inspection of the works","CONT"]
[]
[null,null,"1.2 Contract instructions [6.2; 17.1] :","CONT"]
[]
[null,null,"1.2.1     Rectification of discrepancies, errors in description or quantity or  omission of items in the agreement other than in the JBCC Principal Building Agreement ","CONT"]
[]
[null,null,"1.2.2     Alteration to design, standards or quantity of the works provided that such contract instructions shall not substantially change the scope of the works","CONT"]
[]
[null,null,"1.2.3     The site [13.0]","CONT"]
[]
[null,null,"1.2.4     Compliance with the law, regulations and bylaws [2.1]","CONT"]
[]
[null,null,"1.2.5     Provision and testing of samples of materials and goods and/or of finishes and assemblies of elements of the works ","CONT"]
[]
[null,null,"1.2.6     Opening up of work for inspection, removal or re-execution [23.2.4; 26.4.2]","CONT"]
[]
[null,null,"1.2.7     Removal or re-execution of work","CONT"]
[]
[null,null,"1.2.8     Removal or substitution of any materials and goods","CONT"]
[]
[null,null,"1.2.9     Protection of the works","CONT"]
[]
[null,null,"1.2.10   Making good physical loss and repairing damage to the works [23.2.2]","CONT"]
[]
[null,null,"1.2.11   Rectification of defects [21.2]","CONT"]
[]
[null,null,"1.2.12    A list for practical completion specifying outstanding or defective  work to be rectified to achieve practical completion, a list for completion and a list for final completion specifying outstanding or defective work to be rectified to achieve final completion","CONT"]
[]
[null,null," 2. Quantity surveyor  IDNIL Professional Consultants  Postal address: P O Box 862 Illovo 2116  Tel: (011)783 5454  Email: thembile@idnil.co.za","CONT"]
[]
[null,null,"2.1 Duties [6.2] :  The quantity surveyor is responsible for all measurements, valuations, financial assessments and all other quantity surveying and cost control functions of the works","CONT"]
[]
[null,null,"2.2 Contract instructions [6.2; 17.1] :","CONT"]
[]
[null,null,"2.2.1 No contract instructions delegated to the quantity surveyor ","CONT"]
[]
[null,null,"3. Civil and Structural Engineer  Lumar Engineering Consultants  Postal adress: P. O Box 4605 Polokwane 0700  Tel: (015) 291 1657  Email: lukhelenimr@lumarconsulting.co.za","CONT"]
[]
[null,null,"3.1 Duties [6.2] :  The civil and structural engineer is responsible for all aspects of civil and structural engineering design and quality inspection of the works","CONT"]
[]
[null,null,"3.2 Contract instructions [6.2; 17.1] :","CONT"]
[]
[null,null,"3.2.1 Rectification of discrepancies, errors in description or quantity or omission of items in the agreement other than in the JBCC Principal Building Agreement "]
[]
[null,null,"3.2.2 Alteration to design, standards or quantity of the works provided that such contract instructions shall not substantially change the scope of the works"]
[]
[null,null,"3.2.3 The site [13.0]"]
[]
[null,null,"3.2.4 Compliance with the law, regulations and bylaws [2.1]"]
[]
[null,null,"3.2.5 Provision and testing of samples of materials and goods and/or of finishes and assemblies of elements of the works"]
[]
[null,null,"3.2.6 Opening up of work for inspection, removal or re-execution [23.2.4; 26.4.2]"]
[]
[null,null,"3.2.7 Removal or re-execution of work"]
[]
[null,null,"3.2.8 Removal or substitution of any materials and goods"]
[]
[null,null,"3.2.9 Protection of the works"]
[]
[null,null,"3.2.10 Making good physical loss and repairing damage to the works [23.2.2]"]
[]
[null,null,"3.2.11 Rectification of defects [21.2]"]
[]
[null,null,"3.2.12 A list for practical completion specifying outstanding or defective work to be rectified to achieve practical completion, a list for completion and a list for final completion specifying outstanding or defective work to be rectified to achieve final completion"]
[]
[null,null,"4. Mechanical Engineer  Moyahi & Associates  Postal adress: Office No1A, 2nd floor Libra house building 14-18 George street Kimberley 8301  Tel: (053) 831 2635  E-mail: simba@risimati.co.za","CONT"]
[]
[null,null,"4.1 Duties [6.2] :  The mechanical engineer is responsible for all aspects of mechanical engineering design and quality inspection of the works and, where appointed by the employer for quantity surveying services in respect of the mechanical installations, for all measurements, valuations, financial assessments and all other quantity surveying and cost control functions","CONT"]
[]
[null,null,"4.2 Contract instructions [6.2; 17.1] :","CONT"]
[]
[null,null,"4.2.1 Rectification of discrepancies, errors in description or quantity or omission of items in the agreement other than in the JBCC Principal Building Agreement "]
[]
[null,null,"4.2.2 Alteration to design, standards or quantity of the works provided that such contract instructions shall not substantially change the scope of the works"]
[]
[null,null,"4.2.3 Compliance with the law, regulations and bylaws [2.1]"]
[]
[null,null,"4.2.4 Provision and testing of samples of materials and goods and/or of finishes and assemblies of elements of the works"]
[]
[null,null,"4.2.5 Opening up of work for inspection, removal or re-execution [23.2.4; 26.4.2]"]
[]
[null,null,"4.2.6 Removal or re-execution of work"]
[]
[null,null,"4.2.7 Removal or substitution of any materials and goods"]
[]
[null,null,"4.2.8 Protection of the works"]
[]
[null,null,"4.2.9 Making good physical loss and repairing damage to the works [23.2.2]"]
[]
[null,null,"4.2.10 Rectification of defects [21.2]"]
[]
[null,null,"4.2.11 A list for practical completion specifying outstanding or defective work to be  rectified to achieve practical completion, a list for completion and a list for final completion specifying outstanding or defective work to be rectified to achieve final completion"]
[]
[null,null,"4.2.12 Expenditure of budgetary allowances, prime cost amounts and provisional sums "]
[]
[null,null,"5. Electrical engineer  Moyahi & Associates  Postal adress: Office No1A, 2nd floor Libra house building 14-18 George street Kimberley 8301  Tel: (053) 831 2635  E-mail: lethu@risimati.co.za ","CONT"]
[]
[null,null,"5.1 Duties [6.2] :  The electrical engineer is responsible for all aspects of electrical engineering design and quality inspection of the works and, where appointed by the employer for quantity surveying services in respect of the electrical installations, for all measurements, valuations, financial assessments and all other quantity surveying and cost control functions","CONT"]
[]
[null,null,"5.2 Contract instructions [6.2; 17.1] :","CONT"]
[]
[null,null,"5.2.1 Rectification of discrepancies, errors in description or quantity or omission of items in the agreement other than in the JBCC Principal Building Agreement "]
[]
[null,null,"5.2.2 Alteration to design, standards or quantity of the works provided that such contract instructions shall not substantially change the scope of the works"]
[]
[null,null,"5.2.3 Compliance with the law, regulations and bylaws [2.1]"]
[]
[null,null,"5.2.4 Provision and testing of samples of materials and goods and/or of finishes and assemblies of elements of the works"]
[]
[null,null,"5.2.5 Opening up of work for inspection, removal or re-execution [23.2.4; 26.4.2]"]
[]
[null,null,"5.2.6 Removal or re-execution of work"]
[]
[null,null,"5.2.7 Removal or substitution of any materials and goods"]
[]
[null,null,"5.2.8 Protection of the works"]
[]
[null,null,"5.2.9 Making good physical loss and repairing damage to the works [23.2.2]"]
[]
[null,null,"5.2.10 Rectification of defects [21.2]"]
[]
[null,null,"5.2.11 A list for practical completion specifying outstanding or defective work to be rectified to achieve practical completion, a list for completion and a list for final completion specifying outstanding or defective work to be rectified to achieve final completion"]
[]
[null,null,"5.2.12 Expenditure of budgetary allowances, prime cost amounts and provisional sums "]
[]
[null,null,"7. Fire Engineer  Moyahi & Associates  Postal adress: Office No1A, 2nd floor Libra house building 14-18 George street Kimberley 8301  Tel: (053) 831 2635  E-mail: simba@risimati.co.za ","CONT"]
[]
[null,null,"7.1 Duties [6.2] :  The fire consultant is responsible for all aspects of rational fire design and quality inspection of the works","CONT"]
[]
[null,null,"7.2 Contract instructions [6.2; 17.1] :","CONT"]
[]
[null,null,"7.2.1 Rectification of discrepancies, errors in description or quantity or omission of items in the agreement other than in the JBCC Principal Building Agreement "]
[]
[null,null,"7.2.2 Alteration to design, standards or quantity of the works provided that such contract instructions shall not substantially change the scope of the works"]
[]
[null,null,"7.2.3 Compliance with the law, regulations and bylaws [2.1]"]
[]
[null,null,"7.2.4 Provision and testing of samples of materials and goods  and/or of finishes and assemblies of elements of the works"]
[]
[null,null,"7.2.5 Opening up of work for inspection, removal or re-execution [23.2.4; 26.4.2]"]
[]
[null,null,"7.2.6 Removal or re-execution of work"]
[]
[null,null,"7.2.7 Removal or substitution of any materials and goods"]
[]
[null,null,"7.2.8 Protection of the works"]
[]
[null,null,"7.2.9 Making good physical loss and repairing damage to the works [23.2.2]"]
[]
[null,null,"7.2.10 Rectification of defects [21.2]"]
[]
[null,null,"7.2.11 A list for practical completion specifying outstanding or defective work to be rectified to achieve practical completion, a list for completion and a list for final completion specifying outstanding or defective work to be rectified to achieve final completion"]
[]
[null,null,"8. Health and Safety Consultant  Lerumo Consulting  Postal Adress: 24 Cleopatra Avenue Die Heuwel Witbank 1035  Tel: (012) 661 3600  Email: langi@lerumoconsulting.co.za  ","CONT"]
[]
[null,null,"8.1 Duties [6.2] :  The health and safety consultant is responsible for all aspects of health and safety of the works. Without derogating from the generality thereof, the health and safety consultant will perform the following specific functions and duties in respect of the health and safety aspects of the works. He shall:","CONT"]
[]
[null,null,"8.1.1 Act as the employer's agent in terms of the Construction Regulations issued in terms of the Occupational Health and Safety Act,1993 as amended"]
[]
[null,null,"8.1.2 Prepare and update the health and safety specification for the works"]
[]
[null,null,"8.1.3 Agree with the contractor the health and safety plan for the works"]
[]
[null,null,"8.1.4 Carry out regular audits to ensure adherence to the safety plan and compliance with the act and regulations"]
[]
[null,null,"8.1.5 Stop the execution of the works where the agreed specification or plan is not adhered to"]
[]
[null,null,"F:............................. V:............................ T:............................","Item","1.00"]
[]
[null,7,"Clause 7.0 - Design responsibility  F:............................. V:............................ T:............................","Item","1.00"]
[]
[null,null,"Insurances and securities (A8-A11)","H3"]
[]
[null,8,"Clause 8.0 - Works risk  F:............................. V:............................ T:............................","Item","1.00"]
[]
[null,9,"Clause 9.0 - Indemnities  F:............................. V:............................ T:............................","Item","1.00"]
[]
[null,10,"Clause 10.0 - Insurances  F:............................. V:............................ T:............................","Item","1.00"]
[]
[null,11,"Clause 11.0 - Securities","CONT"]
[]
[null,null," Guarantee for payment","CONT"]
[]
[null,null,"The employer shall provide to the contractor a guarantee for payment in the amount of .......................................................Rand (R...........................) [11.5.1].  The contractor shall consequently waive his lien or right of continuing possession of the works [11.10] N/A","CONT"]
[]
[null,null,"Extension of waiver of lien","CONT"]
[]
[null,null,"The contractor shall ensure that a waiver of lien is included in all subcontracts and that the works executed on the site are kept free of all liens and other encumbrances at all times [11.10] YES","CONT"]
[]
[null,null,"F:............................. V:............................ T:............................","Item","1.00"]
[]
[null,null,"Execution (A12 - A17) ","H3"]
[]
[null,12,"Clause 12.0 - Obligations of the parties","CONT"]
[]
[null,null,"Office accommodation  The contractor shall provide, maintain and remove on practical completion air conditioned office accommodation with suitable tables and chairs for meetings to be held on the site. Such offices shall be kept clean and fit for use at all times [12.2.18] ","CONT"]
[]
[null,null,"Notice board  The contractor shall erect in a position approved by the principal agent, maintain and remove on practical completion a notice board recommended by the South African Institute of Architects and as approved by the principal agent listing the names and logos of the employer, the contractor and the professional consultants. No subcontractor or supplier notice boards may be erected unless permission is granted by the principal agent for such notice boards to be erected [12.2.18] ","CONT"]
[]
[null,null,"Statutory and other notices","CONT"]
[]
[null,null,"The contractor shall submit and/or comply with all statutory and other notices that may be required by any local or other authority in order not to cause any delay to the commencement of the works by the contractor. The contractor shall pay all deposits or fees in this regard","CONT"]
[]
[null,null,"It is, however, specifically recorded that the employer shall be responsible for the timeous approval of building plans by any local or other authorities and the payment of any fees or charges related thereto","CONT","1.00"]
[]
[null,null,"F:............................. V:............................ T:............................","Item","1.00"]
[]
[null,13,"Clause 13.0 - Setting out  F:............................. V:............................ T:............................","Item","1.00"]
[]
[null,14,"Clause 14.0 - Nominated subcontractors","CONT"]
[]
[null,null,"F:............................. V:............................ T:............................","Item","1.00"]
[]
[null,15,"Clause 15.0 - Selected subcontractors","CONT"]
[]
[null,null,"F:............................. V:............................ T:............................","Item","1.00"]
[]
[null,16,"Clause 16.0 - Direct contractors  Attendance on direct contractors  In respect of direct contractors the contractor shall:","CONT"]
[]
[null,null,"1.   Designate an area for the direct contractor to establish a temporary office and workshop and storage of equipment and materials","CONT","1.00"]
[]
[null,null,"2. Allow the use of personnel welfare facilities, where provided"]
[]
[null,null,"3.   Provide water, lighting and single phase electric power to a position within 50m of the place where the direct contract work is to be carried out, other than fuel or power for commissioning of any installation","CONT"]
[]
[null,null,"4.   Permit the direct contractor to use erected scaffolding, hoisting facilities, etc provided by the contractor, in common with others having the like right, while it remains erected on the site [16.1]","CONT"]
[]
[null,null,"F:............................. V:............................ T:............................","Item","1.00"]
[]
[null,17,"Clause 17.0 - Contract instructions  Site instructions  Instructions issued on site are to be recorded in a site instruction book which is to be supplied and maintained on site by the contractor ","CONT"]
[]
[null,null,"F:............................. V:............................ T:............................","Item","1.00"]
[]
[null,null,"Completion (A18 - A24) ","H3"]
[]
[null,18,"Clause 18.0 - Interim completion","N/A"]
[]
[null,19,"Clause 19.0 - Practical completion  F:............................. V:............................ T:............................","Item","1.00"]
[]
[null,20,"Clause 20.0 - Completion in sections ","CONT"]
[]
[null,null,"F:............................. V:............................ T:............................","Item","1.00"]
[]
[null,21,"Clause 21.0 - Defects liability period and final completion","CONT"]
[]
[null,null,"F:............................. V:............................ T:............................","Item","1.00"]
[]
[null,22,"Clause 22.0 - Latent defects liability period F:............................. V:............................ T:............................","Item","1.00"]
[]
[null,23,"Clause 23.0 - Revision of the date for practical completion  Substitution of materials and goods  The removal or substitution of any materials and goods which do not conform to the specification or the contract drawings shall not constitute grounds for the extension of the construction period nor for the adjustment of the contract value [17.1.8; 23.1 & 2]","CONT"]
[]
[null,null,"F:............................. V:............................ T:............................","Item","1.00"]
[]
[null,24,"Clause 24.0 - Penalty for late or non-completion  F:............................. V:............................ T:............................  0.05% of the Contract Amount per calendar day","Item","1.00"]
[]
[null,null,"Payment (A25 - A27) ","H3"]
[]
[null,25,"Clause 25.0 - Payment","CONT"]
[]
[null,null,"Prices submitted  Where prices are submitted by the contractor or subcontractor during the progress of the works in respect of contract instructions or in regard to a claim under the terms of this agreement and notwithstanding the fact that such prices may be used in an interim payment certificate, there is to be no presumption of acceptance. Should the principal agent wish to accept any such prices prior to the issue of the certificate of final completion, it shall be in writing","CONT"]
[]
[null,null,"F:............................. V:............................ T:............................","Item","1.00"]
[]
[null,26,"Clause 26.0 - Adjustment of the contract value and final account","CONT"]
[]
[null,null,"Fluctuations in costsAll fluctuations in costs, with the exception of fluctuations in the rate of Value Added Tax, shall be for the account of the contractor [26.9.5] Yes","CONT"]
[]
[null,null,"Tenant installation/user requirements delayed  There is a possibility that certain works related to tenant installation/user requirements may have to be delayed and may consequently not be executed prior to practical completion","CONT"]
[]
[null,null,"Should the contractor be instructed to do so he shall execute this work under the conditions pertaining to this agreement on the basis that a separate amount for preliminaries appurtenant to this work (if applicable) is agreed to between the contractor and the principal agent and on condition that instruction to proceed with such work is given to him within a period of three (3) calendar months after the date of practical completion of the works","CONT"]
[]
[null,null,"The employer reserves the right to omit such work without compensation to the contractor for loss of profit or any other loss which the contractor may suffer as a result of such omission ","CONT","1.00"]
[]
[null,null,"Cost of claims  All costs incurred by the contractor in the preparation of claims shall be borne by the contractor. This provision shall not preclude an adjudicator or an arbitrator appointed in terms of this agreement [30.6 & 7] from making a determination on costs","CONT"]
[]
[null,null,"Claims from subcontractors The contractor shall review, assess and adjudicate any claims received by him from any subcontractor and thereafter submit same to the principal agent with a recommendation in order to assist the principal agent in adjudicating the claim [26.6]","CONT"]
[]
[null,null,"F:............................. V:............................ T:............................","Item","1.00"]
[]
[null,27,"Clause 27.0 - Recovery of expense and/or loss  F:............................. V:............................ T:............................","Item","1.00"]
[]
[null,null,"Suspension and termination (A28 - A29) ","H3"]
[]
[null,28,"Clause 28.0 - Suspension by the contractor ","CONT"]
[]
[null,null,"F:............................. V:............................ T:............................","Item","1.00"]
[]
[null,29,"Clause 29.0 - Termination","CONT"]
[]
[null,null,"F:............................. V:............................ T:............................","Item","1.00"]
[]
[null,null,"Dispute resolution (A30) ","H3"]
[]
[null,30,"Clause 30.0 - Dispute resolution  F:............................. V:............................ T:............................","Item","1.00"]
[]
[null,31,"Agreement","CONT"]
[]
[null,null,"The required information of the parties and the amount of the contract sum shall be inserted in the agreement for signature of the agreement by the parties  F:............................. V:............................ T:............................","Item","1.00"]
[]
[null,32,"Contract data","CONT"]
[]
[null,null,"Insert under the above heading, with suitable sub-headings, any amendments, modifications, corrections or supplements to the contract data "]
[]
[null,null,"Tenderer's selections","CONT"]
[]
[null,null,"Before submission of his tender the contractor is to complete the tenderer's selections in the contract data","CONT"]
[]
[null,null,"F:............................. V:............................ T:............................","Item","1.00"]
[]
[null,null,"SECTION B:  GENERAL PRELIMINARIES ","H2"]
[]
[null,null,"Definitions and interpretation (B1) ","H3"]
[]
[null,33,"Clause 1.1 - Definitions  F:............................. V:............................ T:............................","Item","1.00"]
[]
[null,34,"Clause 1.2 - Interpretation  F:............................. V:............................ T:............................","Item","1.00"]
[]
[null,null,"Documents (B2) ","H3"]
[]
[null,35,"Clause 2.1 - Checking of documents  F:............................. V:............................ T:............................","Item","1.00"]
[]
[null,36,"Clause 2.2 - Provisional bills of quantities","CONT"]
[]
[null,null,"Multiple procurementThese bills of quantities are in multiple procurement format ie the \"wet trades\" - earthworks, concrete, formwork and reinforcement, precast concrete, masonry, waterproofing and sub-surface drainage - are provisionally measured and the subsequent trades are budgetary allowances and/or provisional sums F:............................. V:............................ T:............................","Item","1.00"]
[]
[null,37,"Clause 2.3 - Availability of construction information","CONT"]
[]
[null,null,"F:............................. V:............................ T:............................","Item","1.00"]
[]
[null,38,"Clause 2.4 - Ordering of materials and goods  F:............................. V:............................ T:............................","Item","1.00"]
[]
[null,null,"Previous work and adjoining properties (B3) ","H3"]
[]
[null,39,"Clause 3.1 - Previous work - dimensional accuracy  F:............................. V:............................ T:............................","Item","1.00"]
[]
[null,40,"Clause 3.2 - Previous work - defects  F:............................. V:............................ T:............................","Item","1.00"]
[]
[null,41,"Clause 3.3 - Inspection of adjoining properties  F:............................. V:............................ T:............................","Item","1.00"]
[]
[null,null,"The site (B4) ","H3"]
[]
[null,42,"Clause 4.1 - Handover of site in stages  F:............................. V:............................ T:............................","Item","1.00"]
[]
[null,43,"Clause 4.2 - Enclosure of the works","Item","1.00"]
[]
[null,null,"F:............................. V:............................ T:............................","CONT","1.00"]
[]
[null,44,"Clause 4.3 - Geotechnical and other investigations  F:............................. V:............................ T:............................","Item","1.00"]
[]
[null,45,"Clause 4.4 - Encroachments  F:............................. V:............................ T:............................","Item","1.00"]
[]
[null,46,"Clause 4.5 - Existing premises occupied  F:............................. V:............................ T:............................  No","Item","1.00"]
[]
[null,47,"Clause 4.6 - Services - known  F:............................. V:............................ T:............................","Item","1.00"]
[]
[null,null,"Management of contract (B5) ","H3"]
[]
[null,48,"Clause 5.1 - Management of the works  F:............................. V:............................ T:............................","Item","1.00"]
[]
[null,49,"Clause 5.2 - Progress meetings  F:............................. V:............................ T:............................","Item","1.00"]
[]
[null,50,"Clause 5.3 - Technical meetings  F:............................. V:............................ T:............................","Item","1.00"]
[]
[null,null,"Samples, shop drawings and manufacturer's instructions (B6) ","H3"]
[]
[null,51,"Clause 6.1 - Samples of materials  F:............................. V:............................ T:...........................","Item","1.00"]
[]
[null,52,"Clause 6.2 - Workmanship samples  F:............................. V:............................ T:............................","Item","1.00"]
[]
[null,53,"Clause 6.3 - Shop drawings  F:............................. V:............................ T:............................","Item","1.00"]
[]
[null,54,"Clause 6.4 - Compliance with manufacturer's instructions  F:............................. V:............................ T:............................","Item","1.00"]
[]
[null,null,"Deposits and fees (B7) ","H3"]
[]
[null,55,"Clause 7.1 - Deposits and fees  F:.......................... V:........................... T:.........................","Item","1.00"]
[]
[null,null,"Temporary services (B8) ","H3","1.00"]
[]
[null,56,"Clause 8.1 - Water  F:............................. V:............................ T:............................","Item","1.00"]
[]
[null,57,"Clause 8.2 - Electricity  F:............................. V:............................ T:............................","Item","1.00"]
[]
[null,58,"Clause 8.3 - Ablution and welfare facilities  F:............................. V:............................ T:............................","Item","1.00"]
[]
[null,59,"Clause 8.4 - Communication facilities  F:............................. V:............................ T:............................","Item","1.00"]
[]
[null,null,"Prime cost amounts (B9) ","H3","1.00"]
[]
[null,60,"Clause 9.1 - Responsibility for prime cost amounts","CONT","1.00"]
[]
[null,null,"Where details of materials for which prime cost amounts are to be allowed are readily available, the quantity surveyor may elect to insert the relevant prime cost amounts in measured items, which measured items shall contain sufficient detail for the contractor to price for fixing and installation, waste, etc  F:............................. V:............................ T:............................","Item","1.00"]
[]
[null,null,"Attendance on subcontractors (B10) ","H3","1.00"]
[]
[null,61,"Clause 10.1 - General attendance   General attendance is defined as being the duties of the contractor in terms of clause 12.2 of the JBCC n/s subcontract agreement  F:............................. V:............................ T:............................","Item","1.00"]
[]
[null,62,"Clause 10.2 - Special attendance","CONT"]
[]
[null,null,"It is important to note that general attendance only requires the contractor to \"permit the subcontractor to use erected scaffolding, hoisting facilities, etc provided by the contractor, in common with others having the like right while it remains erected on the site\" (refer to 12.2.13 of the JBCC n/s subcontract agreement). Many n/s subcontractors qualify their tenders to exclude scaffolding and/or hoisting facilities. Especially scaffolding could be an expensive item and it may be necessary in order to avoid claims to require the contractor to provide for the extended use of scaffolding for specific subcontracts within a description of \"special attendance\" in the applicable bill  F:............................. V:............................ T:............................","Item","1.00"]
[]
[null,null,"General (B11) ","H3"]
[]
[null,63,"Clause 11.1 - Protection of the works  F:............................. V:............................ T:............................","Item","1.00"]
[]
[null,64,"Clause 11.2 - Protection/isolation of existing works and works occupied in sections F:............................. V:............................ T:............................","Item","1.00"]
[]
[null,65,"Clause 11.3 - Security of the works  F:............................. V:............................ T:............................","Item","1.00"]
[]
[null,66,"Clause 11.4 - Notice before covering work  F:............................. V:............................ T:............................","Item","1.00"]
[]
[null,67,"Clause 11.5 - Disturbance","CONT"]
[]
[null,null,"The following clause may be used should \"disturbance\" [11.5] need to be extended","CONT"]
[]
[null,null,"Disturbance All work is to be carried out in such a manner as to cause no unacceptable or unreasonable dust, noise, vibrations, nuisance, inconvenience, annoyance and the like to the public, others, other properties and traffic in so far as they exceed the permissible limitations set by government legislation or by the local authority. Any delays, stoppages and the like arising from or in order to comply with the above will not constitute grounds for an adjustment to the construction period or contract value whatsoever F:........................ V:.........................T:.........................","Item","1.00"]
[]
[null,68,"Clause 11.6 - Environmental disturbance","CONT"]
[]
[null,null,"Controlling all forms of pollution  The contractor shall be responsible for and take all precautions in controlling by whatever means necessary all forms of pollution emanating from the site during the construction period due inter alia to noise, artificial light, wind-blown sand, dust, deposits of mud, etc","CONT","1.00"]
[]
[null,null,"The contractor is to ensure that all roads which border the site and are used by the contractor during the execution of the works are kept clean and free of any dirt or debris caused by the execution of the works ","CONT","1.00"]
[]
[null,null,"Environmental management planThe employer has prepared an environmental management plan (EMP). The contractor shall price opposite this item for compliance with all the requirements of such EMP F:........................ V:.........................T:.........................","Item","1.00"]
[]
[null,69,"Clause 11.7 - Works cleaning and clearing  F:............................. V:............................ T:............................","Item","1.00"]
[]
[null,70,"Clause 11.8 - Vermin  F:............................. V:............................ T:............................","Item","1.00"]
[]
[null,71,"Clause 11.9 - Overhand work  F:............................. V:............................ T:............................","Item","1.00"]
[]
[null,72,"Clause 11.10 - Tenant installations  F:............................. V:............................ T:............................","Item","1.00"]
[]
[null,73,"Clause 11.11 - Advertising  F:............................. V:............................ T:............................","Item","1.00"]
[]
[null,null,"SECTION  C: SPECIFIC PRELIMINARIES","H2"]
[]
[null,74,"Warranties for materials and workmanship  Where warranties for materials and/or workmanship are called for, the contractor shall obtain a written warranty, addressed to the employer, from the entity supplying the materials and/or executing the work and shall deliver same to the principal agent on final completion of the contract","CONT","1.00"]
[]
[null,null,"The warranty shall state that workmanship, materials and installation are warranted for a specific period from the date of practical completion and that any defects that may arise during the specified period shall be made good at the expense of the entity supplying the materials and/or doing the work, upon written notice to do so","CONT","1.00"]
[]
[null,null,"The warranty will not be enforced if the work is damaged by defects in the execution of the works, in which case the responsibility for replacement shall rest entirely with the contractor  F:............................. V:............................ T:............................","Item","1.00"]
[]
[null,75,"Overtime  Should overtime be required to be worked for any reason whatsoever, the cost of such overtime is to be borne by the contractor unless the principal agent has specifically authorised, prior to execution thereof, that costs for such overtime are to be borne by the employer  F:........................ V:.........................T:.........................","Item","1.00"]
[]
[null,76,"Cooperation of the contractor for cost management  It is specifically agreed that the contractor accepts the obligation of assisting the principal agent in implementing proper cost management. The contractor will be advised by the principal agent of all cost management procedures which will be implemented to ensure that the contract value does not exceed the budget  F:........................ V:.........................T:.........................","Item","1.00"]
[]
[null,77,"Overloading  The contractor shall take all necessary steps to ensure that no damage occurs due to overloading of any portion of the works or temporary works eg scaffolding, etc. The contractor shall submit details of his proposed loading, storage, plant erection, etc to the principal agent for approval prior to proceeding with such loading, storing or erecting and shall comply with and pay for the principal agent's requirements in connection with the provision of temporary support work, etc. Any damage caused to the works by overloading shall be made good by the contractor at his sole expense  F:........................ V:.........................T:.........................","Item","1.00"]
[]
[null,78,"Propping of floors below  The contractor is advised that propping of floors below may be required if he wishes to use any areas of completed suspended reinforced concrete slabs for vehicle access, storage of materials and goods and location of plant, scaffolding, etc. The location of these areas and any necessary propping shall be approved by the principal agent and the cost thereof shall be borne by the contractor  F:........................ V:.........................T:.........................","Item","1.00"]
[]
[null,79,"Testing of flat roof waterproofing for watertightness  Flat roof waterproof areas shall be flooded and kept \"ponded\" for at least forty eight (48) hours as a test to ensure the watertightness of the waterproofing and before any further construction work is carried out above the waterproofing  F:........................ V:.........................T:.........................","Item","1.00"]
[]
[null,80,"Health and safety","CONT","1.00"]
[]
[null,null,"Without limiting the generality of the provisions of clause 2.0, the contractor's attention is drawn to the provisions of the Construction Regulations issued in terms of the Occupational Health and Safety Act, 1993 as amended. It is specifically stated that the employer shall prepare a documented health and safety specification for the works and that the employer shall ensure that the contractor has made provision for the cost of health and safety measures during the execution of the works. The  contractor shall price opposite this item for compliance with the act and the regulations and the reasonable provisions of the aforementioned health and safety specification [2.1]",null,"1.00"]
[]
[null,null,"Health and safety  Without limiting the generality of the provisions of clause 2.0, the contractor's attention is drawn to the provisions of the Construction Regulations issued in terms of the Occupational Health and Safety Act, 1993 as amended. It is specifically stated that the employer shall prepare a documented health and safety specification for the works  and that the employer shall ensure that the contractor has made provision for the cost of health and safety measures during the execution of the works. The contractor shall price opposite this item for compliance with the act and the regulations and the provisions of the aforementioned health and safety specification [2.1]",null,"1.00"]
[]
[null,null,"The contractor shall:  1.   Comply with the health and safety specification for the works  2.   Prepare and agree with the health and safety consultant the health and  safety plan for the works  3.   Cooperate with the health and safety consultant in all respects  4.   Manage the compliance of all subcontractors with the regulations and with the health and safety plan and specification  5.   Conform to the conditions contained in the employer's health and safety specification"]
[]
[null,null,"F:............................. V:............................ T:............................","Item","1.00"]
[]
[null,81,"Broad based black economic empowerment (BBBEE)  Tenders submitted will be evaluated taking into account their empowerment rating  The employer will be monitoring the broad based black economic empowerment (BBBEE) status of the contractor throughout the execution of the works","CONT"]
[{"$nulls":4},"1.00"]
[null,null,"The contractor is to submit to the principal agent on an annual basis a schedule of spend, split into vendors engaged as subcontractors and suppliers indicating their BBBEE rating including proof of the said rating  F:........................ V:.........................T:.........................","Item","1.00"]
[]
[null,82,"Advertising rights  The employer may elect to contract with advertising agencies for the erection of advertising hoardings, banners, wraps or the like for the duration of the contract. The contractor shall not prevent such an arrangement and will assist in the facilitation of same. The position and type of advertising structure to be agreed with the principal agent so as not to hinder the contractor in meeting his obligations under this agreement  F:........................ V:.........................T:.........................","Item","1.00"]
[]
[null,83,"Confidentiality  The contractor undertakes to maintain in confidence any and all information regarding this project and shall obtain appropriate similar undertakings from all subcontractors and suppliers. Such information shall not be used in any way except in connection with the execution of the works  No information regarding this project shall be published or disclosed without the prior written consent of the employer  F:........................ V:.........................T:.........................","Item","1.00"]
[]
[null,84,"Media releases  All rights of publication of articles in the media, together with any advertising relating thereto or in any way connected with this project, shall vest with the employer  The contractor together with his subcontractors shall not, without the prior written consent of the employer, cause any statement or advertisement connected with this project to be printed, screened or aired by the media  F:........................ V:.........................T:.........................","Item","1.00"]
[]
[null,null,"SECTION  C: SPECIFIC PRELIMINARIES","H2"]
[]
[null,null,"Any special items to meet the parrtcular circumstances of a specific project are embodied in this section.  Where required for an aspect of the works to be executed according to a design by a consulting engineer, a recital of the headings to the individual clauses of the JBCC Engineering General Conditions are included"]
[]
[null,85,"PROPRIETARY BRANDED PRODUCTS The contractor shall take delivery of, handle, store, use apply and/or fix all proprietary branded products in strict accordance with the manufacturers' instruction after consultation with the manufacturer's authorised representative  F:............................. V:............................ T:............................","Item","1.00"]
[]
[null,86,"OVERTIME  Should overtime be required to be worked for any reason whatsoever, the costs of such overtime are to be borne by the contractor unless the principal agent has specifically authorised in writing, prior to the execution thereof, that costs for such overtime are to be borne by the employer.  F:............................. V:............................ T:............................","Item","1.00"]
[]
[null,87,"AS BUILT DRAWINGS  The position of construction breaks and the extent of individual concrete pours are to be recorded by the contractor on the structural engineer's drawings and are to be submitted to the principal agent and the structural engineer for their records.  F:............................. V:............................ T:............................","Item","1.00"]
[]
[null,88,"SITE INSTRUCTIONS  Site instructions issued on site are to be recorded in triplicate in a site instruction book which is to be maintained on site by the contractor  F:............................. V:............................ T:............................","Item","1.00"]
[]
[null,89,"LABOUR DESK  The contractor shall establish a labour desk on site with a dedicated office of maximum 9m2 with a desk 2 chairs and electricity. From the labour desk, the contractor will appoint a dedicated community laison officer at a minimum monthly gross remuneration of R 7500.00, subject to all statutory deductions. The community laison officer will be employed by and will report to the contractor, who will in turn forward such reports to the Principal Agent ","Item","1.00"]
[]
[null,90,"LABOUR RECORDAt the end of each week the contractor shall provide the principal agent with a written record, in schedule form, reflecting the number and description of tradesmen and labourers employed by him and all subcontractors on the works each day. F:............................. V:............................ T:............................","Item","1.00"]
[]
[null,91,"PLANT RECORD  At the end of each week the contractor shall provide the principal agent with a written record, in schedule form, reflecting the number, type and capacity of all plant, excluding hand tools, currently used on the works.  F:............................. V:............................ T:............................","Item","1.00"]
[]
[null,92,"NON CESSION OF MONIES  The contractor shall not cede nor assign his rights or claims to any monies due or to become due under this contract  F:............................. V:............................ T:............................","Item","1.00"]
[]
[null,93,"GENERAL SPECIFICATION "]
[null,null," The general specification for the works is the Model Preambles For Trades 1999 as published by the Association of Quantity Surveyors. Tenderers are to avail themselves of the full contract thereof and the document will be deemed to be part of the conditions of of tender and contract  F:............................. V:............................ T:............................","Item","1.00"]
[]
[null,null,"SECTION  D: HEALTH & SAFETY PRELIMINARIES","H2"]
[]
[null,null,"Total cost of \"Health and Safety Measures\""]
[]
[null,94,"Preparation of the contractor's site specific health and safety plan stipulated by the project SHE specification","Item","1.00"]
[]
[null,95,"Principal contractor's initial obligation in respect to the Occupational Health and Safety Act and Construction Regulations","Item","1.00"]
[]
[null,96,"Principal contractor's time related obligations in respect of Occupations Health and Safety Act and Construction Regulations","Item","1.00"]
[]
[null,null,"Provision of Personal Protective Equipment (PPE)"]
[]
[null,97,"Reflective vests","Item","1.00"]
[]
[null,98,"Hard hats","Item","1.00"]
[]
[null,99,"Earplugs","Item","1.00"]
[]
[null,100,"Protective steel toed foot wear","Item","1.00"]
[]
[null,101,"Hand gloves","Item","1.00"]
[]
[null,102,"High visibility overalls to SARTSM chapter 13 level 3","Item","1.00"]
[]
[null,103,"Thermal jackets","Item","1.00"]
[]
[null,104,"Dust masks","Item","1.00"]
[]
[null,105,"Safety goggles","Item","1.00"]
[]
[null,106,"Gumboots","Item","1.00"]
[]
[null,107,"Fall protective equipment","Item","1.00"]
[]
[null,108,"Provisional of full time construction health and safety officer (SACPCMP registered)","Item","1.00"]
[]
[null,109,"Health and safety representative","Item","1.00"]
[]
[null,110,"Health and safety file","Item","1.00"]
[]
[null,null,"Fire extingishers"]
[]
[null,111,"Dry powder","Item","1.00"]
[]
[null,112,"CO2","Item","1.00"]
[]
[null,113,"Spill kit","Item","1.00"]
[]
[null,114,"Chemical cage","Item","1.00"]
[]
[null,115,"Barricades","Item","1.00"]
[]
[null,116,"Blinq system","Item","1.00"]
[]
[null,117,"Waste bins","Item","1.00"]
[]
[null,null,"Environmental"]
[]
[null,118,"Environmental monitoring","Item","1.00"]
[]
[null,null,"Signage"]
[]
[null,119,"Signage","Item","1.00"]
[]
[null,null,"Training"]
[]
[null,120,"Training - SHE representative","Item","1.00"]
[]
[null,121,"Training - First Aiders","Item","1.00"]
[]
[null,122,"Training - Fire fighting","Item","1.00"]
[]
[null,123,"Training - Scaffolfing assembler","Item","1.00"]
[]
[null,124,"Training - Scaffolding inspector","Item","1.00"]
[]
[null,125,"Training HIV & AIDS awareness","Item","1.00"]
[]
[null,126,"Provision for OHS posters, booklets, etc","Item","1.00"]
[]
[null,127,"Provision for condoms and condom dispenser","Item","1.00"]
[]
[null,null,"Covid - 19 PPE"]
[]
[null,128,"Signs, posters and phamphlets","Item","1.00"]
[]
[null,129,"Faceshields","Item","1.00"]
[]
[null,130,"Non contact infrared thermometers","Item","1.00"]
[]
[null,131,"Surface sanitisers","Item","1.00"]
[]
[null,132,"Surgical gloves","Item","1.00"]
[]
[null,133,"Napsack spray","Item","1.00"]
[]
[null,134,"FFP2 dust mask","Item","1.00"]
[]
[null,135,"Tissue paper towels","Item","1.00"]
[]
[null,136,"Catridge chemical respirator","Item","1.00"]
[]
[null,137,"2500Litre water tank","Item","1.00"]
[]
[null,138,"Foot operated sanitiser stand","Item","1.00"]
[]
[null,139,"Biohazardous waste costs","Item","1.00"]
[]
[null,140,"Sealable plastic bags","Item","1.00"]
[]
[null,141,"Disposal of biohazardous waste costs","Item","1.00"]
[]
[null,null,"Costs of medical certificates and medical survellaince"]
[]
[null,142,"Hand sanitizers with 70% alcohol","Item","1.00"]
[]
[null,143,"Initial (Baseline) medical exeminations","Item","1.00"]
[]
[null,144,"Periodic and exit examinations","Item","1.00"]
[]
[null,145,"Contractor's charges to allow for handling costs and profit of sub items","Item","1.00"]
[]
[null,146,"Induction training","Item","1.00"]
[]
[null,147,"Provision of first aid boxes to GRS requirements","Item","1.00"]
[]
[null,148,"First aid refill kit","Item","1.00"]
[]
[null,149,"Emergency eye wash bottle","Item","1.00"]
[]
[null,null,"Noise monitoring"]
[]
[null,150,"Establishment of noise zones (plant)","Item","1.00"]
[]
[null,151,"Audiograms (personnel)","Item","1.00"]
[]
[null,152,"Provision of isolation room for covid suspected cases on site during screening","Item","1.00"]
[]
[null,153,"Submission of health and safety file","Item","1.00"]
[]
[null,154,"Contractor health and safety close out report","Item","1.00"]
[]
[null,null,"SUMMARY OF CATEGORIES","H3"]
[]
[null,null,"Category : Fixed   R........................................  Category : Value   R........................................  Category : Time    R........................................"]
[]
[null,null,"CARRIED TO FINAL SUMMARY",{"$nulls":3},{"$f":"SUM(G6:G751)","v":0}]
[]
[]
[null,null,"SECTION NO. 2","H1"]
[]
[null,null,"BILL NO. 1","H1"]
[]
[null,null,"DEMOLITIONS","H1"]
[]
[null,null,"View site","H4"]
[]
[null,null,"Before submitting his tender the tenderer shall visit the site and satisfy himself as to the nature and extent of the work to be done and the value of the materials contained in the buildings or portions of the buildings to be demolished.  No claim for any variations of the contract sum in respect of the nature and extent of the work or of inferior or damaged materials will be entertained"]
[]
[null,null,"Explosives","H3"]
[]
[null,null,"No explosives whatsoever may be used for demolition purposes unless otherwise stated"]
[]
[null,null,"General","H3"]
[]
[null,null,"Water supply pipes and other piping in ground that may be encountered and found necessary to disconnect or cut, shall be effectually stopped off or grubbed up and removed, and any new connections that may be necessary shall be made with proper fittings to the satisfaction of the principal agent"]
[]
[null,null,"Unless otherwise described all materials are to become the property of the contractor and are to be removed from the site"]
[]
[null,null,"Demolishing and removing","H3"]
[]
[null,1,"Existing buildings","m2",541,null,{"$f":"E777*F777","v":0}]
[]
[null,2,"Allow an amount of R100 000.00 (One Hundred Thousand Rands) for the removal and disposing of toxic and hazardous materials","Item","1.00","100 000.00","100 000.00"]
[]
[null,null,"Carried forward to summary of section",{"$nulls":3},{"$f":"SUM(G758:G780)","v":0}]
[]
[null,null,"SECTION NO. 2","H1"]
[]
[null,null,"BILL NO. 2","H1"]
[]
[null,null,"EARTHWORKS (PROVISIONAL)","H1"]
[]
[null,null,"Nature of ground","H3"]
[]
[null,null,"The nature of the ground is assumed to be loose sandy material, therefore \"earth\", but possibly interspersed with \"soft rock\" or \"hard rock\""]
[]
[null,null,"The nature of the ground is assumed to be gravel, therefore \"earth\", but possibly interspersed with \"soft rock\" or \"hard rock\""]
[]
[null,null,"The nature of the ground is assumed to be silty clay with loose river boulders varying in size up to approximately 450mm diameter, all of which will be deemed as \"earth\", but possibly interspersed with \"hard rock\""]
[]
[null,null,"Trial holes indicate that the nature of the ground is silty clay to a depth of approximately 500mm with fine to medium loose sandy material below, therefore \"earth\""]
[]
[null,null,"A soils investigation has been carried out on the site by the engineer and the report is annexed to these bills of quantities.  The soils report indicates that the ground varies between silty sand, reworked soil of mixed origin and residual shale, all of which will be deemed as \"earth\". All very hard unweathered shale, ironstone, etc, the removal of which necessitates the use of explosives or heavy duty hydraulic percussion hammers (peckers), will be classified as \"hard rock\""]
[]
[null,null,"Subterranean water","H3"]
[]
[null,null,"No subterranean water is expected  The water table is expected to vary between approximately 2m and 3m below natural ground level. The removal of subterranean water is given separately"]
[]
[null,null,"Carting away of excavated material","H3"]
[]
[null,null,"Descriptions of carting away of excavated material shall be deemed to include loading excavated material onto trucks directly from the excavations or, alternatively, from stock piles situated on the building site"]
[]
[null,null,"Filling and layer work materials","H3"]
[]
[null,null,"References such as \"G1\", \"G2\", etc and \"C1\", \"C2\", etc in descriptions of filling and layer work materials refer to corresponding references in the document \"Guidelines for Road Construction Materials.  TRH 14 : 1985\" compiled by the Committee of State Road Authorities and the properties set out therein for each kind shall be applicable to the respective materials described hereinafter"]
[]
[null,null,"Testing","H3"]
[]
[null,null,"Prices for filling are to include for all necessary density and other tests"]
[]
[null,null,"SITE CLEARANCE","H2"]
[]
[null,null,"Site clearance","H3"]
[]
[null,1,"Digging up and removing rubbish, debris, vegetation, hedges, shrubs, bush, etc and trees not exceeding 200mm girth","m2",7641,null,{"$f":"E821*F821","v":0}]
[]
[null,2,"Stripping average 150mm thick layer of top soil and stockpiling on site","m2",7641,null,{"$f":"E823*F823","v":0}]
[]
[null,null,"EXCAVATIONS ETC","H2"]
[]
[null,null,"Excavation in earth not exceeding 2m deep","H3"]
[]
[null,3,"Trenches","m3",1712,null,{"$f":"E829*F829","v":0}]
[]
[null,4,"Holes","m3",253,null,{"$f":"E831*F831","v":0}]
[]
[null,5,"Trenches and holes for thickening under surface beds etc","m3",5,null,{"$f":"E833*F833","v":0}]
[]
[null,null,"Extra over bulk excavations in earth for excavation in","H3"]
[]
[null,6,"Soft rock","m3",209,null,{"$f":"E837*F837","v":0}]
[]
[null,7,"Hard rock","m3",101,null,{"$f":"E839*F839","v":0}]
[]
[null,null,"Extra over all excavations for carting away","H3"]
[]
[null,8,"Surplus material from excavations and/or stock piles on site, to a dumping site to be located by the contractor","m3",698,null,{"$f":"E843*F843","v":0}]
[]
[null,null,"Risk of collapse of excavations","H3"]
[]
[null,9,"Sides of bulk excavations not exceeding 1,5m deep","m2",4916,null,{"$f":"E847*F847","v":0}]
[]
[null,10,"Sides of trench and hole excavations not exceeding 1,5m deep","m2",1223,null,{"$f":"E849*F849","v":0}]
[]
[null,null,"Keeping excavations free of water","H3"]
[]
[null,11,"Keeping excavations free of all water other than subterranean water","Item",1,null,{"$f":"E853*F853","v":0}]
[]
[null,null,"FILLING ETC","H2"]
[]
[null,null,"Earth filling obtained from the excavations and/or prescribed stock piles on site, compacted to 95% Mod AASHTO density","H3"]
[]
[null,12,"Under floors, steps, pavings, etc","m3",3130,null,{"$f":"E859*F859","v":0}]
[]
[null,13,"Backfilling to trenches, holes, etc","m3",926,null,{"$f":"E861*F861","v":0}]
[]
[null,null,"Earth filling of G7 material supplied by the contractor, compacted to 95% Mod AASHTO density","H3"]
[]
[null,14,"Under floors, steps, pavings, etc","m3",939,null,{"$f":"E865*F865","v":0}]
[]
[null,null,"Compaction of ground surfaces","H3"]
[]
[null,15,"Compaction of natural or excavated ground surface under floors etc, including scarifying for a depth of 150mm, breaking down oversize material, adding suitable material where necessary and compacting to 90% Mod AASHTO density","m2",7952,null,{"$f":"E869*F869","v":0}]
[]
[null,null,"WEED KILLERS, INSECTICIDES, ETC","H2"]
[]
[null,null,"Soil insecticide in accordance with SANS 5859","H3"]
[]
[null,16,"Under floors etc, including forming and poisoning shallow furrows against foundation walls etc, filling in furrows and ramming","m2",6260,null,{"$f":"E875*F875","v":0}]
[]
[null,17,"To bottoms and sides of trenches etc","m2",6397,null,{"$f":"E877*F877","v":0}]
[]
[null,null,"Carried forward to summary of section",{"$nulls":3},{"$f":"SUM(G786:G878)","v":0}]
[]
[null,null,"SECTION NO. 2","H1"]
[]
[null,null,"BILL NO. 3","H1"]
[]
[null,null,"CONCRETE, FORMWORK AND REINFORCEMENT","H1"]
[]
[null,null,"SUPPLEMENTARY PREAMBLES","H2"]
[]
[null,null,"Cost of tests","H4"]
[]
[null,null,"The costs of making, storing and testing of concrete test cubes as required under clause 7 \"Tests\" of SABS 1200 G shall include the cost of providing cube moulds necessary for the purpose, for testing costs and for submitting reports on the tests to the architect.  The testing shall be undertaken by an independent firm or institution nominated by the contractor and to the approval of the architect.  (Test cubes are measured separately)"]
[]
[null,null,"Breeze concrete","H4"]
[]
[null,null,"Breeze concrete shall consist of twelve parts clean dry furnace ash, free from coal or other foreign matter, to one part cement (12:1), the ash graded up to particles which will pass a 16,5mm ring from a minimum which fails to pass a 4,75mm mesh.  The finer materials from the screening are to be first mixed with the cement into a mortar and the ash added afterwards and thoroughly incorporated"]
[]
[null,null,"Formwork","H4"]
[]
[null,null,"Description of formwork shall be deemed to include use and waste only (except where described as \"left in\" or \"permanent\"), for fitting together in the required forms, wedging, plumbing and fixing to true angles and surfaces as necessary to ensure easy release during stripping and for reconditioning as necessary before re-use"]
[]
[null,null,"The vertical strutting shall be carried down to such construction as is sufficiently strong to afford the required support without damage and shall remain in position until the newly constructed work is able to support itself"]
[]
[null,null,"Formworks to soffits of solid slabs etc shall be deemed to be slabs not exceeding 250mm thick unless otherwise described"]
[]
[null,null,"Formwork to soffits of slabs, beams, etc shall be deemed to be propped up exceeding 1,5m and not exceeding 3,5m high unless otherwise described"]
[]
[null,null,"Formwork to sides of bases, pile caps, ground beams, etc will only be measured where it is prescribed by the engineer for design reasons.  Formwork necessitated by irregularity or collapse of excavated faces will not be measured and the cost thereof shall be deemed to be included in the allowance for taking the risk of collapse of the sides of the excavations, provision for which is made in \"Earthworks\""]
[]
[null,null,"UNREINFORCED CONCRETE CAST AGAINST EXCAVATED SURFACES","H2"]
[]
[null,null,"15MPa/19mm concrete","H3"]
[]
[null,1,"Surface blinding under footings and bases","m3",177,null,{"$f":"E913*F913","v":0}]
[]
[null,2,"Surface blinding under surface beds","m3",313,null,{"$f":"E915*F915","v":0}]
[]
[null,null,"FOUNDATIONS","H2"]
[]
[null,null,"REINFORCED CONCRETE","H2"]
[]
[null,null,"30MPa/19mm concrete","H3"]
[]
[null,3,"Concrete wall","m3",6,null,{"$f":"E923*F923","v":0}]
[]
[null,4,"Thickening","m3",5,null,{"$f":"E925*F925","v":0}]
[]
[null,5,"Strip footings","m3",428,null,{"$f":"E927*F927","v":0}]
[]
[null,6,"Bases","m3",63,null,{"$f":"E929*F929","v":0}]
[]
[null,null,"SUPERSTRUCTURE","H2"]
[]
[null,null,"30MPa/19mm concrete","H3"]
[]
[null,7,"Surface beds on waterproofing","m3",569,null,{"$f":"E935*F935","v":0}]
[]
[null,8,"Slabs including beams and inverted beams","m3",196,null,{"$f":"E937*F937","v":0}]
[]
[null,9,"Ring beams","m3",66,null,{"$f":"E939*F939","v":0}]
[]
[null,10,"Ramps","m3",10,null,{"$f":"E941*F941","v":0}]
[]
[null,11,"Steps","m3",1,null,{"$f":"E943*F943","v":0}]
[]
[null,12,"Columns","m3",7,null,{"$f":"E945*F945","v":0}]
[]
[null,null,"TEST CUBES","H2"]
[]
[null,13,"Making and testing 150 x 150 x 150mm concrete strength test cube (Provisional)","No",135,null,{"$f":"E949*F949","v":0}]
[]
[null,null,"CONCRETE SUNDRIES","H2"]
[]
[null,null,"Finishing top surfaces of concrete smooth with a wood float/steel trowel","H3"]
[]
[null,14,"Surface beds, slabs, etc","m2",7013,null,{"$f":"E955*F955","v":0}]
[]
[null,null,"15 MPa non-shrink grout","H3"]
[]
[null,15,"50mm Bedding of 1:2 cement/ sand grout under 200 x 200mm base pate including chamfered edges all round","No",306,null,{"$f":"E959*F959","v":0}]
[]
[null,null,"SMOOTH FORMWORK (DEGREE OF ACCURACY I)","H2"]
[]
[null,null,"Smooth formwork to sides","H3"]
[]
[null,16,"Bases (Provisional)","m2",306,null,{"$f":"E965*F965","v":0}]
[]
[null,17,"Upstand beams","m2",935,null,{"$f":"E967*F967","v":0}]
[]
[null,18,"Columns","m2",116,null,{"$f":"E969*F969","v":0}]
[]
[null,19,"Walls","m2",34,null,{"$f":"E971*F971","v":0}]
[]
[null,null,"Smooth formwork to soffits","H3"]
[]
[null,20,"Slabs exceeding 250mm and not exceeding 500mm thick propped up exceeding 1.5m and not exceeding 3.5m high","m2",754,null,{"$f":"E975*F975","v":0}]
[]
[null,21,"Beams propped up not exceeding 3,5m high","m2",180,null,{"$f":"E977*F977","v":0}]
[]
[null,null,"MOVEMENT JOINTS ETC","H2"]
[]
[null,null,"Saw cut joints","H3"]
[]
[null,22,"50 x 3mm Saw cut joints in top of concrete","m",67,null,{"$f":"E983*F983","v":0}]
[]
[null,null,"Expansion joints with bitumen impregnated softboard between concrete and brickwork","H3"]
[]
[null,23,"10mm Joints not exceeding 300mm high along edges of surface beds ","m",2616,null,{"$f":"E987*F987","v":0}]
[]
[null,null,"REINFORCEMENT ","H2"]
[]
[null,null,"High tensile steel reinforcement to structural concrete work","H3"]
[]
[null,24,"Bars in various Diameters","t","76.69"]
[]
[null,null,"Fabric reinforcement","H3"]
[]
[null,25,"Type 100 fabric reinforcement in concrete surface beds, slabs, etc","m2",6260,null,{"$f":"E997*F997","v":0}]
[]
[null,26,"Type 395 fabric reinforcement in concrete surface beds, slabs, etc","m2",18,null,{"$f":"E999*F999","v":0}]
[]
[null,null,"Carried forward to summary of section",{"$nulls":3},{"$f":"SUM(G909:G1000)","v":0}]
[]
[null,null,"SECTION NO. 2","H1"]
[]
[null,null,"BILL NO. 4","H1"]
[]
[null,null,"PRECAST CONCRETE","H1"]
[]
[null,null,"SUPPLEMENTARY PREAMBLES","H2"]
[]
[null,null,"Sizes:","H3"]
[]
[null,null,"Blocks, sills, etc measured linear shall be made in suitable lengths.  Large size setting out drawings shall be prepared where necessary and submitted to the architect for approval before moulds are made"]
[]
[null,null,"General:","H3"]
[]
[null,null,"Where kerbstones, blocks, etc are laid in ground descriptions shall be deemed to include necessary excavation, filling in and ramming"]
[]
[null,null,"Winblok modular precast concrete window surrounds etc finished smooth on exposed surfaces including bedding, jointing and pointing","H3"]
[]
[null,1,"500 x 500 Concrete breeze block","m2",77,null,{"$f":"E1021*F1021","v":0}]
[]
[null,null,"Carried forward to summary of section",{"$nulls":3},{"$f":"SUM(G1007:G1021)","v":0}]
[]
[null,null,"SECTION NO. 2","H1"]
[]
[null,null,"BILL NO. 5","H1"]
[]
[null,null,"MASONRY","H1"]
[]
[null,null,"BRICKWORK","H3"]
[]
[null,null,"Sizes in descriptions","H4"]
[]
[null,null,"Where sizes in descriptions are given in brick units, \"one brick\" shall represent the length and \"half brick\" the width of a brick"]
[]
[null,null,"Bagged and sealed walls","H3"]
[]
[null,null,"Walls in two skins described as \"bagged and sealed\" shall be deemed to include having the outer face of the inner skin bagged with 1:6 cement and sand mixture and sealed with two coats bitumen emulsion waterproofing coating"]
[]
[null,null,"Face bricks ","H3"]
[]
[null,null,"Bricks shall be ordered timeously to obtain uniformity in size and colour"]
[]
[null,null,"Pointing ","H3"]
[]
[null,null,"Descriptions of recessed pointing to fair face brickwork and face brickwork shall be deemed to include square recessed, hollow recessed, weathered pointing, etc"]
[]
[null,null,"BRICKWORK","H2"]
[]
[null,null,"FOUNDATIONS (PROVISIONAL)","H2"]
[]
[null,null,"Brickwork of NFP bricks in class II mortar","H3"]
[]
[null,1,"Half brick walls","m2",132,null,{"$f":"E1055*F1055","v":0}]
[]
[null,2,"One brick walls","m2",2956,null,{"$f":"E1057*F1057","v":0}]
[]
[null,null,"FACE BRICKWORK","H2"]
[]
[null,null,"Face brick: FBX \"Corobrick\" Firelight Satin or similar approved burnt clay face brick, manufacture in accordance with SANS 227:2007, bedded in (3:1) sand/cement mixture and joints pointed with square jointing tool in horizontal and vertical joints. (PC Amount R4 000.00/thousand VAT excl supplied and delivered to site)Note: All face brick shall be cleaned down as the work proceeds and shall be covered up with approved means. External facing shall be treated with an approved face brick sealant.","H3"]
[]
[null,3,"Extra over brickwork for face brickwork built in horizontally ","m2",531,null,{"$f":"E1063*F1063","v":0}]
[]
[null,null,"2,5mm Brickwork reinforcement","H3"]
[]
[null,4,"75mm Wide reinforcement built in horizontally","m",518,null,{"$f":"E1067*F1067","v":0}]
[]
[null,5,"150mm Wide reinforcement built in horizontally","m",11591,null,{"$f":"E1069*F1069","v":0}]
[]
[null,null,"SUPERSTRUCTURE","H2"]
[]
[null,null,"Brickwork of NFP bricks in class II mortar","H3"]
[]
[null,6,"Half brick walls","m2",294,null,{"$f":"E1075*F1075","v":0}]
[]
[null,7,"One brick walls","m2",7256,null,{"$f":"E1077*F1077","v":0}]
[]
[null,null,"2,5mm Brickwork reinforcement","H3"]
[]
[null,8,"75mm Wide reinforcement built in horizontally","m",576,null,{"$f":"E1081*F1081","v":0}]
[]
[null,9,"150mm Wide reinforcement built in horizontally","m",14227,null,{"$f":"E1083*F1083","v":0}]
[]
[null,null,"Allied Concrete prestressed fabricated lintels","H3"]
[]
[null,10,"110 x 70mm Lintels in lengths not exceeding 3m","m",399,null,{"$f":"E1087*F1087","v":0}]
[]
[null,null,"Turning pieces to lintels etc","H3"]
[]
[null,11,"230mm Wide turning pieces","m",306,null,{"$f":"E1091*F1091","v":0}]
[]
[null,null,"FACE BRICKWORK","H2"]
[]
[null,null,"Face brick: FBX \"Corobrick\" Firelight Satin or similar approved burnt clay face brick, manufacture in accordance with SANS 227:2007, bedded in (3:1) sand/cement mixture and joints pointed with square jointing tool in horizontal and vertical joints. (PC Amount R4 000.00/thousand VAT excl supplied and delivered to site)Note: All face brick shall be cleaned down as the work proceeds and shall be covered up with approved means. External facing shall be treated with an approved face brick sealant. ","H3"]
[]
[null,12,"Extra over brickwork for face brickwork","m2",3337,null,{"$f":"E1097*F1097","v":0}]
[]
[null,13,"Extra over brickwork for brick-on-edge header course lintel","m",339,null,{"$f":"E1099*F1099","v":0}]
[]
[null,null,"Brick-on-edge header course copings, sills, etc of face bricks, pointed with flush joints on all exposed faces","H3"]
[]
[null,14,"230mm Wide sills set sloping and slightly projecting","m",612,null,{"$f":"E1103*F1103","v":0}]
[]
[null,15,"230mm Wide sill set level and slightly projecting","m",306,null,{"$f":"E1105*F1105","v":0}]
[]
[null,null,"Carried forward to summary of section",{"$nulls":3},{"$f":"SUM(G1029:G1105)","v":0}]
[]
[null,null,"SECTION NO. 2","H1"]
[]
[null,null,"BILL NO. 6","H1"]
[]
[null,null,"WATERPROOFING","H1"]
[]
[null,null,"SUPPLEMENTARY PREAMBLES","H2"]
[]
[null,null,"Waterproofing","H3"]
[]
[null,null,"Waterproofing of roofs, basements, etc shall be laid under a ten year guarantee by an approved applicator.  Waterproofing to roofs shall be laid to even falls to outlets etc with necessary ridges, hips and valleys. Descriptions of sheet or membrane waterproofing shall be deemed to include additional labour to turn-ups and turn-downs"]
[]
[null,null,"Gundle® API Brickgrip DPC 250µm damp proof course in solid walls conforming to SANS 952-1:2011 laid with minimum 150mm overlaps, or similar approved ","H3"]
[]
[null,1,"In walls","m2",1253,null,{"$f":"E1123*F1123","v":0}]
[]
[null,null,"Gundle® API USB Green 170µm damp proof membrane under concrete surface beds conforming to SANS 952-1:2011 laid with minimum 150mm overlaps and sealed with Gunplas pressure sensitive tape, or similar approved ","H3"]
[]
[null,2,"Under surface bed","m2",6260,null,{"$f":"E1127*F1127","v":0}]
[]
[null,null,"WATERPROOFING TO ROOFS ETC","H2"]
[]
[null,null,"Waterproofing to exposed concrete roofs with bituminous aluminium paint finish.Apply one coat a.b.e. bituprime to all surfaces including all verges and around outlets and protrusions.Apply one layer of a.b.e. 4mm abegum dual reinforced waterproofing membrane, fully bonded by means of \"torch on fusion\", with 75mm side laps and 100mm end laps. Flashing strip 150mm girth at turn-ups using a.b.e. super laykold. Apply one coat of a.b.e. silvakote bituminous aluminium protective coating, all in accordance with manufacturer's recommendations.","H3"]
[]
[null,3,"On shower floors","m2",13,null,{"$f":"E1133*F1133","v":0}]
[]
[null,4,"On flat roofs","m2",754,null,{"$f":"E1135*F1135","v":0}]
[]
[null,null,"Two coats bituminous aluminium paint","H3"]
[]
[null,5,"On waterproofing to roofs","m2",754,null,{"$f":"E1139*F1139","v":0}]
[]
[null,null,"Two layers mastic asphalt trafficable trowelled-on waterproofing with coarse building sand or fine stone chips evenly spread and well rolled in, or similar approved ","H3"]
[]
[null,6,"30 x 30mm Triangular fillets","m",784,null,{"$f":"E1143*F1143","v":0}]
[]
[null,null,"Carried forward to summary of section",{"$nulls":3},{"$f":"SUM(G1113:G1144)","v":0}]
[]
[null,null,"SECTION NO. 2","H1"]
[]
[null,null,"BILL NO. 7","H1"]
[]
[null,null,"ROOF COVERINGS, CLADDINGS, ETC","H1"]
[]
[null,null,"PROFILED METAL SHEETING AND ACCESSORIES","H2"]
[]
[null,null,"Safintra 0.5mm Saflock 700 galvanised corrugated steel sheets or similar approved fixed to steel purlins ","H3"]
[]
[null,1,"Roof covering with pitches not exceeding 25 degrees","m2",3567,null,{"$f":"E1157*F1157","v":0}]
[]
[null,null,"Safintra 0.5mm AZ150 Classicorr corrugated sheets or similar approved fixed to steel purlins ","H3"]
[]
[null,2,"Roof covering with pitches not exceeding 25 degrees","m2",1896,null,{"$f":"E1161*F1161","v":0}]
[]
[null,null,"ROOF AND WALL INSULATION","H2"]
[]
[null,null,"SafintraSafftherm polyester blanket or similar approved 50mm high density 32-36kg/m3 rigid extruded polystyrene 100% closed cell insulation panels laid between purlins and tie under roof sheeting in accordance to manufacture specifications","H3"]
[]
[null,3,"40mm Thick insulation fibre blanket fixed onto Safftherm  203ECO  double sided reflective aluminium foil radiant barrier (measured separately)","m2",3567,null,{"$f":"E1167*F1167","v":0}]
[]
[null,null,"Carried forward to summary of section",{"$nulls":3},{"$f":"SUM(G1151:G1168)","v":0}]
[]
[null,null,"SECTION NO. 2","H1"]
[]
[null,null,"BILL NO. 8","H1"]
[]
[null,null,"CARPENTRY AND JOINERY","H1"]
[]
[null,null,"Fixing","H3"]
[]
[null,null,"Items described as \"nailed\" shall be deemed to be fixed with hardened steel nails or pins, or to be shot-pinned, to brickwork or concrete"]
[]
[null,null,"Items described as \"plugged\" shall be deemed to include screwing to fibre, plastic or metal plugs at not exceeding 500mm centres, and where described as \"bolted\", the bolts have been given elsewhere"]
[]
[null,null,"Decorative thermosetting plastic laminate covering","H3"]
[]
[null,null,"Laminate covering shall be glued under pressure and edge strips of same shall be butt jointed at junctions with adjacent similar finish"]
[]
[null,null,"ROOFS ETC","H2"]
[]
[null,null,"Sawn softwood","H3"]
[]
[null,1,"38 x 114mm Wall plates","m",797,null,{"$f":"E1191*F1191","v":0}]
[]
[null,null,"Sundries","H3"]
[]
[null,2,"Two coats creosote on sawn timbers","m2",367,null,{"$f":"E1195*F1195","v":0}]
[]
[null,null,"Sawn softwood","H3"]
[]
[null,3,"Complete roof construction for staff housing complete with trusses, jack rafters, permanent bracing and 50 x 77mm purlins/battens (PC amount R126 000.00 Vat excl. supplied, delivered and installed to site by specialists)","No",1,null,{"$f":"E1199*F1199","v":0}]
[]
[null,null,"EAVES, VERGES, ETC","H2"]
[]
[null,null,"Everite FC77 pressed fibre-cement","H3"]
[]
[null,4,"Everite medium density plain ungrooved Nutec fascia boards, size 225 x 12mm thick, fixed to timber rafters twice screwed with 12 x 40mm countersunk brass screws with Chromaprep H-profile fascia joiner between boards, or similar approved ","m",1165,null,{"$f":"E1205*F1205","v":0}]
[]
[null,5,"Soffit board on eaves overhang","m2",452,null,{"$f":"E1207*F1207","v":0}]
[]
[null,null,"DOORS ETC","H2"]
[]
[null,null,"44mm Solid core hardwood door with fixed louvre shutters \"louvre meranti door (code LOU813)\"  or similar approved","H3"]
[]
[null,6,"Door size 877 x 2100mm high (D2)","No",12,null,{"$f":"E1213*F1213","v":0}]
[]
[null,null,"44mm Solid core masonite door with hardwood edge coverstrips on both sides. CODE 10 security type door","H3"]
[]
[null,7,"Door size 877 x 2100mm high (D3,19)","No",12,null,{"$f":"E1217*F1217","v":0}]
[]
[null,null,"44mm Solid core masonite door with hardwood edge coverstrips on both sides","H3"]
[]
[null,8,"Door size 750 x 2100mm high (D31)","No",16,null,{"$f":"E1221*F1221","v":0}]
[]
[null,9,"Door size 877 x 2100mm high (D25,26,29,30,32,33)","No",23,null,{"$f":"E1223*F1223","v":0}]
[]
[null,10,"Door size 877 x 2400mm high (D11,15)","No",57,null,{"$f":"E1225*F1225","v":0}]
[]
[null,11,"Door size 877 x 2400mm high (D21,22,23,28)","No",27,null,{"$f":"E1227*F1227","v":0}]
[]
[null,12,"Door size 877 x 2100mm high (D34,35)","No",12,null,{"$f":"E1229*F1229","v":0}]
[]
[null,13,"Door size 1200 x 2100mm high (D27)","No",3,null,{"$f":"E1231*F1231","v":0}]
[]
[null,14,"Door size 1500 x 2100mm high (D17)","No",1,null,{"$f":"E1233*F1233","v":0}]
[]
[null,null,"44mm Solid core masonite flush 2 panel symetric door with hardwoord edge coverstrips on both sides and rebated meeting stiles","H3","0.0"]
[]
[null,15,"Double door size 1500 x 2400mm high with standard fan light (D9,10,12,14)  ","No",16,null,{"$f":"E1237*F1237","v":0}]
[]
[null,null,"44mm Solid meranti framed and ledged timber panel door","H3"]
[]
[null,16,"Double door size 1500 x 2100mm high with rebated with flush meeting stiles with aluminium louvres (D16)  ","No",1,null,{"$f":"E1241*F1241","v":0}]
[]
[null,null,"'Hillaldam\"Rescuscitation room sliding \"Hygenic topp\"door or similar approved","H3"]
[]
[null,17,"Double door size 1500 x 2400mm high (D14)","No",2,null,{"$f":"E1245*F1245","v":0}]
[]
[null,null,"Carried forward to summary of section",{"$nulls":3},{"$f":"SUM(G1175:G1246)","v":0}]
[]
[null,null,"SECTION NO. 2","H1"]
[]
[null,null,"BILL NO. 9","H1"]
[]
[null,null,"CEILINGS, PARTITIONS AND ACCESS FLOORING","H1"]
[]
[null,null,"SUPPLEMENTARY PREAMBLES","H2"]
[]
[null,null,"Descriptions:","H3"]
[]
[null,null,"Items described as \"nailed\" shall be deemed to be fixed with hardened steel nails or pins or shot pinned to brickwork or concrete"]
[]
[null,null,"Items described as \"plugged\" shall be deemed to include screwing to fibre, plastic or metal plugs at not exceeding 600mm centres, and where described as \"bolted\" the bolts have been given elsewhere"]
[]
[null,null,"CEILINGS ETC","H2"]
[]
[null,null,"SUSPENDED CEILINGS","H2"]
[]
[null,null,"12.5mm BPB Gyprex white vinyl finish ceiling boards size 600 x 600mm suspended in open T-grid system comprising of T38 main tee with T25 cross tee between each tiles including hold-down clips, etc all suspended with 4mm diameter galvanised rods, or similar approved ","H3"]
[]
[null,1,"Ceilings  suspended not exceeding 1m below steel trusses","m2",696,null,{"$f":"E1269*F1269","v":0}]
[]
[null,null,"12.5mm BPB Gyprex white vinyl finish ceiling boards size 1200 x 600mm suspended in open T-grid system comprising of T38 main tee with T25 cross tee between each tiles including hold-down clips, etc all suspended with 4mm diameter galvanised rods, or similar approved ","H3"]
[]
[null,2,"Ceilings  suspended not exceeding 1m below steel trusses","m2",617,null,{"$f":"E1273*F1273","v":0}]
[]
[null,null,"AMF TOPIQ Prime Hygena white 1200 x 600mm ceiling panels in Donn T38 exposed T-suspended ceiling system, horizontally exposed at 2720mm AFFL sloping, or similar approved","H3"]
[]
[null,3,"Ceilings  suspended not exceeding 1m below steel trusses","m2",695,null,{"$f":"E1277*F1277","v":0}]
[]
[null,null,"AMF Thermatex acoustic hygena white 1200x600mm ceiling panels in Donn T38 exposed T-suspended ceiling system horizontally installed at ceiling height","H3"]
[]
[null,4,"Ceilings  suspended not exceeding 1m below steel trusses","m2",204,null,{"$f":"E1281*F1281","v":0}]
[]
[null,null,"NAILED UP CEILINGS","H2"]
[]
[null,null,"6mm thick  \"Everite  Nutec\" fibre-cement boards with aluminium \"epoxy coated\" H-type pressed steel jointing strips","H3"]
[]
[null,5,"Ceilings  ","m2",881,null,{"$f":"E1287*F1287","v":0}]
[]
[null,6,"Extra  over  ceiling  for  500  x  500 mm trap door ","No",5,null,{"$f":"E1289*F1289","v":0}]
[]
[null,null,"Everite Nutec cornices","H3"]
[]
[null,7,"75mm Coved cornices","m",717,null,{"$f":"E1293*F1293","v":0}]
[]
[null,null,"Carried forward to summary of section",{"$nulls":3},{"$f":"SUM(G1250:G1294)","v":0}]
[]
[null,null,"SECTION NO. 2","H1"]
[]
[null,null,"BILL NO. 10","H1"]
[]
[null,null,"FLOOR COVERINGS, WALL LININGS, ETC","H1"]
[]
[null,null,"Fixing","H3"]
[]
[null,null,"Floor coverings, wall linings, etc shall, where applicable, be fixed with adhesive as recommended by the manufacturers of the flooring, linings, etc"]
[]
[null,null,"FLOOR COVERINGS","H2"]
[]
[null,null,"Polyflor Type XL Pu 2mm thick  vinyl sheeting to be applied as per manufacturers specification (Assorted colours), or similar approved ","H3"]
[]
[null,1,"On floors","m2",2547,null,{"$f":"E1311*F1311","v":0}]
[]
[null,null,"WALL LININGS","H2"]
[]
[null,null,"Polyflor Type XL Pu 1,5mm thick vinyl wall sheeting to be applied as per manufacturers specification, or similar approved ","H3"]
[]
[null,2,"On walls","m2",1749,null,{"$f":"E1317*F1317","v":0}]
[]
[null,null,"POLISH, SEALERS, ETC","H2"]
[]
[null,3,"Polish on vinyl flooring","m2",2169,null,{"$f":"E1321*F1321","v":0}]
[]
[null,null,"Carried forward to summary of section",{"$nulls":3},{"$f":"SUM(G1302:G1322)","v":0}]
[]
[null,null,"SECTION NO. 2","H1"]
[]
[null,null,"BILL NO. 11","H1"]
[]
[null,null,"IRONMONGERY","H1"]
[]
[null,null,"SUPPLEMENTARY PREAMBLES","H2"]
[]
[null,null,"Descriptions","H3"]
[]
[null,null,"Items described as \"plugged\" shall be deemed to include screwing to fibre, plastic or metal plugs"]
[]
[null,null,"SUPPLEMENTARY PREAMBLES","H2"]
[]
[null,null,"Proprietary items","H3"]
[]
[null,null,"Where applicable the manufacturers' names or product catalogue titles are given in sub-headings preceding the items  Prices are to be based on the specific products/articles specified.  If tenderers wish to offer alternative products/articles for certain items, these items are to be clearly marked and the alternative specification given with supporting brochures etc clarifying the features of the products/articles offered  On request returnable samples are to be provided to the principal agent for consideration"]
[]
[null,null,"Finishes to ironmongery","H3"]
[]
[null,null,"Where applicable finishes to ironmongery are indicated by suffixes in accordance with the following list: BS Satin bronze lacqueredCH Chromium plated SC Satin chromium plated SE Silver enamelled GE Grey enamelledAN Anodised natural AS Anodised silver AB Anodised bronze AG Anodised gold ABL Anodised black PB Polished brass PL Polished and lacquered PT Epoxy coated SD Sanded"]
[]
[null,null,"HINGES, BOLTS, ETC","H2"]
[]
[null,null,"Dorma","H3"]
[]
[null,1,"Brass hinge with nylon washers","No",54,null,{"$f":"E1351*F1351","v":0}]
[]
[null,2,"100mm Brass hinge","No",396,null,{"$f":"E1353*F1353","v":0}]
[]
[null,null,"LOCKS","H2"]
[]
[null,null,"Dorma ","H3"]
[]
[null,3,"35mm Narrow stile deadlock (Stainless Steel) code: D02735SS","No",163,null,{"$f":"E1359*F1359","v":0}]
[]
[null,4,"35mm Bracket narrow stile sashlock (Stainless Steel) code: D02635 SS","No",161,null,{"$f":"E1361*F1361","v":0}]
[]
[null,5,"Adjustable roller bolt (Stainless Steel) code: DBC-SS-022","No",85,null,{"$f":"E1363*F1363","v":0}]
[]
[null,6,"66mm Ten pin euro-profile single cylinder master keyed (Satin Nickel) code: DDC104301MK","No",97,null,{"$f":"E1365*F1365","v":0}]
[]
[null,7,"66mm Ten pin euro-profile double cylinder master keyed (Satin Nickel) code: DDC106601MK","No",15,null,{"$f":"E1367*F1367","v":0}]
[]
[null,8,"43mm Ten pin euro-profile single cylinder master keyed (Satin Nickel) code: DSC104301MK","No",14,null,{"$f":"E1369*F1369","v":0}]
[]
[null,9,"Round cylinder escutcheon (Stainless steel) code: DCE-002","No",3,null,{"$f":"E1371*F1371","v":0}]
[]
[null,10,"Narrow stile cylinder escutcheon (Stainless Steel)","No",15,null,{"$f":"E1373*F1373","v":0}]
[]
[null,11,"Flushbolt on passive door","No",22,null,{"$f":"E1375*F1375","v":0}]
[]
[null,12,"150 X 20mm Flushbolt to inactive leaf (code: ALA20AS)","No",17,null,{"$f":"E1377*F1377","v":0}]
[]
[null,13,"153mm Flush bolt with heel (Satin chrome) code: DFBSC-180","No",17,null,{"$f":"E1379*F1379","v":0}]
[]
[null,14,"305mm Flush bolt with heel (SS finish) code: DFB-SC-181","No",21,null,{"$f":"E1381*F1381","v":0}]
[]
[null,15,"Dust proof strike (Stainless steel) code: DPS-SS-032","No",17,null,{"$f":"E1383*F1383","v":0}]
[]
[null,16,"Bathroom deadlock (Stainless steel) code: D032D SS","No",18,null,{"$f":"E1385*F1385","v":0}]
[]
[null,17,"Bathroom deadlock (Stainless steel) code: DMWC- SS-008","No",23,null,{"$f":"E1387*F1387","v":0}]
[]
[null,18,"Bathroom WC indicator bolt (Red & White) and turnknob code: DWC-SS-005","No",23,null,{"$f":"E1389*F1389","v":0}]
[]
[null,19,"Disabled WC indicator bolt (Red & White) and turnknob code: DWC-SS-006","No",18,null,{"$f":"E1391*F1391","v":0}]
[]
[null,20,"Cylinder deadlock code: D036S-SS","No",11,null,{"$f":"E1393*F1393","v":0}]
[]
[null,21,"Cylinder sashlock code: D036S-SS","No",97,null,{"$f":"E1395*F1395","v":0}]
[]
[null,22,"Rebate kit (Nickel plated) code: 038R NP","No",20,null,{"$f":"E1397*F1397","v":0}]
[]
[null,23,"150 x 32mm Heavy duty barrel bolt (Satin chrome) code: BHD 150","No",5,null,{"$f":"E1399*F1399","v":0}]
[]
[null,24,"150 x 32mm Heavy duty necked bolt (Satin chrome) code: NBHD 150","No",5,null,{"$f":"E1401*F1401","v":0}]
[]
[null,25,"Securam ProLogic L22 EntryPad and Proofing pan 2Hour with polished chrome finish code EL0601swing bolt lock body with programmed 1-15min time delay and system override","No",4,null,{"$f":"E1403*F1403","v":0}]
[]
[null,26,"PHA3/S three point locking bar with component (2101, 2104, 2201, PHX02, PHX04)","No",2,null,{"$f":"E1405*F1405","v":0}]
[]
[null,null,"HANDLES ","H2"]
[]
[null,null,"Dorma or equal approved","H3"]
[]
[null,27,"Brushed stainless steel Pull handle DPH301C on 150 x 300 x 1.2mm plate code: DHP-SS-BL with Male/Female fixing screws","No",104,null,{"$f":"E1411*F1411","v":0}]
[]
[null,28," Brushed stainless steel back to back pull handle DPH301A BTB on 75 x 170 x 1.2mm plate code: DHP-SS-BL with Male/Female fixing screws","No",23,null,{"$f":"E1413*F1413","v":0}]
[]
[null,29,"Non-locking push button catch with (Satin Chrome) code: CZ51741SC and 75mm bolt to door","No",6,null,{"$f":"E1415*F1415","v":0}]
[]
[null,30,"325 x 25mm Stainless Steel Straight tubular pull handle flange fixing code: DPH301B","Pairs",27,null,{"$f":"E1417*F1417","v":0}]
[]
[null,31,"Exterior access lock with lever handle (cylinder not included) code PHT3901","No",2,null,{"$f":"E1419*F1419","v":0}]
[]
[null,32,"382 x 32mm Stainless Steel Straight D-shaped tubular pull handle BTB code: DPH215 BTB","Pairs",13,null,{"$f":"E1421*F1421","v":0}]
[]
[null,33,"149 x 19mm Stainless Steel Straight tubular pull handle BTB code: DPH301C BT","Pairs",3,null,{"$f":"E1423*F1423","v":0}]
[]
[null,34,"Lever handles on 170 x 170 plate with cylinder cutout (Stainless steel) code: TH120/BP Cyl SS","Sets",115,null,{"$f":"E1425*F1425","v":0}]
[]
[null,35,"Automated magnetic lock activated with biometrics sensor access installed according to manufacturers recommendations","No",18,null,{"$f":"E1427*F1427","v":0}]
[]
[null,36,"Electrromagnetic access lock with manual overide for emergency situation. With hygienic or automated hand and feet sanitation. With automated facial recognition thermo-sensor for temperature reading to manufacturer's recommendation","No",4,null,{"$f":"E1429*F1429","v":0}]
[]
[null,null,"PUSH PLATES AND KICKING PLATES","H2"]
[]
[null,null,"Dorma or equally approved","H3"]
[]
[null,37,"813mm long x 200mm high x 1,2mm thick stainless steel kick plate code:DKP-SS-200","No",88,null,{"$f":"E1435*F1435","v":0}]
[]
[null,38,"813mm long x 200mm high x 1,6mm thick stainless steel kick plate code:DKP-SS-165","No",84,null,{"$f":"E1437*F1437","v":0}]
[]
[null,39,"100mm high x 1,6mm thick stainless steel kick / strecher plate on either side with dust cover","No",35,null,{"$f":"E1439*F1439","v":0}]
[]
[null,40,"170 x 170 x 1,2mm Push plate cylinder code: DPP-SS-CL","No",30,null,{"$f":"E1441*F1441","v":0}]
[]
[null,41,"Dust proof strike stainless steel (code: DPS-SS-032) ","No",30,null,{"$f":"E1443*F1443","v":0}]
[]
[null,42,"Hold open double action floor spring","No",30,null,{"$f":"E1445*F1445","v":0}]
[]
[null,null,"DOOR CLOSERS ","H2"]
[]
[null,null,"Dorma or equally approved","H3"]
[]
[null,43,"Floor mounted door stop (Nikel Plated) code: DDS-SS-018","No",242,null,{"$f":"E1451*F1451","v":0}]
[]
[null,44,"TS73V EN 2-4 Parallel Arm delayed action door closer including TS73V PA DC parallel arm brackets","No",35,null,0]
[]
[null,45,"TS93B EMF hydrolic speed control and delayed action door closer","No",22,null,{"$f":"E1455*F1455","v":0}]
[]
[null,46,"TS91B EN 3 Cam action silver slide channel NON HOLD open door closer-hydraulic speed control","No",29,null,{"$f":"E1457*F1457","v":0}]
[]
[null,null,"BATHROOM FITTINGS","H2"]
[]
[null,null,"Franke","H3"]
[]
[null,47,"Franke Stratos STRX 600 or similar approved 1,2/1,5mm thick grade 304 18/10 satin stainless steel paper towel dispenser  size 305 x 300 x 134mm high, plugged and screwed to the wall with stainless steel screws. ","No",148,null,{"$f":"E1463*F1463","v":0}]
[]
[null,48,"Franke Stratos STRX 605 or similar approved 1,2/1,5mm thick grade 304 18/10 satin stainless steel waste disposal bins, size 300 x 270 x 520mm high, plugged and screwed to the wall with stainless steel screws. ","No",148,null,{"$f":"E1465*F1465","v":0}]
[]
[null,49,"Franke Stratos STRX 615 or similar approved 1,2/1,5mm thick grade 304 18/10 satin stainless steel sanitary bag dispenser, size 250 x 156 x 90mm high, plugged and screwed to the wall with stainless steel screws. ","No",26,null,{"$f":"E1467*F1467","v":0}]
[]
[null,50,"Franke stratos STRX 618 or simialr approved 1,2/1,5mm thick grade 304 18/10 satin stainless steel soap dispenser, size 304 x 100 x 134mm deep with a replacement and refillable 1 litre container, cylinder lock with standard Franke key, plugged and screwed to the wall with stainless steel screws.","No",148,null,{"$f":"E1469*F1469","v":0}]
[]
[null,51,"Franke stratos STRX 611 or similar approved 1,2/1,5mm thick grade 304 18/10 satin stainless steel recessed sanitary towel disposal bins, size 232 x 135 x 331mm deep, plugged and screwed to the wall with stainelss steel screws ","No",26,null,{"$f":"E1471*F1471","v":0}]
[]
[null,52,"Franke stratos STRX 671 or similar approved 1,2/1,5mm thick grade 304 18/10 satin stainless steel toilet roll holders, size 305 x 156 x 141mm deep for 2 rolls maximum 108mm diameter with spindle system and cylinder lock with standard Franke key, plugged and screwed to the wall with stainelss steel screws","No",41,null,{"$f":"E1473*F1473","v":0}]
[]
[null,53,"Franke FIRMUS soap tray (code: FIRX107HP)","No",11,null,{"$f":"E1475*F1475","v":0}]
[]
[null,54,"PD037 Dispenser PPE Large for Gloves, Masks and Aprons PD037","No",22,null,{"$f":"E1477*F1477","v":0}]
[]
[null,55,"Rectractable wall mounted bench","No",11,null,{"$f":"E1479*F1479","v":0}]
[]
[null,56,"Franke\" CNTX 600 32mm diameter Grade 304 18/10 stainless steel grab rails (code: 359872), size 600mm x 95mm deep with Franke Fine Grip surface, plugged and screwed to the wall with stainless steel screws. ","No",18,null,{"$f":"E1481*F1481","v":0}]
[]
[null,57,"Franke CNTX 700 A 32mm diameter Grade 304 18/10 stainless steel angle bars (code: 359877), size 256 x 618 x 95mm deep with Franke Fine Grip surface, plugged and screwed to the wall with stainless steel screws. ","No",16,null,{"$f":"E1483*F1483","v":0}]
[]
[null,null,"LETTERS, NAMEPLATES, ETC","H2"]
[]
[null,null,"Solid","H3"]
[]
[null,58,"Anodised aluminium plate with male or female symbol","No",23,null,{"$f":"E1489*F1489","v":0}]
[]
[null,59,"Anodised aluminium plate with paraplegic symbol","No",16,null,{"$f":"E1491*F1491","v":0}]
[]
[null,null,"SUNDRIES ","H2"]
[null,60,null,"No",140,null,{"$f":"E1494*F1494","v":0}]
[]
[null,61,"Standard aluminium and rubber weather bar","No",30,null,{"$f":"E1496*F1496","v":0}]
[]
[null,62,"150mm Chrome cabin hook to side of door","No",10,null,{"$f":"E1498*F1498","v":0}]
[]
[null,63,"Container ring, wall mounted for refuse bag","No",142,null,{"$f":"E1500*F1500","v":0}]
[]
[null,null,"Polyflor mats","H3"]
[]
[null,64,"Entrap \"PF 9100\" or similar approved all vinyl non woven continuous \"Z web\"pattened  mat 11.4mm thick","No",2,null,{"$f":"E1504*F1504","v":0}]
[]
[null,null,"PELMETS AND CURTAIN TRACKS","H2"]
[]
[null,null,"Yokota Racer","H3"]
[]
[null,65,"Chromium plated shower curtain or hanging rail 1480mm long including flanged end brackets","No",22,null,{"$f":"E1510*F1510","v":0}]
[]
[null,null,"Hospi-track"]
[]
[null,66,"Interbed cubicle curtain rails and track or similar approved secured through suspended ceiling grid system and supported from roof trusses","m",84,null,{"$f":"E1514*F1514","v":0}]
[]
[null,null,"STEEL LOCKERS","H2"]
[]
[null,null,"Greenfield steel lockers with Beige Powder coated finish","H3"]
[]
[null,67,"2 Door locker 380 x 450 x 1800mm high code: GB002","No",23,null,{"$f":"E1520*F1520","v":0}]
[]
[null,68,"Wall mounted drug cabinet 610 x 455 x 305mm high","No",6,null,{"$f":"E1522*F1522","v":0}]
[]
[null,null,"PINNING BOARDS, WRITING BOARDS, PROJECTION SCREENS, ETC","H2"]
[]
[null,null,"Parrot","H3"]
[]
[null,69,"Standard felt pinning board 1500 x 1200mm high plugged. (Type : PB 3)","No",41,null,{"$f":"E1528*F1528","v":0}]
[]
[null,null,"BUDGETARY ALLOWANCE","H2"]
[]
[null,70,"Allow an amount of R 100 000.00 (One Hundred Thousand Rands) for ironmongery not clearly defined, to be measured and priced in accordance with this Bill of Quantities and omitted in part or whole as instructed by Principal Agent ","Item","1.00","100 000.00","100 000.00"]
[]
[null,null,"Carried forward to summary of section",{"$nulls":3},{"$f":"SUM(G1332:G1533)","v":0}]
[]
[null,null,"SECTION NO. 2","H1"]
[]
[null,null,"BILL NO. 12","H1"]
[]
[null,null,"STRUCTURAL STEELWORK","H1"]
[]
[null,null,"Descriptions","H3"]
[]
[null,null,"Descriptions of bolts shall be deemed to include nuts and washers "]
[]
[null,null,"Descriptions of L-shaped and U-shaped anchor bolts shall be deemed to include bending, threading, nuts and washers and embedding in concrete"]
[]
[null,null,"Descriptions of expansion anchors and bolts and chemical anchors and bolts shall be deemed to include nuts, washers and mortices in brickwork or concrete"]
[]
[null,null,"STEEL COLUMNS AND BEAMS","H2"]
[]
[null,null,"GALVANISED STEEL COLUMNS AND BEAMS","H2"]
[]
[null,null,"Welded columns in single lengths with flat base, cap, bearer and connection plates, bolted to concrete","H3"]
[]
[null,1,"100 x 55mm x 8kg/m IPE 100 -section columns","t","6.08"]
[]
[null,null,"Welded beams in single lengths with flat bearer and connection plates, bolted to steel ","H3"]
[]
[null,2,"100 x 55mm x 8kg/m IPE 100 -section beams","t","9.06"]
[]
[null,3,"200 x 100mm x 22kg/m IPE 200 -section beams","t","6.91"]
[]
[null,4,"100 x 50mm x 2.5kg/m pergola","t","2.89"]
[]
[null,5,"254 x 146mm x 43kg/m I -section beams","t","2.81"]
[]
[null,null,"STEEL TRUSSES","H2"]
[]
[null,null,"Welded roof trusses of rectangular hollow section rafters, tie beams, rails, struts, braces, cleats, etc and flat bearer, gusset and connection plates, bolted to steel","H3"]
[]
[null,6,"1 (No) Monopitched trusses 6910 x 583m high extreme. (Truss No.1)","t","0.12"]
[]
[null,7,"2 (No) Monopitched trusses 9065 x 826m high extreme. (Truss No.2)","t","0.35"]
[]
[null,8,"1 (No) Monopitched trusses 9065 x 785m high extreme. (Truss No.2a)","t","0.18"]
[]
[null,9,"1 (No) Monopitched trusses 7270 x 660m high extreme. (Truss No.2a)","t","2.15"]
[]
[null,10,"6 (No) Double pitched trusses 12661 x 826m high extreme. (Truss No.3)","t","1.72"]
[]
[null,11,"1 (No) Monopitched trusses 4686 x 745m high extreme. (Truss No.3-a)","t","0.12"]
[]
[null,12,"4 (No) Double pitched trusses 12220 x 806m high extreme (Truss No.3-b)","t","1.08"]
[]
[null,13,"8 (No) Double pitched trusses 14127 x 806m high extreme (Truss No.3-c)","t","2.26"]
[]
[null,14,"2 (No) Double pitched trusses 14740 x 806m high extreme (Truss No.3-d)","t","0.55"]
[]
[null,15,"2 (No) Monopitched trusses 12661 x 826m high extreme (Truss No.4)","t","0.42"]
[]
[null,16,"5 (No) Double pitched trusses 12478 x 826m high extreme (Truss No.5)","t","0.51"]
[]
[null,17,"4 (No) Monopitched trusses 8962 x 386m high extreme (Truss No.5-b)","t","0.35"]
[]
[null,18,"1 (No) Monopitched trusses 7712 x 557m high extreme (Truss No.5-c)","t","0.15"]
[]
[null,19,"1 (No) Monopitched trusses 6005 x 448m high extreme (Truss No.5-d)","t","0.11"]
[]
[null,20,"1 (No) Double pitched trusses 19121 x 826m high extreme (Truss No.6)","t","0.40"]
[]
[null,21,"4 (No) Monopitched trusses 5781 x 517m high extreme (Truss No.7)","t","2.46"]
[]
[null,22,"2 (No) Double pitched trusses 14262 x 517m high extreme (Truss No.8)","t","0.53"]
[]
[null,23,"2 (No) Monopitched trusses 2918 x 510mm high extreme (Truss No.8-a)","t","0.09"]
[]
[null,24,"1 (No) Monopitched trusses 8938 x 774mm high extreme (Truss No.10)","t","0.19"]
[]
[null,25,"2 (No) Monopitched trusses 7448 x 600mm high extreme (Truss No.10-a)","t","0.30"]
[]
[null,26,"4 (No) Monopitched trusses 4765 x 621mm high extreme (Truss No.11-a)","t","0.41"]
[]
[null,27,"4 (No) Monopitched trusses 6175 x 805mm high extreme (Truss No.11)","t","2.55"]
[]
[null,28,"3 (No) Double pitched trusses 8725 x 386m high extreme (Truss No.11-b)","t","2.46"]
[]
[null,29,"1 (No) Monopitched trusses 5077 x 386m high extreme (Truss No.11-d)","t","0.17"]
[]
[null,30,"1 (No) Monopitched trusses 4451 x 386m high extreme (Truss No.11-e)","t","0.09"]
[]
[null,31,"2 (No) Monopitched trusses 4687 x 604m high extreme (Truss No.12)","t","0.11"]
[]
[null,32,"2 (No) Monopitched trusses 9518 x 826m high extreme (Truss No.13)","t","0.27"]
[]
[null,33,"4 (No) Double pitched trusses 13200 x 823m high extreme (Truss No.14)","t","1.15"]
[]
[null,34,"1 (No) Monopitched trusses 5695 x 669mm high extreme (Truss No.15)","t","0.12"]
[]
[null,35,"1 (No) Monopitched trusses 6738 x 826mm high extreme (Truss No.17)","t","0.15"]
[]
[null,36,"1 (No) Monopitched trusses 3754 x 488m high extreme (Truss No.18)","t","0.25"]
[]
[null,37,"2 (No) Monopitched trusses 4510 x 488m high extreme (Truss No.19)","t","0.19"]
[]
[null,null,"STEEL PURLINS, GIRTS, BRACING, ETC","H2"]
[]
[null,null,"Purlins and girts, bolted to steel","H3"]
[]
[null,38,"100 x 50 x 20 x 3mm CF Lipped channel","t","11.53"]
[]
[null,39,"Bottom tie 80 x 80 x 6 L","t","3.83"]
[]
[null,40,"Roof bracing 70 x 70 x 6 L","t","3.32"]
[]
[null,41,"Roof bracing 50 x 50 x 5 L","t","0.52"]
[]
[null,42,"20mm Flat section base plate","kg",88]
[]
[null,null,"BOLTS, FASTENERS, ETC","H2"]
[]
[null,null,"Bolts to columns, beams, etc","H3"]
[]
[null,43,"M12 chemical anchor","No",1120]
[]
[null,null,"Carried forward to summary of section",{"$nulls":3},{"$f":"SUM(G1540:G1655)","v":0}]
[]
[null,null,"SECTION NO. 2","H1"]
[]
[null,null,"BILL NO. 14","H1"]
[]
[null,null,"METALWORK","H1"]
[]
[null,null,"Descriptions of bolts, anchors, etc","H3"]
[]
[null,null,"Descriptions of bolts shall be deemed to include nuts and washers"]
[]
[null,null,"Descriptions of expansion anchors and bolts and chemical anchors and bolts shall be deemed to include nuts, washers and mortices in brickwork or concrete"]
[]
[null,null,"Items described as \"holed for bolt(s)\" shall be deemed to exclude the bolts unless otherwise described"]
[]
[null,null,"Items described as \"plugged\" shall be deemed to include screwing to fibre, plastic or metal plugs at not exceeding 600mm centres"]
[]
[null,null,"Aluminium doors, windows, etc","H3"]
[]
[null,null,"Doors and windows shall comply with AAAMSA design criteria  Doors and windows shall be supplied with protective tape and plastic and shall be removed only once surrounding trades have been completed  Tenderers are referred to architect's drawings annexed to this document for full details of windows, doors, etc"]
[]
[null,null,"The following certificates shall be provided prior to commencement of site work:1 A copy of the relevant AAAMSA Performance Test Certificate from the manufacturer/contractor supplying the architectural aluminium product "]
[]
[null,null,"2 A Certificate of Conformance confirming that anodising or powder coating has been processed in accordance with SANS 999 and SANS 1796 respectively"]
[]
[null,null,"3 A powder guarantee of not less than 15 years issued by the powder manufacturer.  The specific conditions contained in this guaranteed shall form part of the powder coating process"]
[]
[null,null,"4 A certified conformance confirming that glazing has been installed in accordance with SANS 0137 , ensuring that safety glazing materials have been installed in the mandatory areas and that each individual pane of safety glazing materials has been permanently marked "]
[]
[null,null,"5 A warranty from the manufacturer of the laminated safety glass and/or hermetically sealed glazing units guaranteeing the products against delamination and colour degradation for a period of not less than five years "]
[]
[null,null,"STEEL HANDRAILS, BALUSTRADES, ETC","H2"]
[]
[null,1,"42mm Hollow section continuous rails","m",54,null,{"$f":"E1690*F1690","v":0}]
[]
[null,null,"STEEL FLOORS","H2"]
[]
[null,2,"350 x 150 x 6mm mild steel plated neaty bolted to top of concrete slab as per manufacturer's recommendations","m2",54,null,{"$f":"E1694*F1694","v":0}]
[]
[null,null,"WELDED SCREENS, GATES,  ETC","H2"]
[]
[null,null,"Security gates to steel door frames","H3"]
[]
[null,3,"Mild steel swing gate 900 x 2100mm high with fixed panel of 5mm galvanised iron mesh (D40)","No",2,null,{"$f":"E1700*F1700","v":0}]
[]
[null,4,"Mild steel swing gate 1050 x 2000mm high with fixed panel of 5mm galvanised iron mesh (D41)","No",1,null,{"$f":"E1702*F1702","v":0}]
[]
[null,5,"Mild steel double swing gate 2500 x 2100mm high  with fixed louvred panels(D45)","No",3,null,{"$f":"E1704*F1704","v":0}]
[]
[null,6,"Mild steel double swing gate 1350 x 2100mm high  with fixed louvred panels(D45-1)","No",2,null,{"$f":"E1706*F1706","v":0}]
[]
[null,7,"Mild steel double swivel panel gate 2000 x 2100mm high  purpose made painted M.S tube dia 50mm frame with 5mm G.I mesh infill (D48)","No",1,null,{"$f":"E1708*F1708","v":0}]
[]
[null,8,"Mild steel double swing gate 1500 x 1360mm high  with fixed louvred panels(D46)","No",1,null,{"$f":"E1710*F1710","v":0}]
[]
[null,9,"Mild steel security screen gate 877 x 2100mm high (D18)","No",1,null,{"$f":"E1712*F1712","v":0}]
[]
[null,10,"Galvanised steel purpose made ïMat\"3 3 arm full height turnstile with bi-directional security 1500 x 2005mm high, and option for electronic access control or similar approved.(DR42)","No",4,null,{"$f":"E1714*F1714","v":0}]
[]
[null,11,"Screens/buglar bars","m2",236,null,{"$f":"E1716*F1716","v":0}]
[]
[null,null,"PRESSED STEEL DOOR FRAMES","H2"]
[]
[null,null,"1,2mm Double rebated frames suitable for half brick walls","H3"]
[]
[null,12,"Frame for door 750 x 2100mm high","No",19,null,{"$f":"E1722*F1722","v":0}]
[]
[null,13,"Frame for door 877 x 2400mm high","No",7,null,{"$f":"E1724*F1724","v":0}]
[]
[null,null,"1,2mm Double rebated frames suitable for one brick walls","H3"]
[]
[null,14,"Frame for door 877 x 2100mm high","No",59,null,{"$f":"E1728*F1728","v":0}]
[]
[null,15,"Frame for door 877 x 2400mm high","No",77,null,{"$f":"E1730*F1730","v":0}]
[]
[null,16,"Frame for double door 1500 x 2100mm high","No",2,null,{"$f":"E1732*F1732","v":0}]
[]
[null,17,"Frame for double door 1500 x 2400mm high","No",18,null,{"$f":"E1734*F1734","v":0}]
[]
[null,null,"STEEL ROLLER SHUTTERS ETC","H2"]
[]
[null,null,"Automated roller shutters fixed to brickwork or concrete","H3"]
[]
[null,18,"Purpose made punched (eyeball) steel range roller shutter size 4000 x 4000mm (DR 7)","No",1,null,{"$f":"E1740*F1740","v":0}]
[]
[null,19,"Purpose made punched (eyeball) steel range roller shutter size 3000 x 2100mm (DR 8)","No",1,null,{"$f":"E1742*F1742","v":0}]
[]
[null,20,"Purpose made punched steel range roller shutter size 1000 x 1350mm (DR 43)","No",4,null,{"$f":"E1744*F1744","v":0}]
[]
[null,null,"NATURAL ANODISED ALUMINIUM LOUVRE UNITS","H2"]
[]
[null,null,"Louvre panels screwed into aluminium frame","H3"]
[]
[null,21,"Louvre unit for 2400 x 300mm high opening including 6.38mm thick laminated clear safety glass (W28)","No",28,null,{"$f":"E1750*F1750","v":0}]
[]
[null,22,"Louvre unit for 2400 x 400mm high opening including 6.38mm thick laminated clear safety glass (W29)","No",4,null,{"$f":"E1752*F1752","v":0}]
[]
[null,null,"ALUMINIUM WINDOWS, DOORS, ETC","H2"]
[]
[null,null,"Note: Tenderers are referred to architect's drawings numbered A600 annexed to these bill of quantities/ accompanying these bills of quanatities for tender purposes"]
[]
[null,null,"Natural anodised aluminium windows glazed with 6.38mm thick laminated clear toughened glass  fitted in all panes with glazing putty and plugged to brickwork or concrete. With intercom or audio enhancer installation to Architect's approval","H3"]
[]
[null,23,"Purpose made aluminium window size 1692 x 1350mm high (W2)","No",2,null,{"$f":"E1760*F1760","v":0}]
[]
[null,24,"Purpose made aluminium window size 1423 x 1350mm high (W3)","No",1,null,{"$f":"E1762*F1762","v":0}]
[]
[null,25,"Purpose made aluminium window size 1423 x 1200mm high (W4)","No",2,null,{"$f":"E1764*F1764","v":0}]
[]
[null,26,"Purpose made aluminium window size 1200 x 1200mm high (W5)","No",1,null,{"$f":"E1766*F1766","v":0}]
[]
[null,27,"Purpose made aluminium window size1725 x 1350mm high (W6)","No",1,null,{"$f":"E1768*F1768","v":0}]
[]
[null,28,"Purpose made aluminium window size 1925 x 1350mm high (W8)","No",1,null,{"$f":"E1770*F1770","v":0}]
[]
[null,29,"Purpose made aluminium window size 1666 x 1200mm high (W9)","No",3,null,{"$f":"E1772*F1772","v":0}]
[]
[null,30,"Purpose made aluminium window size 1335 x 1200mm high (W10)","No",1,null,{"$f":"E1774*F1774","v":0}]
[]
[null,31,"Purpose made aluminium window size 1771 x 1200mm high (W11)","No",1,null,{"$f":"E1776*F1776","v":0}]
[]
[null,32,"Purpose made aluminium window size 870 x 1200mm high (W12)","No",2,null,{"$f":"E1778*F1778","v":0}]
[]
[null,33,"Purpose made aluminium window size 740 x 1200mm high (W12A)","No",1,null,{"$f":"E1780*F1780","v":0}]
[]
[null,34,"Purpose made aluminium window size 2240 x 1200mm high (W13)","No",1,null,{"$f":"E1782*F1782","v":0}]
[]
[null,35,"Purpose made aluminium window size 2135 x 1200mm high (W14)","No",3,null,{"$f":"E1784*F1784","v":0}]
[]
[null,null,"Natural anodised aluminium windows glazed with 6.38mm thick laminated clear toughened glass  fitted in all panes with glazing putty and plugged to brickwork or concrete. With polycarbonate bar burglar proofing to Architect's approval","H3"]
[]
[null,36,"Purpose made aluminium window size 1800 x 1200mm high (W16)","No",62,null,{"$f":"E1788*F1788","v":0}]
[]
[null,37,"Purpose made aluminium window size 1800 x 600mm high (W17)","No",1,null,{"$f":"E1790*F1790","v":0}]
[]
[null,38,"Purpose made aluminium window size 2000 x 1500mm high (W18)","No",3,null,{"$f":"E1792*F1792","v":0}]
[]
[null,39,"Purpose made aluminium window size 1500 x 1200mm high (W19)","No",3,null,{"$f":"E1794*F1794","v":0}]
[]
[null,40,"Purpose made aluminium window size 2185 x 1500mm high (W20)","No",3,null,{"$f":"E1796*F1796","v":0}]
[]
[null,41,"Purpose made aluminium window size 1200 x 1200mm high (W21)","No",1,null,{"$f":"E1798*F1798","v":0}]
[]
[null,42,"Purpose made aluminium window size 2000 x 1200mm high (W22)","No",4,null,{"$f":"E1800*F1800","v":0}]
[]
[null,43,"Purpose made aluminium window size 1800 x 600mm high (W25)","No",8,null,{"$f":"E1802*F1802","v":0}]
[]
[null,44,"Purpose made aluminium window size 1200 x 600mm high (W26)","No",1,null,{"$f":"E1804*F1804","v":0}]
[]
[null,45,"Purpose made aluminium window size 1800 x 2100mm high (W27)","No",1,null,{"$f":"E1806*F1806","v":0}]
[]
[null,46,"Purpose made aluminium window size 1200 x 1200mm high (W30)","No",1,null,{"$f":"E1808*F1808","v":0}]
[]
[null,47,"Purpose made aluminium window size 900 x 1200mm high (W31)","No",1,null,{"$f":"E1810*F1810","v":0}]
[]
[null,48,"Purpose made aluminium window size 2155 x 1200mm high (W32)","No",3,null,{"$f":"E1812*F1812","v":0}]
[]
[null,49,"Purpose made aluminium window size 2155 x 900mm high (W33)","No",1,null,{"$f":"E1814*F1814","v":0}]
[]
[null,50,"Purpose made aluminium window size 2380 x 2100mm high (W34)","No",2,null,{"$f":"E1816*F1816","v":0}]
[]
[null,null,"Natural anodised aluminium windows glazed with 6.38mm thick laminated obscure safety glass  fitted in all panes with glazing putty and plugged to brickwork or concrete. With polycarbonate bar burglar proofing to Architect's approval","H3"]
[]
[null,51,"Purpose made aluminium window size 600 x 750mm high (W15)","No",49,null,{"$f":"E1820*F1820","v":0}]
[]
[null,null,"Natural anodised purpose made aluminium doors, sidelights and fanlights with 8mm LOW Eclear laminated safety glass, as per smartglass intruderprufe with clip-on glazing beads and neoprene gasket seals as per manufacturer or similar approved plugged to brickwork or concrete","H3"]
[]
[null,52,"Purpose made aluminium single door size 877  x 2100mm high (D20)","No",6,null,{"$f":"E1824*F1824","v":0}]
[]
[null,53,"Purpose made aluminium single door size 900  x 2100mm high (D37)","No",3,null,{"$f":"E1826*F1826","v":0}]
[]
[null,54,"Purpose made aluminium double swing door size 2300  x 2465mm high with kick plate (D1)","No",1,null,{"$f":"E1828*F1828","v":0}]
[]
[null,55,"Purpose made aluminium double swing door size 1500  x 2400mm high with kick plate (D4)","No",3,null,{"$f":"E1830*F1830","v":0}]
[]
[null,56,"Purpose made aluminium double swing door size 1500  x 2465mm high with kick plate (D4E)","No",2,null,{"$f":"E1832*F1832","v":0}]
[]
[null,57,"Purpose made aluminium double swing door size 1500  x 2400mm high with kick plate (D5)","No",1,null,{"$f":"E1834*F1834","v":0}]
[]
[null,58,"Purpose made aluminium double swing door size 1500  x 2465mm high with kick plate (D6)","No",3,null,{"$f":"E1836*F1836","v":0}]
[]
[null,59,"Purpose made aluminium double swing door size 1500  x 2100mm high with kick plate (D6S)","No",1,null,{"$f":"E1838*F1838","v":0}]
[]
[null,60,"Purpose made aluminium double swing door size 1500  x 2400mm high with kick plate (D6-1)","No",1,null,{"$f":"E1840*F1840","v":0}]
[]
[null,null,"Hillaldam aluminium door","H3"]
[]
[null,61,"Hilaldamstackaway top hung sliding stacking door size 8000 x2720mm high (DF39)","No",1,null,{"$f":"E1844*F1844","v":0}]
[]
[null,null,"STEEL STRONGROOM DOORS, VENTILATORS, ETC","H2"]
[]
[null,null,"Chubbsafe Category 1 Strongroom doors etc suitable for 230mm walls fixed to concrete","H3"]
[]
[null,62,"Category 1 strongroom door and frame 850 x 1935mm high (D38, 47)","No",4,null,{"$f":"E1850*F1850","v":0}]
[]
[null,null,"ALUMINIUM FRAMED AND UNFRAMED SHOWER CUBICLE PANELS AND DOORS ETC","H2"]
[]
[null,null,"Aluminium framed shower cubicle panels and doors with frames, sliding gear, pivot hinges, cleats, stops, etc and toughened clear safety glass, plugged to tiled walls and sealed with silicone sealant","H4"]
[]
[null,63,"Pivot door 900 x 1800mm high","No",11,null,{"$f":"E1856*F1856","v":0}]
[]
[null,null,"Carried forward to summary of section",{"$nulls":3},{"$f":"SUM(G1687:G1857)","v":0}]
[]
[null,null,"SECTION NO. 2","H1"]
[]
[null,null,"BILL NO. 15","H1"]
[]
[null,null,"PLASTERING","H1"]
[]
[null,null,"SUPPLEMENTARY PREAMBLES","H2"]
[]
[null,null,"Plastering of concrete soffits","H3"]
[]
[null,null,"The plasterer should make sure that the surface to be plastered does not deviate from the required plane by more than 10mm. All high areas should be removed by hacking or cutting. Fill low areas by applying undercoats of plaster not exceeding 15m in thickness, apply one coat plaster to surface, leave to stiffen, strike off with a striker board, and wood float to an even surface and to a thickness of 10 - 15mm thick."]
[]
[null,null,"SCREEDS","H2"]
[]
[null,null,"3:1  Cement plaster screeds wood floated on concrete","H3"]
[]
[null,1,"30mm thick screed on floors and landings","m2",6057,null,{"$f":"E1876*F1876","v":0}]
[]
[null,2,"Average 30mm thick on floors to falls","m2",754,null,{"$f":"E1878*F1878","v":0}]
[]
[null,null,"GRANOLITHIC","H2"]
[]
[null,null,"Untinted granolithic on concrete","H3"]
[]
[null,3,"50-30mm Thick on floors and landings","m2",444,null,{"$f":"E1884*F1884","v":0}]
[]
[null,null,"INTERNAL PLASTER","H2"]
[]
[null,null,"One coat cement plaster and once coat rhinolite plaster","H3"]
[]
[null,4,"On walls","m2",18101,null,{"$f":"E1890*F1890","v":0}]
[]
[null,5,"On narrow widths","m2",346,null,{"$f":"E1892*F1892","v":0}]
[]
[null,null,"One coat cement plaster and once coat rhinolite plaster","H3"]
[]
[null,6,"On ceilings","m2",754,null,{"$f":"E1896*F1896","v":0}]
[]
[null,null,"CORNER PROTECTORS, DIVIDING STRIPS, ETC","H2"]
[]
[null,7,"Aluminium edge strips ","m",232,null,{"$f":"E1900*F1900","v":0}]
[]
[null,8,"3 x 32mm Flat section brass dividing strips between different floor finishes","m",35,null,{"$f":"E1902*F1902","v":0}]
[]
[null,9,"Polyflor Dual rail wall guard or similar approved ","m",344,null,{"$f":"E1904*F1904","v":0}]
[]
[null,10,"Polyflor  corner guard 1.25m high or similar approved ","m",80,null,{"$f":"E1906*F1906","v":0}]
[]
[null,11,"Mexiflexheavy duty truck guides or similar approved ","No",4,null,{"$f":"E1908*F1908","v":0}]
[]
[null,12,"Mexiflex2 x docking heavy duty truck D-types bumpers or similar approved","No",4,null,{"$f":"E1910*F1910","v":0}]
[]
[null,null,"Carried forward to summary of section",{"$nulls":3},{"$f":"SUM(G1870:G1911)","v":0}]
[]
[null,null,"SECTION NO. 2","H1"]
[]
[null,null,"BILL NO. 16","H1"]
[]
[null,null,"TILING","H1"]
[]
[null,null,"WALL TILING","H2"]
[]
[null,null,"200 x 200 x 4,7mm thick \"Johnson\"   glazed ceramic wall tiles or similar approved, (PC R350/m2 VAT incl. delivered to site), fixed with approved tie adhesive and fill joints with \"Ivory 328t\" or similar approved epoxy grouting, colour to architect","H3"]
[]
[null,1,"On walls","m2",1581,null,{"$f":"E1924*F1924","v":0}]
[]
[null,2,"On narrow widths, etc.","m2",30,null,{"$f":"E1926*F1926","v":0}]
[]
[null,null,"FLOOR TILING","H2"]
[]
[null,null,"Grade 1 acid resisting, slip resistant porcelain tile or similar approved, (PC R550.00/m2 VAT excl. delivered to site) bedded to a true and even surface in 3:1 cement mortar and with joints not exceeding 8mm wide fixed with TAL floor grout and layed at 90-degree angle as per detail drawings. All vertical exposed edges to be finished off with Kirk marketing type M-trim aluminium square edge trims - size to suite thickness of tile (B1)","H3"]
[]
[null,3,"On floors","m2",711,null,{"$f":"E1932*F1932","v":0}]
[]
[null,4,"Skirting of 100mm high cut tile  ","m",920,null,{"$f":"E1934*F1934","v":0}]
[]
[null,null,"47 x 47 x 6mm Thick grade 1 acid resisting, slip resistant porcelain mosaic tile on 300 x 300 sheets or similar approved, (PC R250/m2 incl. VAT delivered on site) bedded to a true and even surface in 3:1 cement mortar and with joints not exceeding 8mm wide fixed with TAL floor grout and layed at 90-degree angle as per detail drawings (B2)","H3"]
[]
[null,5,"On floors","m2",13,null,{"$f":"E1938*F1938","v":0}]
[]
[null,null,"300 x 300mm  Rich Autum slate tiles, slip resistant or similar approved, (PC 350/m2 incl. VAT delivered on site) tile bedded to a true and even surface in 3:1 cement mortar and with joints not exceeding 8mm wide fixed with TAL floor grout and layed at 90-degree angle as per detail drawings (B3)","H3"]
[]
[null,6,"On floors","m2",244,null,{"$f":"E1942*F1942","v":0}]
[]
[null,7,"Skirting of 100mm high cut tile  ","m",187,null,{"$f":"E1944*F1944","v":0}]
[]
[null,null,"Carried forward to summary of section",{"$nulls":3},{"$f":"SUM(G1923:G1944)","v":0}]
[]
[null,null,"SECTION NO 2","H1"]
[]
[null,null,"BILL NO. 16","H1"]
[]
[null,null,"PLUMBING AND DRAINAGE (PROVISIONAL)","H1"]
[]
[null,null,"Wire gratings","H3"]
[]
[null,null,"Descriptions of gutter outlets etc shall be deemed to include wire balloon gratings"]
[]
[null,null,"Stormwater channels","H3"]
[]
[null,null,"Descriptions of channels shall be deemed to include necessary excavation, surface preparation, compaction, etc, and disposal of surplus material on site"]
[]
[null,null,"French drains","H3"]
[]
[null,null,"Descriptions of french drains shall be deemed to include excavation, stone filling graded from 300mm diameter at bottom to 75mm diameter at top, geofabric filter blanket over stone, 300mm earthfilling over and disposal of surplus material on site"]
[]
[null,null,"Septic tanks","H3"]
[]
[null,null,"Descriptions of proprietary type septic tanks shall be deemed to include excavation, bedding and jointing, concrete base slabs, jointing to drains and backfilling, compaction, etc all in accordance with the manufacturer's instructions and disposal of surplus material on site"]
[]
[null,null,"Stainless steel basins, sinks, wash troughs, urinals, etc","H3"]
[]
[null,null,"Stainless steel for economy basins, domestic sinks and worktops shall be Type 430 (17/0)  Stainless steel for urinals, basins, quality sinks, wash troughs, institutional equipment, etc shall be Type 304 (18/8)  Stainless steel for laboratory sinks, photographic equipment, etc shall be Type 316 (18/8)  Units shall have standard aprons on all exposed edges and tiling keys against walls where applicable"]
[]
[null,null,"Sealing of edges","H3"]
[]
[null,null,"Outer edges of sinks, basins, baths, urinals, etc are to be sealed against adjacent surfaces with approved silicone"]
[]
[null,null,"PVC-U pipes and fittings","H3"]
[]
[null,null,"Sewer and drainage pipes and fittings shall be jointed and sealed with butyl rubber rings  Soil, waste and vent pipes and fittings shall be solvent weld jointed or sealed with butyl rubber rings"]
[]
[null,null,"PVC-U pressure pipes and fittings","H3"]
[]
[null,null,"Pipes of 50mm diameter and smaller shall be plain ended with solvent welded PVC-U loose sockets and fittings  Pipes of 63mm diameter and greater shall have sockets and spigots with push-in type integral rubber ring joints.  Bends shall be PVC-U and all other fittings shall be cast iron, all with similar push-in type joints"]
[]
[null,null,"High density polyethylene (HDPe) pipes and fittings","H3"]
[]
[null,null,"Pipes shall be type IV and of the class specified with compression fittings"]
[]
[null,null,"Polypropylene pipes","H3"]
[]
[null,null,"Polypropylene pipes 54mm diameter and smaller shall be seamless copper coloured Class 16 pipes jointed with heat welded thermoplastic or where so described compression fittings  Pipes shall be firmly fixed to walls, etc with coloured nylon snap-in pipe clips with provision for accommodating thermal movement and jointed and fixed strictly in accordance with the manufacturer's instructions"]
[]
[null,null,"Copper pipes","H3"]
[]
[null,null,"Pipes shall be hard drawn and half-hard pipes of the class described.  Class 0 (thin walled hard drawn) pipes shall not be bent.  Class 1 (thin walled half-hard), Class 2 (half-hard) and Class 3 (heavy walled half-hard) pipes shall only be bent with benders with inner and outer formers.  Fittings to copper waste, vent and anti-syphon pipes, capillary solder fittings and compression fittings shall be \"Cobra Watertech\" type.  Capillary solder fittings shall comply with ISO 2016"]
[]
[null,null,"Copper pipes are to be installed in accordance with the latest revision of the Code of Practice for Copper Plumbing soldering techniques.  Flux, solder, etc to be strictly in accordance with the manufacturer's requirements with special attention to copper flux composition"]
[]
[null,null,"Reducing fittings","H3"]
[]
[null,null,"Where fittings have reducing ends or branches they are described as \"reducing\" and only the largest end or branch size is given. Should the contractor wish to use other fittings and bushes or reducers he may do so on the understanding that no claim in this regard will be entertained"]
[]
[null,null,"Fixing of pipes","H3"]
[]
[null,null,"Unless specifically otherwise stated, descriptions of pipes shall be deemed to include fixing to walls, etc, casting in, building in or suspending not exceeding 1m below suspension level"]
[]
[null,null,"Paper wrapping to pipes","H3"]
[]
[null,null,"Pipes chased into brickwork must be wrapped with two layers of stout brown paper tied with wire.  Rates are to include for wrapping around joints and fittings"]
[]
[null,null,"Disinfection of water pipework","H3"]
[]
[null,null,"Water pipework is to be disinfected at completion"]
[]
[null,null,"Densyl petrolatum anti-corrosion tape","H3"]
[]
[null,null,"Pipes to be taped shall be coated with the appropriate primer and the tape shall be applied in the appropriate widths and with 15mm overlaps  Couplings and fittings to pipes shall be taped in strict accordance with the manufacturer's instructions"]
[]
[null,null,"Prices for wrapping of pipes shall include for all work as described to couplings in the length"]
[]
[null,null,"Laying, backfilling, bedding, etc of pipes","H3"]
[]
[null,null,"Pipes shall be laid and bedded in accordance with manufacturers' instructions and trenches shall be carefully backfilled "]
[]
[null,null,"Where no manufacturers' instructions exist, pipes shall be laid in accordance with the relevant section of SANS 2001"]
[]
[null,null,"General","H3"]
[]
[null,null,"Descriptions of cast iron roof outlets shall be deemed to include joints to pipes and casting into concrete (adaptors for joints to PVC pipes, etc are given separately)  Descriptions of overflow pipes where measured in number, shall be deemed to include joints to cisterns and splay cut ends"]
[]
[null,null,"Descriptions of pipes laid in and including trenches and of inspection chambers, catchpits, etc shall be deemed to include excavation, bedding, backfilling, compaction to a minimum of 90% Mod AASHTO density and disposal of surplus material on site"]
[]
[null,null,"Descriptions of service pipes and flexible connecting pipes shall be deemed to include connections to taps, cisterns, etc and to steel pipes (adaptors for connections to copper pipes, etc are given separately)"]
[]
[null,null,"Descriptions of WC pans, slop hoppers, etc shall be deemed to include for joints to soil pipes (pan connectors are separately measured)"]
[]
[null,null,"As-built drawings","H3"]
[]
[null,null,"Where required, the contractor shall prepare an updated set of as-built drawings.  At completion of the contract the contractor shall hand these drawings to the principal agent for reproducing onto the originals for handing over to the employer (provision for allowance of as-built drawings elsewhere)"]
[]
[null,null,"RAINWATER DISPOSAL","H2"]
[]
[null,null,"Galvanised sheet iron","H3"]
[]
[null,1,"150 x 150mm Eaves gutters","m",797,null,{"$f":"E2046*F2046","v":0}]
[]
[null,2,"100 x 75mm Rainwater pipes","m",196,null,{"$f":"E2048*F2048","v":0}]
[]
[null,3,"Extra over rainwater pipe for bend","No",132,null,{"$f":"E2050*F2050","v":0}]
[]
[null,4,"Extra over rainwater pipe for shoe","No",66,null,{"$f":"E2052*F2052","v":0}]
[]
[null,null,"SANITARY FITTINGS ETC","H2"]
[]
[null,null,"Vaal or similar approved","H3"]
[]
[null,5,"Vaal Sanitaryware Hibiscus vitreous china basin colour White (Code: 7050), size 510 x 405mm with two taphole, no chainstay hole. Bolted to wall with two 10mm bolts (Code: 8448Z0) and sealed with silicone sealant where basin meets wall.","No",21,null,{"$f":"E2058*F2058","v":0}]
[]
[null,6,"Vaal Sanitaryware Sola Medical 610 ceramic vitreous china hospital basin colour White (code: 703800), size 610 x 400mm bolted to wall with two 10mm bolts (code: 8448Z0) and sealed with silicone sealant where basin meets wall.","No",69,null,{"$f":"E2060*F2060","v":0}]
[]
[null,7,"Vaal Sanitaryware Hibiscus vitreous china close coupled suite colour White, comprising 90º outlet open rim pan (Code: 772654) with matching 6/3 litre top dual flush cistern (Code: 772656) including lid and fitments and Jazz Thermoset seat (code: 8531Z0).","No",25,null,{"$f":"E2062*F2062","v":0}]
[]
[null,8,"Vaal sanitary ware vitreous china \"Pearl Paraplegic\" semi close couple 90° outlet open rim washdown pan and matching 9 litre cistern complete with lid, fitments and purpose made C.P side-flush lever (left or right) supplied with purpose made urea seat and cover (code:7300SC)","No",16,null,{"$f":"E2064*F2064","v":0}]
[]
[null,9,"Vaal Sanitaryware 600 x 385 x 380mm Lavatera white vitreous china wall mounted top inlet urinal (code: 705427) including 38mm chromium plated domical grating (code: 8787) and chromium plated top inlet spreader spreader (code: 7042Z0), flush valve (by others - Recommended:  Cobra FJ6000) and flush pipe (by others - Recommended: Cobra FJT5.5), fixed on and including two hanger brackets (code: 8127Z0)(urinal division).","No",4,null,{"$f":"E2066*F2066","v":0}]
[]
[null,10,"Vaal Sanitaryware Hibiscus 510 x 405mm white china rounded basin with two tapholes, intergarated overflow (product code: 7050)","No",16,null,{"$f":"E2068*F2068","v":0}]
[]
[null,null,"Franke or similar approved","H3"]
[]
[null,11,"Franke model PLN611 or similar approved Grade 304 18/10 polished stainless steel single end bowl insert sink (code: 821047), overall size 800 x 460mm wide with one 340 x 370 x 150mm deep bowl, fitted onto cupboard (elsewhere measured) and including sealing all round sink with sealicone sealent","No",29,null,{"$f":"E2072*F2072","v":0}]
[]
[null,12,"Franke Model WB001 Wash Hand Basin, 520 x 432 , one piece pressed, manufactured from Grade 18/10 stainless steel without splashback and tiling key","No",1,null,{"$f":"E2074*F2074","v":0}]
[]
[null,13,"Franke Model LDL Drop-on Washtrough 600 x 500 x 257mm. Unit to be manufactured from Grade 304 (18/10) Stainless Steel, 0,9mm gauge. Unit to include a pressed bowl 525 x 425 x 257mm deep (43 litres) with a 40mm waste outlet. Unit to be fixed to the wall with a pair of galvanised mild steel Falcon Brackets (brackets optional, please specify).","No",6,null,{"$f":"E2076*F2076","v":0}]
[]
[null,null,"WASTE UNIONS ETC","H2"]
[]
[null,null,"Cobra Watertech or similar approved","H3"]
[]
[null,14,"Cobra Watertech 32mm chrome plated slotted basin waste union (no chain or stay) (Code: 303)","No",37,null,{"$f":"E2082*F2082","v":0}]
[]
[null,15,"Cobra Watertech 32mm chrome plated unslotted basin waste union (no chain or stay) (Code: 308)","No",69,null,{"$f":"E2084*F2084","v":0}]
[]
[null,16,"Cobra Watertech 32mm chrome plated unslotted sink waste union (no chain or stay) (Code: 316)","No",6,null,{"$f":"E2086*F2086","v":0}]
[]
[null,17,"Cobra Watertech 32mm chrome plated anti-theft plug (Code: 309-32).","No",37,null,{"$f":"E2088*F2088","v":0}]
[]
[null,18,"Cobra Watertech 32mm chrome plated anti-theft plug (Code: 309-40).","No",35,null,{"$f":"E2090*F2090","v":0}]
[]
[null,19,"Cobra Ref. 316 bath or sink waste with 70mm diameter flange, 45mm long shank, backnut, plug and chain","No",30,null,{"$f":"E2092*F2092","v":0}]
[]
[null,null,"TRAPS ETC","H2"]
[]
[null,null,"Marley or similar approved","H3"]
[]
[null,20,"40 x 300mm Sink combination for single bowl with deepseal \"P\" trap","No",29,null,{"$f":"E2098*F2098","v":0}]
[]
[null,21,"uPVC anti-vac bottle trap (code: DB20A/V)","No",142,null,{"$f":"E2100*F2100","v":0}]
[]
[null,null,"Cobra Watertech or similar approved","H3"]
[]
[null,22,"Cobra Watertech 40mm chrome plated deep seal bottle trap with outlet for 50mm PVC (Code: 345/50). ","No",4,null,{"$f":"E2104*F2104","v":0}]
[]
[null,23,"Cobra Watertech 40mm rough brass shower P trap (Code: 373SQ) with shallow seal and chrome plated square grating.","No",11,null,{"$f":"E2106*F2106","v":0}]
[]
[null,null,"PolyDrains Shower drains/channel or similar approved","H3"]
[]
[null,24,"Polyflor Grade 304 stainless steel shower drain SD1v (SO 50) round with  50mm side outlet and fat trap, fitted with a special nylon holding clamp to secure Polyfloor vinyl sheeting (code 403234) ","No",11,null,{"$f":"E2110*F2110","v":0}]
[]
[null,null,"SANITARY PLUMBING","H1"]
[]
[null,null,"SANITARY PLUMBING","H2"]
[]
[null,null,"uPVC, soil and vent pipes","H3"]
[]
[null,25,"50mm Pipes encased on concrete below floor slab","m",196,null,{"$f":"E2118*F2118","v":0}]
[]
[null,26,"110mm Pipes","m",136,null,{"$f":"E2120*F2120","v":0}]
[]
[null,null,"Extra over uPVC, soil and vent pipes for fittings","H3"]
[]
[null,27,"110mm Access bend","No",41,null,{"$f":"E2124*F2124","v":0}]
[]
[null,28,"110mm Pan connector","No",41,null,{"$f":"E2126*F2126","v":0}]
[]
[null,29,"110mm Access junction","No",41,null,{"$f":"E2128*F2128","v":0}]
[]
[null,30,"110mm Junction","No",41,null,{"$f":"E2130*F2130","v":0}]
[]
[null,31,"110mm Access bend with anti-syphon horn","No",41,null,{"$f":"E2132*F2132","v":0}]
[]
[null,32,"110mm Access double junction","No",41,null,{"$f":"E2134*F2134","v":0}]
[]
[null,33,"110mm Air vent cowl","No",41,null,{"$f":"E2136*F2136","v":0}]
[]
[null,34,"110mm GI vent valve","No",41,null,{"$f":"E2138*F2138","v":0}]
[]
[null,null,"SOIL DRAINAGE","H2"]
[]
[null,null,"uPVC gulleys","H3"]
[]
[null,35,"110mm Gulley not exceeding 750mm deep with standard concrete gulley surround","No",66,null,{"$f":"E2144*F2144","v":0}]
[]
[null,null,"TAPS, VALVES, ETC","H2"]
[]
[null,null,"Cobra Watertech","H3"]
[]
[null,36,"Cobra Watertech Noka 15mm chrome plated basin mixer with cast fixed outlet, pop-up waste, mounting kit and angle valves (code: NA-952) and and water saving aerator (code: P-WS/6) ","No",27,null,{"$f":"E2150*F2150","v":0}]
[]
[null,37,"Cobra Watertech Medical mixer (code: 515/055H-21) wall mounted and water saving aerator (code: P-WS/6); chrome plated 15mm Elbow action wall type with 1/4 turn ceramic disk head parts, bent inlet connections at 178mm fixed centres, wall flanges and swan nek outlet (code: S-044) ","No",94,null,{"$f":"E2152*F2152","v":0}]
[]
[null,38,"Cobra Watertech 15mm chrome plated wall mounted medical mixer (Code: 505-21B) pillar taps (hot & cold) square pattern elbow action with 1/4 ceramic disk head part and blue for cold water applications and flanged backnut and water saving aerator (code: WS/6) , and angle regulating valves","No",17,null,{"$f":"E2154*F2154","v":0}]
[]
[null,39,"Cobra Watertech Carina 15mm chrome wall mounted sink mixer with overarm swivel outlet, adjustable wall flanges and exposed connections (Code: 166/041CA and S-041).","No",4,null,{"$f":"E2156*F2156","v":0}]
[]
[null,40,"Cobra Watertech chrome plated 15mm outlet x 215mm long with 27mm offset urinal connection pipe and head (Code: FJT5.4).","No",4,null,{"$f":"E2158*F2158","v":0}]
[]
[null,41,"Cobra Watertech chrome plated junior flashmaster (code: J6000)","No",4,null,{"$f":"E2160*F2160","v":0}]
[]
[null,42,"Cobra Watertech Stella Bright 15mm undertile shower set consisting of FI x FI undertile stoptaps, shower arm with sliding wall flange and Pretex shower head with ball joint connection in Chrome ","No",11,null,{"$f":"E2162*F2162","v":0}]
[]
[null,43,"1 x 832/350F Angle regulating valve including 350mm flexi hose","No",319,null,{"$f":"E2164*F2164","v":0}]
[]
[null,null,"ELECTRIC WATER HEATERS","H2"]
[]
[null,null,"Kwikot","H3"]
[]
[null,44,"Kwikot 200 Litre Superline 600 Dual electric water heater (Code : DSG-200-5) complying with SABS 151-2002, overall size 990 x 480mm high, operating at 400kPa with temperature and pressure safety relief valve including 20mm female draincock with inlet compression. Geyser to be installed horizontally in roof space with 1160 x 560mm wide polyethylene drip tray with union and back nut connected to 20mm PVC overflow pipe taken out at eaves (Code : GSTP-1200) and 15mm pipe work including two 15mm vacuum breakers (Code : KHN4.150CX) installed on hot and cold water supply. Installation to include a 15mm 400kPa Kwikot Mono control and expansion relief valve (Code : KHN3.104), all in accordance with SANS 10254, connected to single phase electrical power supply with isolator 1m away from connection on geyser.","No",6,null,{"$f":"E2170*F2170","v":0}]
[]
[null,null,"TESTING","H2"]
[]
[null,45,"Provide all necessary water, etc., for and test the whole of the plumbing services, sanitary fittings, pumps, etc., and in stages as deemed necessary, including chlorination, complete to the satisfaction of  the architect and the local authority, replace any defective work free of charge, including any necessary re-testing and leave in perfect condition upon completion","Item",1,null,{"$f":"E2174*F2174","v":0}]
[]
[null,46,"Allow for testing and commisioning the whole of the plumbing services, sanitary fittings, pumps, etc.,  including any necessary re-setting, etc., for optimal perfomance of  the entire system to duration of  the contract, maintenance and guarantee period  ","Item",1,null,{"$f":"E2176*F2176","v":0}]
[]
[null,null,"AS-BUILT DRAWINGS","H2"]
[]
[null,47,"Allow for an updated set of as-built drawings to be handed to the architect at completion of the contract ","Item",1,null,{"$f":"E2180*F2180","v":0}]
[]
[null,null,"BUDGETARY ALLOWANCE","H2"]
[]
[null,48,"Allow an amount of R 150 000.00 (One Hundred and Fifty Thousand Rands) for any unforeseen plumbing and drainage, to be measured and priced in accordance with this Bill of Quantities and omitted in part or whole as instructed by Principal Agent ","Item","1.00","150 000.00","150 000.00"]
[]
[null,null,"Carried forward to summary of section",{"$nulls":3},{"$f":"SUM(G2015:G2184)","v":0}]
[]
[null,null,"SECTION NO. 2","H1"]
[]
[null,null,"BILL NO. 17","H1"]
[]
[null,null,"GLAZING","H1"]
[]
[null,null,"MIRRORS, ETC","H2"]
[]
[null,null,"Franke","H3"]
[]
[null,1,"Franke M 600 HD 13mm Grade 304 18/10 stainless steel mirrors (code: 359922), size 500 x 600 x 13mm deep, concealed thief resistant fixings, plugged and screwed to the wall with stainless steel screws, or similar approved ","No",142,null,{"$f":"E2198*F2198","v":0}]
[]
[null,2,"500 x 500 Glass block","m2",39,null,{"$f":"E2200*F2200","v":0}]
[]
[null,null,"Carried forward to summary of section",{"$nulls":3},{"$f":"SUM(G2189:G2200)","v":0}]
[]
[null,null,"SECTION NO. 2","H1"]
[]
[null,null,"BILL NO. 18","H1"]
[]
[null,null,"PAINTWORK","H1"]
[]
[null,null,"ON FLOATED PLASTER","H2"]
[]
[null,null,"Apply one coat Plascon Merit Plaster Primer, two coats Plascon Double Velvet Pure Acrylic paint or similar approved to interior walls, columns, etc. Colour: \"Mushroom (Y1-D2-2)\"","H3"]
[]
[null,1,"On internal walls","m2",15052,null,{"$f":"E2214*F2214","v":0}]
[]
[null,null,"ON SMOOTH CONCRETE","H2"]
[]
[null,null,"Prepare ares with slash coat and apply one coat universal undercoat and two coats Plascon Acrylic White","H3"]
[]
[null,2,"On soffits","m2",754,null,{"$f":"E2220*F2220","v":0}]
[]
[null,null,"ON FIBRE-CEMENT","H2"]
[]
[null,null,"Prepare surfaces, apply Earthcote Alkali resisting primer diluted 20% with turpentine. Apply two coats Peinture, appplied at 3m2 per litre per coat all as per manufacturer's specifications and application instructions","H3"]
[]
[null,3,"On fascias and barge boards","m2",1231,null,{"$f":"E2226*F2226","v":0}]
[]
[null,null,"One coat undercoat with Universal undercoat and two coats Plascon \"Polvin White\"","H3"]
[]
[null,4,"On ceilings and cornices","m2",881,null,{"$f":"E2230*F2230","v":0}]
[]
[null,null,"ON METAL","H2"]
[]
[null,null,"One coat Universal undercoat and two coats Plascon \"Valvaglo\" colour Battleship Grey G13","H3"]
[]
[null,5,"On door frames","m2",229,null,{"$f":"E2236*F2236","v":0}]
[]
[null,6,"On gates","m2",575,null,{"$f":"E2238*F2238","v":0}]
[]
[null,null,"ON WOOD","H2"]
[]
[null,null,"One coat undercoat with Universal undercoat and two coats Plascon \"Velvaglo\"","H3"]
[]
[null,7,"On doors","m2",547,null,{"$f":"E2244*F2244","v":0}]
[]
[null,null,"Prepare surface and apply three coats clear matt varnish plascon polyurethane matt varnish, suede x 44 or similar approved","H3"]
[]
[null,8,"On doors","m2",218,null,{"$f":"E2248*F2248","v":0}]
[]
[null,null,"Carried forward to summary of section",{"$nulls":3},{"$f":"SUM(G2207:G2248)","v":0}]
[]
[null,null,"SECTION NO. 2","H1"]
[]
[null,null,"BILL NO. 19","H1"]
[]
[null,null,"PROVISIONAL SUMS","H1"]
[]
[null,null,"General","H4"]
[]
[null,null,"Work for which budgetary allowances are provided will be measured and valued in accordance with the relevant building agreement, building contract and deducted in whole or in part if not required without any compensation for loss of profit on the said allowances"]
[]
[null,null,"Prime cost amounts and provisional sums are net.  Prime cost amounts shall include for delivery to site of all articles concerned  Provisional sums are for material and equipment supplied and installed complete by firms of specialists"]
[]
[null,null,"Profit","H4"]
[]
[null,null,"Where stated, the contractor may allow for profit if required"]
[]
[null,null,"General attendance on nominated/selected subcontractors","H4"]
[]
[null,null,"The item \"attendance\" which follows each provisional sum for nominated/selected subcontractors' work, shall be deemed to cover all the contractor's costs incurred in providing free of charge to the nominated/selected subcontractors the contractor's duties as described in clause 12.2 of the JBCC N/S Subcontract Agreement"]
[]
[null,null,"Special attendance on nominated/selected subcontractors","H4"]
[]
[null,null,"Where \"special attendance\" such as unloading, storing, placing in position, providing special power supplies, specific hoisting, cranage and scaffolding requirements, provision of temporary casing and/or other specific protection of the works, special security and clearing away rubbish is required, a separate item describing the specific requirements in detail is to be provided for the pricing of such requirements"]
[]
[null,null,"Builder's work","H4"]
[]
[null,null,"Builder's work in connection with specialist services is given elsewhere in these bills of quantities"]
[]
[null,null,"BUDGETARY ALLOWANCES","H2"]
[]
[null,null,"PROVISIONAL SUMS FOR NOMINATED/SELECTED SUBCONTRACT WORKS","H2"]
[]
[null,null,"EXPANDED PUBLIC WORKS PROGRAMME (EPWP)","H2"]
[]
[null,1,"Provide the sum of R 1 700,000.00 (One Million, Seven Hundred Thousand Rands) for the Expanded Public Works Programme, to be expended as the Agent/Representative may direct or deduct in whole or in part, if not required ","Item","1.00","1 700 000.00","1 700 000.00"]
[]
[null,2,"Profit","%IT"]
[]
[null,3,"Attendance","%IT"]
[]
[null,null,"KITCHEN CUPBOARDS","H2","0.00"]
[]
[null,4,"Provide the sum of R 600,000.00 (Six Hundred Thousand Rands) for the supply and installation of Kitchen Cupboards complete, to be expended as the Agent/Representative may direct or deduct in whole or in part, if not required ","Item","1.00","600 000.00","600 000.00"]
[]
[null,5,"Profit","%IT"]
[]
[null,6,"Attendance","%IT"]
[]
[null,null,"BUILT-IN CUPBOARDS","H2"]
[]
[null,7,"Provide the sum of R 400,000.00 (Four Hundred Thousand Rands) for the supply and installation of Built-in Cupboards complete, to be expended as the Agent/Representative may direct or deduct in whole or in part, if not required ","Item","1.00","400 000.00","400 000.00"]
[]
[null,8,"Profit","%IT"]
[]
[null,9,"Attendance","%IT"]
[]
[null,null,"COUNTERS","H2"]
[]
[null,10,"Provide the sum of R 60,000.00 (Sixty Thousand Rands) for the supply and installation of Counters complete, to be expended as the Agent/Representative may direct or deduct in whole or in part, if not required ","Item","1.00","60 000.00","60 000.00"]
[]
[null,11,"Profit","%IT"]
[]
[null,12,"Attendance","%IT"]
[]
[null,null,"VANITY TOPS","H2"]
[]
[null,13,"Provide the sum of R 50,000.00 (Fifty Thousand Rands) for the supply and installation of Caesarstone counter tops complete, to be expended as the Agent/Representative may direct or deduct in whole or in part, if not required ","Item","1.00","50 000.00","50 000.00"]
[]
[null,14,"Profit","%IT"]
[]
[null,15,"Attendance","%IT"]
[]
[null,null,"SHELVES","H2"]
[]
[null,16,"Provide the sum of R 60,000.00 (Sixty Thousand Rands) for the supply and installation of metal Shelves complete, to be expended as the Agent/Representative may direct or deduct in whole or in part, if not required ","Item","1.00","60 000.00","60 000.00"]
[]
[null,17,"Profit","%IT"]
[]
[null,18,"Attendance","%IT"]
[]
[null,null,"STAINLESS STEEL SEATING","H2"]
[]
[null,19,"Provide the sum of R 625,000.00 (Six Hundred and Twenty Five Thousand Rands) for the supply and installation of Perforated Stainless Steel Seating and  custom made stainless steel benches complete, to be expended as the Agent/Representative may direct or deduct in whole or in part, if not required ","Item","1.00","625 000.00","625 000.00"]
[]
[null,20,"Profit","%IT"]
[]
[null,21,"Attendance","%IT"]
[]
[null,null,"LANDSCAPING","H2"]
[]
[null,22,"Provide the sum of R 625,000.00 (Six Hundred and Twenty Five Thousand Rands) for the supply and installation of landscaping, to be expended as the Agent/Representative may direct or deduct in whole or in part, if not required ","Item","1.00","625 000.00","625 000.00"]
[]
[null,23,"Profit","%IT"]
[]
[null,24,"Attendance","%IT"]
[]
[null,null,"SIGNAGE","H2"]
[]
[null,25,"Provide the sum of R 500,000.00 (Five Hundred Thousand Rands) for the supply and installation of internal and external signage complete, to be expended as the Agent/Representative may direct or deduct in whole or in part, if not required ","Item","1.00","500 000.00","500 000.00"]
[]
[null,26,"Profit","%IT"]
[]
[null,27,"Attendance","%IT"]
[]
[null,null,"VERTICAL BLINDS","H2"]
[]
[null,28,"Provide the sum of R 200,000.00 (Two Hundred Thousand Rands) for the supply and installation of vertical blinds complete, to be expended as the Agent/Representative may direct or deduct in whole or in part, if not required ","Item","1.00","200 000.00","200 000.00"]
[]
[null,29,"Profit","%IT"]
[]
[null,30,"Attendance","%IT"]
[]
[null,null,"Carried forward to summary of section",{"$nulls":3},{"$f":"SUM(G2282:G2362)","v":0}]
[]
[null,1,"Demolitions","Page",null,0,{"$f":"G781","v":0}]
[]
[null,2,"Earthworks (provisional)","Page",null,0,{"$f":"G879","v":0}]
[]
[null,3,"Concrete, formwork and reinforcement","Page",null,0,{"$f":"G1001","v":0}]
[]
[null,4,"Precast concrete","Page",null,0,{"$f":"G1023","v":0}]
[]
[null,5,"Masonry","Page",null,0,{"$f":"G1107","v":0}]
[]
[null,6,"Waterproofing","Page",null,0,{"$f":"G1145","v":0}]
[]
[null,7,"Roof coverings, claddings, etc","Page",null,0,{"$f":"G1169","v":0}]
[]
[null,8,"Carpentry and joinery","Page",null,0,{"$f":"G1247","v":0}]
[]
[null,9,"Ceilings, partitions and access flooring","Page",null,0,{"$f":"G1295","v":0}]
[]
[null,10,"Floor coverings, wall linings, etc","Page",null,0,{"$f":"G1323","v":0}]
[]
[null,11,"Ironmongery","Page",null,0,{"$f":"G1534","v":0}]
[]
[null,12,"Structural steelwork","Page",null,0,{"$f":"G1656","v":0}]
[]
[null,13,"Metalwork","Page",null,0,{"$f":"G1858","v":0}]
[]
[null,14,"Plastering","Page",null,0,{"$f":"G1912","v":0}]
[]
[null,15,"Tiling","Page",null,0,{"$f":"G1946","v":0}]
[]
[null,16,"Plumbing and drainage","Page",null,0,{"$f":"G2186","v":0}]
[]
[null,17,"Glazing","Page",null,0,{"$f":"G2202","v":0}]
[]
[null,18,"Paintwork","Page",null,0,{"$f":"G2250","v":0}]
[]
[null,19,"Provisional sums","Page",null,0,{"$f":"G2364","v":0}]
[]
[null,null,"SECTION SUMMARY - BUILDING WORK",{"$nulls":3},{"$f":"SUM(G2366:G2403)","v":0}]
[]
[]
[null,null,"SECTION NO. 3","H1"]
[]
[null,null,"BILL NO. 1","H1"]
[]
[null,null,"SERIES 1000 : GENERAL","H1"]
[]
[null,null,"SECTION 1200 : GENERAL REQUIREMENTS AND PROVISIONS","H2"]
[]
[null,null,"B 12.01: Excavation for locating, protecting, or shifting of existing services"]
[]
[null,null,"(a) Excavating soft material with hand tools which are not mechenically or pneumatically powered within the following depth rangesbelow the surface level:","H3"]
[]
[null,1,"(i) 0.00 m to 1.5 m","m3",null,null,"Rate only"]
[]
[null,2,"(i) Extra -Over sub-item 12.01 (a) 1.5 m to 3 m","m3",null,null,"Rate only"]
[]
[null,null,"B 12.02: Backfilling of excavations made for locating, protecting, adjusting or shifting existing services","H3"]
[]
[null,3,"(a) Using the imported materials","m3",null,null,"Rate only"]
[]
[null,null,"SECTION 1500 : ACCOMMODATION OF TRAFFIC","H2"]
[]
[null,null,"1500: ACCOMMODATION OF TRAFFIC","H3"]
[]
[null,4,"15.01: Accommodating traffic and maintaining temporary deviations. (Including trafficwhere road is constructed in half widths)","km",1]
[]
[null,5,"15.02: a) Shaping of temporary deviations   (8 m wide)","km",1]
[]
[null,6,"15.03: Temporary traffic control facilities a) Flagmen","man-da",500]
[]
[null,7,"b) Portable STOP and GO-RY signs","No",4]
[]
[null,8,"c) Temporary traffic control signals","No",null,null,"Rate only"]
[]
[null,9,"d) Amber flicker light (55 W intensity)","No",null,null,"Rate only"]
[]
[null,10,"h) Delineators (TW401 & TW402)   (ii) Mounted back to back (1000 mm high x       250 mm wide)","No",15]
[]
[null,11,"i) Movable barricade/road sign combination","No",8]
[]
[null,12,"j) Traffic cones (750 mm high)","No",20]
[]
[null,13,"n) Provision of high visibility safety jackets    and safety hats (pairs)","No",10]
[]
[null,14,"B 15.14: Allow provisional sum for :a) Repair of damaged temporary road signs   and delineators","SUM",1]
[]
[null,15,"b) Replacement of damaged temporary road    signs and delineators","SUM",1]
[]
[null,null,"SECTION 1600 : OVERHAUL","H2"]
[]
[null,null,"OVERHAUL","H3"]
[]
[null,16,"16.01: Haul distance 0,5 km up to 1,0 km (restricted overhaul for tippers on insitu material)","m3",7500]
[]
[null,null,"16.02: Haul distance in excess of 1,0 km (ordinary overhaul)","H3"]
[]
[null,17,"(i) to borrow pits 5km from site ","m3-km",100000]
[]
[null,18,"(ii) to borrow pits 15km from site ","m3-km",300000]
[]
[null,null,"SECTION 1700 : CLEARING AND GRUBBING","H2"]
[]
[null,null,"1700: CLEARING AND GRUBBING","H3"]
[]
[null,null,"B 17.01: Clearing and grubbing of ","H3"]
[]
[null,19,"a) Normal areas :   i) Within the road reserve","m2",6592]
[]
[null,20,"   ii) In borrow pits","m2",10000]
[]
[null,21,"  iii) building platform","m2",15000]
[]
[null,22,"b) Existing fill embankments with slopes steeper than 1:4","m2",100]
[]
[null,null,"17.02: Removal and grubbing of large trees and tree stumps","H3"]
[]
[null,23,"a) Girth exceeding 1 m up to and including 2 m","No",10]
[]
[null,24,"b) Girth exceeding 2 m up to and including 3 m","No",5]
[]
[null,null,"SECTION 1800 : DAYWORKS","H2"]
[]
[null,null,"DAYWORKS","H3"]
[]
[null,null,"B 18.01: Labourers ","H3"]
[]
[null,25,"(i) Unskilled","H",32,null,"Rate only"]
[]
[null,26,"(ii) Semi-skilled","H",32,null,"Rate only"]
[]
[null,27,"(iii) Skilled","H",32,null,"Rate only"]
[]
[null,28,"B 18.02: Foreman","H",16,null,"Rate only"]
[]
[null,null,"B 18.03: Tipper trucks water carts:","H3"]
[]
[null,29,"(i)                 3 – 5 ton tipper","H",32,null,"Rate only"]
[]
[null,30,"(ii)               5,1 – 10 ton tipper","H",null,null,"Rate only"]
[]
[null,31,"(iii)              5,000 l (minmum) water cart","H",32,null,"Rate only"]
[]
[null,32,"(iv)             Lowbed (20 ton)","km",null,null,"Rate only"]
[]
[null,33,"B 18.04: TLB","H",32,null,"Rate only"]
[]
[null,34,"B 18.05: Grader (CAT 140G or similar)","H",null,null,"Rate only"]
[]
[null,35,"B 18.06: LDV","H",null,null,"Rate only"]
[]
[null,null,"B 18.07: Rollers & rotavators","H3",null,null,"Rate only"]
[]
[null,36,"(i) Vibrator roller","H",null,null,"Rate only"]
[]
[null,37,"(ii) Pneumatic roller","H",32,null,"Rate only"]
[]
[null,38,"(iii) Rotavator","Day",null,null,"Rate only"]
[]
[null,39,"(iv) Grid Roller ","H",32,null,"Rate only"]
[]
[null,null,"B 18.08: Hand Controlled Compactors","H3",null,null,"Rate only"]
[]
[null,40,"(i) Pedestrian roller (Bomag BW90)","H",null,null,"Rate only"]
[]
[null,41,"(ii) Vibratory plate compactor","H",null,null,"Rate only"]
[]
[null,42,"(iii) Rammers","H",null,null,"Rate only"]
[]
[null,43,"B 18.09: Excavator (RH7 or similar)","H",32,null,"Rate only"]
[]
[null,44,"B 18.10: Dozer (D7 or similar)","H",null,null,"Rate only"]
[]
[null,null,"SERIES : 2000 : DRAINAGE","H1"]
[]
[null,null,"SECTION 2100 : DRAINS","H2"]
[]
[null,null,"21.01: Excavation for open drains","H3"]
[]
[null,45,"(a) (i) Excavating soft material situated  within the depth range 0 to 1,5 m          deep for open side drains, mitre          drains and lined channels","m3",1835]
[]
[null,46,"b) Extra over subitem 21.01(a) for excavation    in:       (i)  Intermediate material","m3",734]
[]
[null,47,"      (ii) hard material","m3",459]
[]
[null,48,"      (iii) Rock","m3",459]
[]
[null,null,"21.03: Excavation for subsoil drainage systems:","H3"]
[]
[null,49,"(a) (i) Excavating soft material situated  within the depth range 0 to 1,5 m ","m3",2106]
[]
[null,50,"b) Extra over subitem 21.03(a) for excavation    in:       (i)  Intermediate material","m3",527]
[]
[null,null,"21.06: Natural permeable material in subsoil drainage systems (crushed stone)","H3"]
[]
[null,51,"a)  19mm crushed stone from commercial sources ","m3",506]
[]
[null,null,"21.08: Pipe in subsoil drainage ","H3"]
[]
[null,null,"b) Perforated uPvc pipe and fittings normal  duty complete with couplings.","H3"]
[]
[null,52,"i)110mm","m",1000]
[]
[null,53,"ii)160mm","m",150]
[]
[null,54,"21.10: Sythetic fibre filter material:  geotextile/ biddim U24 around pipes and  crushed stone filter material ","m2",3392]
[]
[null,null,"21.12: Concrete outet structures, manhole boxes, junctionboxes and cleaning eyes for subsoil drainage systems:","H3"]
[]
[null,55,"a)Outlet structures ","No",4]
[]
[null,56,"b)Manholes ","No",9]
[]
[null,null,"SECTION 2200 : PREFABRICATED CULVERTS","H2"]
[]
[null,null,"PREFABRICATED CULVERTS","H3"]
[]
[null,null,"22.01: (a) Excavating soft material situated within the following depth ranges below the surface level:","H3"]
[]
[null,57,"(i) 0 m up to 1.5 m","m3",1404]
[]
[null,58,"(ii) Exceeding 1.5 m and up to 3.0 m","m3",234]
[]
[null,59,"b) Extra over subitem  22.01 (a) for excavation","m3",13]
[]
[null,null,"in hard material,  irrespective of depth ","H3"]
[]
[null,60,"   ii) Ditto rock excavation","m3",50]
[]
[null,61,"(c) Extra over subitem 22.01(a) for     excavation by hand using hand tools","m3",50]
[]
[null,62,"B 22.02: Backfilling and Blanketing a) Using the excavated material","m3",1065]
[]
[null,63,"b) Using imported selected material","m3",234]
[]
[null,64,"B 22.01: (c) Extra over subitem 22.02(a) and (b) for soil cement backfilling containing 1% of cement","m3",20]
[]
[null,65,"22.03: Concrete Pipe Culverts(b) On class A bedding: Class 50 D pipes(i) 600 mm diameter","m",550]
[]
[null,66,"(ii) 750 mm diameter","m",85]
[]
[null,67,"(iii) 900 mm diameter","m",85]
[]
[null,null,"22.05: Portal and rectangular culverts","H3"]
[]
[null,68,"a)1200mm x 450mm rectangular culverts complete with prefabricated floor slabs ","m",30]
[]
[null,69,"22.08: 15mpa Concrete backfill for rectangular portal culverts ","m3",5]
[]
[null,70,"22.09: Prefabricated concrete inlets and outlets 1200mm x 450mm rectangular culverts","No",1]
[]
[null,71,"22.14: Removing and stacking existing prefabricated culverts irrespective of size ","m",15]
[]
[null,null,"22.17: Manholes catchpits ,precast inlet and outlet structures complete:","H3"]
[]
[null,72,"a)   Brick Manholes","No",28]
[]
[null,73,"22.28: Extra over item 22.09 for Prefabricated reinforced concrete skew end units for concrete culverts constructed at a skew angle for 1200mmx 450mm portal culvert","No",1]
[]
[null,null,"SECTION 2300 : CONCRETE KERBING AND CHANNELING ","H2"]
[]
[null,null,"CONCRETE KERBING, CHANNELING,CHUTES AND DOWNPIPES, AND CONCRETE LINING FOR OPEN DRAINS","H3"]
[]
[null,null,"23.01: Concrete Kerbing ","H3"]
[]
[null,74,"(b) (i) Fig 8c , precast mountable kerb.","m",1060]
[]
[null,75,"(ii) Fig 8a,  precast concrete kerb","m",1900]
[]
[null,null,"23.03: Concrete Chutes ","H3"]
[]
[null,76,"a)Concrete chutes as detailed on drawings ","m",80]
[]
[null,null,"23.05: Inlet, outlet, transition and similar structures ","H3"]
[]
[null,77,"b)Kerb inlets ","No",15]
[]
[null,78,"23.07: Trimming of excavation for concrete-lined open drains:","m2",821]
[]
[null,null,"23.08: Concrete lining for open drains:","H3"]
[]
[null,79,"(a) Cast in situ class 30/19 concrete lining in open drains and other structures","m3",82]
[]
[null,80,"(aii) Cast in situ class 30/19 concrete lining in channels around the building","m3",32]
[]
[null,81,"(b) Class F2 surface finish to cast in situ concrete lining","m2",821]
[]
[null,null,"23.09: Formwork to cast in situ concrete lining for open drains (class F2 surface finish):","H3"]
[]
[null,82,"(a) To sides with formwork on the internal face only","m2",104]
[]
[null,83,"23.10: Sealed joints in concrete lining of open drains","m",456]
[]
[null,84,"23.11: 75mm Concrete screed below chutes and culvert floors","m3",5]
[]
[null,85,"23.12: Steel reinforcement high tensile steel bars","t","2.00"]
[]
[null,86,"23.13: Polyethylene sheeting (0.15mm thick) for concrete-lined open drains ","m2",821]
[]
[null,87,"23.15: Precast concrete blocks in outlet Structures","No",30]
[]
[null,null,"SERIES 3000 : EARTHWORKS AND PAVEMENT LAYERS","H1"]
[]
[null,null,"SECTION 3100 : BORROW MATERIALS","H2"]
[]
[null,88,"31.01: a) Strip and stockpile topsoil by mechanical    means to a depth up to and including 0,5 m    and replace in borrow pit after completion    of excavations","m3",5000]
[]
[null,89,"b) Ditto but exceeding  0,5 m up to 1,0 m","m3",5000]
[]
[null,null,"NOTE : All excavated material is measured in cut","H3"]
[]
[null,null,"SECTION 3300 :MASS EARTH WORKS","H2"]
[]
[null,null,"MASS EARTHWORKS","H3"]
[]
[null,null,"B 33.01: Cut and borrow to fill, including haul over any distance","H3"]
[]
[null,null,"(a) Material (at least G9) in compacted layer thicknesses of 200 mm and less:","H3"]
[]
[null,90,"(i) Compacted to 90% of modified AASHTO density","m3",1500]
[]
[null,null,"33.03: Extra over item 33.01 for excavating and breaking down material in:","H3"]
[]
[null,91,"(a) Intermediate excavation","m3",150]
[]
[null,92,"(b) Hard excavation","m3",150]
[]
[null,93,"(c) Boulder excavation class A","m3",50]
[]
[null,94,"(d) Boulder excavation class B","m3",50]
[]
[null,null,"33.04: Cut to spoil, including haul over any distance:","H3"]
[]
[null,95,"(a) Soft excavation","m3",10876]
[]
[null,96,"(b) Intermediate excavation","m3",1088]
[]
[null,97,"(c) Hard excavation","m3",300]
[]
[null,98,"(d) Boulder excavation class A","m3",50]
[]
[null,99,"(e) Boulder excavation class B","m3",50]
[]
[null,null,"33.10: Roadbed preparation and the compaction of material:","H3"]
[]
[null,100,"(a) Compaction to 90% of modified AASHTO ","m3",2665]
[]
[null,null,"density","H3"]
[]
[null,null,"33.13: Finishing off cut and fill slopes, medians ","H3"]
[]
[null,101,"(a) Cut slopes","m2",640]
[]
[null,102,"(b) Fill slopes","m2",1068]
[]
[null,null,"SECTION 3400 : PAVEMENT LAYERS OF GRAVEL MATERIAL","H2"]
[]
[null,null,"PAVEMENT LAYERS OF GRAVEL MATERIAL","H3"]
[]
[null,null,"34.01: Pavement Layers constructed from gravel taken from approved borrow pits includingoverhaul","H3"]
[]
[null,103,"(a) Gravel selected layer  compacted to:     (i) 93 of modified AASHTO density (150mm ","m3",22776]
[]
[null,null,"G7)","H3"]
[]
[null,104,"(ii) 95% of modified AASHTO density (150mm","m3",24076]
[]
[null,null,"     G5)","H3"]
[]
[null,null,"(f) Gravel Base including shoulders (Chemically Stabalised material to C4) compacted to:","H3"]
[]
[null,105,"(ii) 98% of modified AASHTO density (150mm","m3",2720]
[]
[null,null,"     G5 to C4)","H3"]
[]
[null,null,"SECTION 3500 : STABILIZATION ","H2"]
[]
[null,null,"STABILIZATION","H3"]
[]
[null,null,"35.02: Chemical stabilizing agent","H3"]
[]
[null,106,"a) Ordinary portland cement","t","72.00"]
[]
[null,107,"35.04: Provision and application of water for curing","KL",250]
[]
[null,null,"SECTION 4100 : PRIME COAT","H2"]
[]
[null,null,"PRIME COAT","H3"]
[]
[null,108,"41.01: Prime Coat (c) MC-30 cut back bitumen @ 0.8l/m2","ltr",12494]
[]
[null,null,"SECTION 4200 : ASPHALT BASE AND SURFACING","H2"]
[]
[null,null,"ASPHALT BASE AND SURFACING","H3"]
[]
[null,null,"42.02: Asphalt surfacing (30mm thick using 60/70 penetration grade bitumen) on approaches","H3"]
[]
[null,109,"(a)    Continously graded (medium)","m2",9995]
[]
[null,110,"42.04: Tack coat of 30% stable-grade emulsion","ltr",12494]
[]
[null,111,"42.08: 100mm cores in asphalt paving","No",15]
[]
[null,null,"SECTION 5100 : PITCHING AND STONEWORK ","H2"]
[]
[null,null,"PITCHING AND STONEWORK","H3"]
[]
[null,112,"51.05: Concrete edge beams (Class 30/19) - 300mm x 200mm","m3",66]
[]
[null,null,"51.07: Foundation trenches:","H3"]
[]
[null,113,"(a)   Excavation for concrete edge beams","m3",66]
[]
[null,null,"SECTION 5500 :FENCING","H2"]
[]
[null,null,"FENCING (At borrow pit)","H3"]
[]
[null,114,"55.01: Clearing the fence line, 2m wide strip","km",5]
[]
[null,null,"55.02: Supply and erect new fencing material for new fences and for supplementing material in existing fences which are being repaired or removed:","H3"]
[]
[null,115,"(a)  Zinc-coated barbed wire (high tensile grade,       3,15mm x 2,5mm oval shape)","km",5]
[]
[null,116,"(g)  Standards (2,5kg/m, Y-shaped steel):    (i)  1 850mm long","No",240]
[]
[null,117,"(h)  Droppers (0,56kg/m ridgeback pattern steel):    (i)  1 200mm long","No",1200]
[]
[null,null,"(i)  Straining posts, stays and anchors:   (i) Vertical:","H3"]
[]
[null,118,"       (1)  Steel straining posts, 101,6mm outside              dia.,2,95mm wall thickness, fullly galva-              nized with base plate and pressed              mushroom top:             (i)   2 100mm long","No",40]
[]
[null,null,"   (ii)  Inclined:","H3"]
[]
[null,null,"        (1)  Steel stays and anchors, 60,33mm               outside dia., 2,95mm wall thickness,               fully galvanized with base plate:","H3"]
[]
[null,119,"             (i)   1 700mm long","No",40]
[]
[null,null,"55.03: New gates:","H3"]
[]
[null,120,"(a)  Single leaf, 1 200mm high Government       pattern farm gate (heavy) to CSK 146       and 4,2m wide","No",4]
[]
[null,null,"55.05: Dismantling existing fences and reistate them elsewhere:","H3"]
[]
[null,null,"(a)  Fences:","H3"]
[]
[null,121,"     (i)   Stock-proof fences","km",10]
[]
[null,122,"(b)    Gates","No",8]
[]
[null,null,"SECTION 5600 : ROAD SIGNS","H2"]
[]
[null,null,"SECTION 5600 : ROAD SIGNS","H3"]
[]
[null,null,"56.01: Road sign boards with painted or coloured semi matt background. Symbols, lettering andborders in semi matt black or in class 1 retro-reflective material, where the signboard is constructed from aluminium sheet 2,0 mm thick","H3"]
[]
[null,123,"b) Road signs, R series (1200 mm dia)","No",20]
[]
[null,124,"c) T junction - W104","No",10]
[]
[null,125,"d) Side road junction (left) W107","No",6]
[]
[null,126,"e) Side road junction (right) W108","No",6]
[]
[null,127,"f) Gentle curve (left) W202","No",2]
[]
[null,128,"g) Gentle curve (right) W203","No",2]
[]
[null,129,"h) Stop sign W302","No",15]
[]
[null,130,"I) Hump ahead W308","No",20]
[]
[null,131,"m) Domestic animals (cattle) W310","No",4]
[]
[null,null,"56.03: Road sign supports ","H3"]
[]
[null,132,"a) Steel tubing (65 mm diameter and 2,0 mm wall thickness ","t","1.00"]
[]
[null,133,"56.06: Excavation for road sign supports","m3",50]
[]
[null,134,"Extra over item 56.05 for backfilling with 1:2:4 concrete mix","m3",43]
[]
[null,null,"SECTION 5700 : ROAD MARKINGS","H2"]
[]
[null,null,"SECTION 5700 : ROAD MARKING","H3"]
[]
[null,null,"57.02: Retro reflective road markings paint","H3"]
[]
[null,null,"a) White line (broken or unbroken)","H3"]
[]
[null,135,"i) 100 mm wide","km",2]
[]
[null,null,"b) Yellow lines (broken or unbroken)","H3"]
[]
[null,136,"ii) 100 mm wide","km",4]
[]
[null,137,"c) White lettering and symbols","m2",150]
[]
[null,138,"d) Yellow lettering and symbols","m2",200]
[]
[null,null,"57.06: Setting out and premarking the lines","H3"]
[]
[null,139,"(Excluding traffic island markings, lettering etc.)","km",6]
[]
[null,null,"SECTION 7300 : CONCRETE BLOCK PAVING FOR ROADS","H2"]
[]
[null,null,"SECTION 7300 : CONCRETE BLOCK PAVING FOR ROADS","H3"]
[]
[null,null,"73.01: Concrete block paving","H3"]
[]
[null,140,"i)60mm 30MPa concrete interlocking paving blocks","m2",1400]
[]
[null,141,"ii)80mm 30MPa concrete interlocking paving blocks","m2",2000]
[]
[null,142,"73.03: Provision of approved herbicide and ant poison","Item","1.00","150 000.00","150 000.00"]
[]
[null,null,"SECTION 7400 : PATENTED EARTH RETAINING SYSTEMS","H2"]
[]
[null,null,"SECTION 7400 : PATENTED EARTH RETAINING SYSTEMS","H3"]
[]
[null,null,"74.01: Patented earth retaining systems","H3"]
[]
[null,143,"a) Loffelstein precast concrete block of heavy duty type ","m2",1800]
[]
[null,null,"SECTION 8100 : TESTING MATERIALS AND WORKSMANSHIP","H2"]
[]
[null,null,"TESTING MATERIALS AND WORKMANSHIP","H3"]
[]
[null,null,"81.02: Other special tests requested by the Engineer","H3"]
[]
[null,144,"a) Cost of testing","Item","1.00","250 000.00","250 000.00"]
[]
[null,145,"b) Charge on provisional sum","%"]
[]
[null,146,"c) Prime cost for restaking and setting out","Item","1.00","50 000.00","50 000.00"]
[]
[null,147,"d) Charge on provisional sum","%"]
[]
[null,null,"PROVISIONAL SUMS FOR ROADWORKS ","H2"]
[]
[null,null,"Provisional sums for Road works","H3"]
[]
[null,148,"P1: Supply, detail, fabricate, galvanise, powder coat to specified colour,deliver, and erect hoop safety barriers in concrete footing as specified on detailed drawings ( price to include supply and fix of reinforced ","Item","1.00","2 200 000.00","2 200 000.00"]
[]
[null,149,"P2: Supply, assemble, galvanise, powder coat a 2.4mhigh security \"clear vu\" or similar approved fence on the perimeter of the site as specified on the drawings including foundations","Item","1.00","2 600 000.00","2 600 000.00"]
[]
[null,null,"drawings including foundations","H3"]
[]
[null,150,"d) Charge on provisional sums above","%"]
[]
[null,151,"P3: Supply, and install 50mm concrete covers on channels as detailed on drawings ","Item","1.00","100 000.00","100 000.00"]
[]
[null,152,"P4: Supply, and install 50mm mentis grating covers on channels as detailed on drawings ","Item","1.00","100 000.00","100 000.00"]
[]
[null,153,"d) Charge on provisional sums above","%"]
[]
[null,null,"SABS 1200C: SITE CLEARANCE","H3"]
[]
[null,null,"SABS 1200 DB: EARTHWORKS (PIPE TRENCHES)","H3"]
[]
[null,null,"TRENCHES FOR SEWER PIPES","H3"]
[]
[null,null,"PSDB 8.3.2: Excavate in all materials for trenches, backfill, compact and dispose of surplus material:","H3"]
[]
[null,null,"(a) Pipes up to 250 mm dia for depths:","H3"]
[]
[null,154,"(i) Up to 0,5 m      ","m3",2]
[]
[null,155,"(ii) Over 0,5 m up to 1,0 m    ","m3",20]
[]
[null,156,"(iii) Over 1,0 m up to 1,5 m    ","m3",115]
[]
[null,157,"(iv) Over 1,5 m up to 2,0 m","m3",250]
[]
[null,158," (v) Over 2,0 m up to 2,5 m","m3",240]
[]
[null,159,"(vi)Over 2,5 m up to 3,0 m","m3",240]
[]
[null,160,"(vii) Over 3,0 m up to 5,0 m","m3",256]
[]
[null,null,"PSDB 8.3.2: Extra over item 3.2.1 above for:","H3"]
[]
[null,161,"(a) Intermediate excavation  ","m3",25]
[]
[null,162,"(b) Hard rock excavation     ","m3",30]
[]
[null,163,"(c)Hand excavation and backfill where ordered by the engineer  ","m3",2]
[]
[null,164,"PSDB 8.3.2: Excavate and dispose of unsuitable material from trench bottom ","m3",200]
[]
[null,null,"PSDB 8.3.3: Excavation ancillaries:","H3"]
[]
[null,null,"(a) Make up deficiency in backfill material:","H3"]
[]
[null,165,"(i) From other necessary excavations on site","m3",300]
[]
[null,166,"(ii)By importation from designated borrow pits","m3",300]
[]
[null,null,"SABS 1200 LB: BEDDING (PIPES)","H3"]
[]
[null,null,"BEDDING FOR SEWER PIPES","H3"]
[]
[null,null,"8.2.1: Provision of bedding and blanket from trench excavations:","H3"]
[]
[null,167,"(a) Selected granular material ","m3",180]
[]
[null,168,"(b) Selected fill material","m3",78]
[]
[null,null,"PSLB 8.2.2: Supply only of bedding and blanket by importation:","H3"]
[]
[null,null,"(a) From other necessary excavations:","H3"]
[]
[null,169,"         (i) Selected granular material","m3",620]
[]
[null,170,"         (ii)Selected fill material","m3",78]
[]
[null,171,"8.2.2: (b) Provision of 37.5m no. size chrushed stone aggregate required for bedding from commercial source when instructedby the Engineer","m3",110]
[]
[null,null,"SABS 1200 L: SEWERS","H2"]
[]
[null,null,"8.2.1: Supply, lay, joint and test pipeline:","H3"]
[]
[null,null,"(a) uPVC Class 34, solid wall, sewer pipes with Z - lock joints for the following diameters:","H3"]
[]
[null,172,"i) 160 mm OD ","m",600]
[]
[null,null,"8.2.3: Precast concrete manhole:","H3"]
[]
[null,null,"(a) Supply and install complete precast concretemanholes including excavation and backfill in allmaterials and disposal of surplus material, fitting concrete cover and frame, spacer, adaptorslabs and step irons for the following depths:","H3"]
[]
[null,173,"i) Depth 0 m up to 0,5 m    ","No",null,null,"Rate only"]
[]
[null,174,"ii) Depth 0,5 m up to 1,0 m   ","No",5]
[]
[null,175,"iii) Depth 1.0 m up to 1,5 m ","No",10]
[]
[null,176,"iv) Depth 1,5 m up to 2,0 m","No",8]
[]
[null,177,"v) Depth of 2,0 m up to 2,5 m","No",4]
[]
[null,178,"vi) Depth of 2,5 m up to 3,0 m","No",3]
[]
[null,179,"vii) Depth of 3,0 m up to 5,0 m","No",1]
[]
[null,null,"8.2.4: Extra over items 3.4.3.1 for concrete chanelling and backdrops","H3"]
[]
[null,180,"(a) Concrete benching Type ST (Straight Channel)","No",8]
[]
[null,null,"8.2.4.1: Extra over items 3.4.3.1 for the supply andinstallation of larger ring sizes for deeperdepths including more material for benching for manhole sizes:","H3"]
[]
[null,181,"(a) 1250 mm Diameter","No",7]
[]
[null,182,"(b) 1500 mm Diameter","No",8]
[]
[null,null,"8.2.5: Encasing of pipes in concrete ","H3"]
[]
[null,183,"a) Class 20MPa /19mm","m3",10]
[]
[null,null,"8.2.5.1: Anchor blocks ","H3"]
[]
[null,184,"a) Grade 20/40 mass concrete anchor block on steep slopes as specified and detailed on drawings where instructed by the engineer","m3",3]
[]
[null,null,"8.2.6: Erf Connections","H3"]
[]
[null,null," House Connections (complete with marker block & post):","H3"]
[]
[null,null,"a) Short house (0-1,0m) sewer connection using:","H3"]
[]
[null,185,"i) uPVC \"Durodrain\" or similar approved Solid Wall HD Class 34 ","No",2]
[]
[null,186,"ii) uPVC \"Ultracor\" or similar approved multi-layer, HD class 400","No",1]
[]
[null,null,"b) Long house (1m up to 2m) sewer connection using:","H3"]
[]
[null,187,"i) uPVC \"Durodrain\" or similar approved Solid Wall HD Class 34 ","m",2]
[]
[null,188,"Supply, install, test and commission a parkage sewer treatment plant complete with all necessary pipe work,valves, meters,pumps, accessories etc ","Item","1.00","4 000 000.00","4 000 000.00"]
[]
[null,189,"Profit on item '188","%"]
[]
[null,190,"Supply, install, test and commision a irrigation system complete with all necessary pipework, valves meters, pumps, tanks accesories as well as special botanical grass and plants for landscaping","Item","1.00","3 000 000.00","3 000 000.00"]
[]
[null,191,"Profit on item 190","%"]
[]
[null,null,"WATER RETICULATION","H2"]
[]
[null,null,"EARTHWORKS (PIPE TRENCHES)","H3"]
[]
[null,null," SABS 1200 DB: EXCAVATION AND BACKFILLING","H3"]
[]
[null,null,"a) Excavate in all materials for trenches 0 - 1m wide,compact   backfill, and dispose of surplus and unsuitable material within the freehaul distance ","H3"]
[]
[null,192,"i) up to 1,5 m in depth","m3",700]
[]
[null,null," SABS 1200 LB: BEDDING","H3"]
[]
[null,null,"8.2.1: Provision of bedding material from trench excavations","H3"]
[]
[null,193,"i) Selected granular material","m3",160]
[]
[null,194,"ii) Selected fill material","m3",120]
[]
[null,null,"8.2.2.1: Provision of bedding material by importation from other necessary excavations (freehaul within the site boundaries)","H3"]
[]
[null,195,"i) Selected granular material","m3",160]
[]
[null,196,"ii) Selected fill material","m3",120]
[]
[null,null,"SABS 1200 L: PIPEWORK","H3"]
[]
[null,null,"8.2.1: Supply, Lay, join, weld and Bed HDPE Pipes Complete:(The rates shall exclude disinfecting of pipes after completion of hydraulic pipe test.)","H3"]
[]
[null,197,"i) 110mm dia HDPE class 16","m",380]
[]
[null,198,"ii) 75mm dia HDPE class 10","m",350]
[]
[null,199,"  Disinfect all reticulation mains","m",730]
[]
[null,null,"8.2.3: VALVES","H3"]
[]
[null,null,"Specials and Fittings - Isolating Valves: Valves to be anti-clockwise closing non-rising spindle type to SABS 664.","H3"]
[]
[null,null,"a) Class 16 gate valves with caps :","H3"]
[]
[null,200,"i) 110  mm dia ","No",7]
[]
[null,201,"ii) 75  mm dia ","No",3]
[]
[null,202,"8.2.13: Valve chambers ","No",10]
[]
[null,null,"8.2.4: FITTINGS AND SPECIALS","H3"]
[]
[null,null,"8.2.2: Fittings and Specials - HDPE Bends: (Extra-over rate to Items 5.3.1.)","H3"]
[]
[null,null," 110mm dia. HDPE pipe","H3"]
[]
[null,203,"i) 90 degree bend","No",3]
[]
[null,204,"ii) 45 degree bend","No",4]
[]
[null,205,"iii) 22.5 degree bend","No",2]
[]
[null,206,"iv) 11.25 degree bend","No",2]
[]
[null,null," 75mm dia. HDPE pipe","H3"]
[]
[null,207,"i) 90 degree bend","No",3]
[]
[null,208,"ii) 45 degree bend","No",4]
[]
[null,209,"iii) 22.5 degree bend","No",2]
[]
[null,210,"iv) 11.25 degree bend","No",2]
[]
[null,null,"Specials and Fittings - HDPE Tees:","H3"]
[]
[null,null,"Reducing T-Pieces for:","H3"]
[]
[null,211,"i) 110 x 75mm dia.","No",4]
[]
[null,null,"Equal T-Pieces for:","H3"]
[]
[null,212,"i) 110 mm dia.","No",5]
[]
[null,213,"ii) 75 mm dia.","No",2]
[]
[null,null,"End caps / Stop ends for:","H3"]
[]
[null,214,"i) 110 mm dia.","No",4]
[]
[null,215,"ii) 75 mm dia.","No",1]
[]
[null,null,"  FIRE HYDRANT ASSEMBLIES Supplying, fixing, bedding of 80mm Woodlands Fire  hydrantor similar approved (above ground) including Flanged T-piece, 90deg elbow and stand pipe complete with chamber, as per drawing","H3"]
[]
[null,216,"i) 110 mm dia. ","No",4]
[]
[null,null,"SABS 1200 LF: ERF CONNECTIONS","H3"]
[]
[null,null,"Excavate for the supply all pipework for individual house connections through 1 way, 2 way or 4 way connections up tostand boundary as detailed on drawings.","H3"]
[]
[null,217,"i) 20mm dia class 10 HDPE pipe","m",50]
[]
[null,218,"ii) 25mm dia class 10 HDPE pipe","m",50]
[]
[null,219,"iii) 32 mm dia class 10 HDPE pipe","m",50]
[]
[null,null,"Saddles","H3","0.0"]
[]
[null,null,"Supply and install polypropylene saddles for ERF connections. Saddles to fit the following pipes:","H3","0.0"]
[]
[null,220,"i) 75 mm dia HDPE Class 10 pipe","No",10]
[]
[null,null,"SUNDRIES","H3","0.0"]
[]
[null,221,"Standard service marker as  per standard drawings","No",5]
[]
[null,null,"8.2.11: Anchor/Thrust blocks as detailed Grade 15/19 MPa concrete for:","H3","0.0"]
[]
[null,222,"Anchor/Trust blocks complete","m3",15]
[]
[null,223,"Supply and install 110mm bulkwater meter","No",1]
[]
[null,224,"Construction of chamber at connection point","SUM",1]
[]
[null,225,"Supply and install sectional steel elevated tank according  to specifications including all the necessary pipe inlet and outlet connections, ball valves,stand, foundations, etc. ","Item","1.00","2 500 000.00","2 500 000.00"]
[]
[null,226,"Profit on item '225","%"]
[]
[null,227,"Supply and install sectional steel ground tank according to specifications including all the necessary pipe inlet and outlet connections, ball valves,plinths, foundations, etc. ","Item","1.00","500 000.00","500 000.00"]
[]
[null,228,"Profit on item '227","%"]
[]
[null,229,"Supply and install a fully equipped borehole according to specifications including all the necessary pipe inlet and outlet connections, valves, meters, pumphouse etc. ","Item","1.00","600 000.00","600 000.00"]
[]
[null,230,"Profit on item '229","%"]
[]
[null,231,"Supply and install a fully equipped a water ion exchange plant to specifications including all the necessary pipe inlet and outlet connections, valves, meters etc. ","Item","1.00","450 000.00","450 000.00"]
[]
[null,232,"Profit on item '231","%"]
[]
[null,233,"Provisional sum for supply, fix, test, commision of a KSB pump and motor set, (Duty : 50m³/h @ 25 m static head) and all eletro mechanical works for a pump supplying the elevated tank from the 50kl tank including all pipework","Item","1.00","550 000.00","550 000.00"]
[]
[null,234,"Profit on item '233","%"]
[]
[null,null,"SECTION SUMMARY - EXTERNAL WORK",{"$nulls":3},{"$f":"SUM(G2410:G3188)","v":0}]
[]
[null,null,"SECTION NO. 4","H1"]
[]
[null,null,"BILL NO.1","H1"]
[]
[null,null,"HVAC","H1"]
[]
[null,null,"COMPLIANCE","H2"]
[]
[null,1,"As Built Drawings ( 3 Sets and 3 CDs )","SUM",1]
[]
[null,2,"Operation and Maintenance Manuals ( 3 Hard Copies and 3 CDs )","SUM",1]
[]
[null,3,"Training Of Technical Staff Upon Completion","SUM",1]
[]
[null,4,"Project Management and Supervision During Construction","SUM",1]
[]
[null,5,"12 Months Maintenance After Final Handover","SUM",1]
[]
[null,6,"Health And Safety File","SUM",1]
[]
[null,7,"Covid 19 File","SUM",1]
[]
[null,null,"AIR-CONDITIONING AND VENTILATION","H2"]
[]
[null,8,"MATERNITY AND OBSTETRIC UNIT MOTHER AND CHILD MCWH i) AHU-03( 46 KW ), Supply Air Fan at 2520 l/s & 400Pa ESP. The unit shall be VRV HYBRID c/w 3 STAGE FILTRATION SYSTEM","No",1]
[]
[null,9,"RECTANGULAR  LOW PRESSURE GALVANISED SHEET METAL DUCTWORK, EXTERNALLY INSULATED WITH ALUMINIUM FOIL FACED FIBREGLASS AS PER SPECIFICATION  SUITABLE FOR IN-CEILING APPLICATION c/w SUPPORTS *SUPPLY AIR DUCTING* i) 550x550","m",5]
[]
[null,10,"ii) 900x400","m",8]
[]
[null,11,"iii) 600x400","m",2]
[]
[null,12,"iv 550X400","m",2]
[]
[null,13,"v) 500x400","m",5]
[]
[null,14,"vi) 450x400","m",3]
[]
[null,15,"vii) 350x400","m",4]
[]
[null,16,"viii) 300x400","m",10]
[]
[null,17,"ix) 350x350","m",10]
[]
[null,18,"x) 300x350","m",4]
[]
[null,19,"xi) 250x350","m",5]
[]
[null,20,"xii) 200x350","m",10]
[]
[null,21,"xiii) 175x350","m",18]
[]
[null,22,"xiv) 150x350","m",8]
[]
[null,23,"xv 150x250","m",20]
[]
[null,24,"xvi) 150x200","m",8]
[]
[null,25,"xvii) Dia 250mm","m",15]
[]
[null,26,"xviii) Dia 200mm","m",15]
[]
[null,27,"xiv Dia 150mm","m",20]
[]
[null,28,"xx) Dia 250mm Flexible Ducting","m",15]
[]
[null,29,"xxi) Dia 200mm Flexible Ducting","m",10]
[]
[null,30,"xxii) Dia 150mm Flexible Ducting","m",12]
[]
[null,31,"RECTANGULAR  LOW PRESSURE GALVANISED SHEET METAL DUCTWORK, EXTERNALLY INSULATED WITH ALUMINIUM FOIL FACED FIBREGLASS AS PER SPECIFICATION  SUITABLE FOR IN-CEILING APPLICATION c/w SUPPORTS *RETURN AIR DUCTING* i) 550x550","m",5]
[]
[null,32,"ii) 750x400","m",11]
[]
[null,33,"iii) 450x400","m",10]
[]
[null,34,"iv) 375x400","m",8]
[]
[null,35,"v) 350x400","m",12]
[]
[null,36,"vi) 300x300","m",12]
[]
[null,37,"vii) 250x300","m",5]
[]
[null,38,"viii) 175x300","m",5]
[]
[null,39,"ix) 200x250","m",5]
[]
[null,40,"x) Dia 250mm Flexible Ducting","m",6]
[]
[null,41,"xi) Dia 200mm Flexible Ducting","m",5]
[]
[null,42,"xii) Dia 150mm Flexible Ducting","m",12]
[]
[null,43,"TRANSFORMATION PIECES ( SUPPLY AIR DUCT ) i) 900x400 > 550x550, 900L","No",1]
[]
[null,44,"ii) 750x400 > 550x550, 600L","No",1]
[]
[null,45,"iii) 600x400 > 550x400, 600L","No",1]
[]
[null,46,"iv) 550x400 > 500x400, 600L","No",1]
[]
[null,47,"v) 500x400 > 300x350, 600L","No",1]
[]
[null,48,"vi) 350x400 > 300x400, 600L","No",1]
[]
[null,49,"vii) 300x350 > 200x350, 600L","No",1]
[]
[null,50,"TRANSFORMATION PIECES ( RETURN AIR DUCT ) i)  750x400 > 550x550, 600L","No",1]
[]
[null,51,"ii) 450x400 > 375x400, 600L","No",1]
[]
[null,52,"iii) 375x400 > 250x300, 600L","No",1]
[]
[null,53,"iv) 350x400 > 350x300, 600L","No",1]
[]
[null,54,"v) 500x400 > 300x350, 600L","No",1]
[]
[null,55,"vi) 350x400 > 300x400, 600L","No",1]
[]
[null,56,"vii) 300x350 > 200x350, 600L","No",1]
[]
[null,57,"SHOE PIECES i)  800x400 ","No",1]
[]
[null,58,"ii)  350x350 ","No",1]
[]
[null,59,"iii)  250x300 ","No",1]
[]
[null,60,"iv)  200x200 ","No",1]
[]
[null,61,"SPIGOTS i)  Dia 250mm","No",10]
[]
[null,62,"ii)  Dia 200mm","No",5]
[]
[null,63,"iii) Dia 150mm ","No",15]
[]
[null,64,"BALANCING DAMPERS i)  Dia 250mm","No",6]
[]
[null,65,"ii)  Dia 200mm","No",8]
[]
[null,66,"iii) Dia 150mm ","No",12]
[]
[null,67,"SUPPLY AIR DIFFUSERS Supply and install  ( 600x600 )  VAV Swirl Air  Diffusers c/w (600x600x400) Supply Air Plenum Boxes and Thermal Controls","No",22]
[]
[null,68,"RETURN AIR GRILLS Supply and install  ( 600x600 )  Egg Crate Return Air Griils c/w (600x600x400) Return Air Plenum Boxes","No",22]
[]
[null,69,"HARD WIRED REMOTE CONTROLS Supply and install  Hard Wired Remote Controls","No",22]
[]
[null,70,"SOUND ATTENUATORS i) 550x550, 1200mm Long, Splitter Type","No",1]
[]
[null,71,"VAV PRESSURE CONTROL DAMPER i) 900x400,  c/w Sensor and Wiring","No",1]
[]
[null,72,"CHRONIC CARE i) AHU-02( 21,5 KW ), Supply Air Fan at 1164 l/s & 350Pa ESP. The unit shall be VRV HYBRID c/w 3 STAGE FILTRATION SYSTEM","No",1]
[]
[null,73,"RECTANGULAR  LOW PRESSURE GALVANISED SHEET METAL DUCTWORK, EXTERNALLY INSULATED WITH ALUMINIUM FOIL FACED FIBREGLASS AS PER SPECIFICATION  SUITABLE FOR IN-CEILING APPLICATION c/w SUPPORTS *SUPPLY AIR DUCTING* i) 400x400","m",5]
[]
[null,74,"ii) 500x400","m",9]
[]
[null,75,"iii) 450x350","m",2]
[]
[null,76,"iv 400X350","m",4]
[]
[null,77,"v) 350x350","m",4]
[]
[null,78,"vi) 250x300","m",10]
[]
[null,79,"vii) 200x300","m",10]
[]
[null,80,"viii) 150x300","m",8]
[]
[null,81,"ix) Dia 250mm","m",2]
[]
[null,82,"x) Dia 200mm","m",20]
[]
[null,83,"xi) Dia 150mm","m",5]
[]
[null,84,"xii) Dia 250mm Flexible Ducting","m",10]
[]
[null,85,"xiii) Dia 200mm Flexible Ducting","m",15]
[]
[null,86,"xiv) Dia 150mm Flexible Ducting","m",12]
[]
[null,87,"RECTANGULAR  LOW PRESSURE GALVANISED SHEET METAL DUCTWORK, EXTERNALLY INSULATED WITH ALUMINIUM FOIL FACED FIBREGLASS AS PER SPECIFICATION  SUITABLE FOR IN-CEILING APPLICATION c/w SUPPORTS *RETURN AIR DUCTING* i) 400x400","m",15]
[]
[null,88,"ii) 400x350","m",5]
[]
[null,89,"iii) 300x300","m",10]
[]
[null,90,"iv) 250x350","m",10]
[]
[null,91,"v) 150x300","m",6]
[]
[null,92,"vi) Dia 250mm","m",5]
[]
[null,93,"vii) Dia 200mm","m",12]
[]
[null,94,"viii) Dia 150mm","m",6]
[]
[null,95,"ix) Dia 250mm Flexible Ducting","m",5]
[]
[null,96,"x) Dia 200mm Flexible Ducting","m",5]
[]
[null,97,"xi) Dia 150mm Flexible Ducting","m",12]
[]
[null,98,"TRANSFORMATION PIECES ( SUPPLY AIR DUCT ) i) 500x400 > 400x400, 600L","No",1]
[]
[null,99,"ii) 400x350 > 350x350, 600L","No",1]
[]
[null,100,"iii) 250x300 > 150x300, 600L","No",1]
[]
[null,101,"iv) 200x300 > 150x250, 600L","No",1]
[]
[null,102,"TRANSFORMATION PIECES ( RETURN AIR DUCT ) i) 400x350 > 300x300, 600L","No",1]
[]
[null,103,"ii) 200x250 > 150x250, 600L","No",1]
[]
[null,104,"SHOE PIECES i)  450x350","No",1]
[]
[null,105,"ii)  250x300","No",1]
[]
[null,106,"iii)  200x300 ","No",2]
[]
[null,107,"SPIGOTS i)  Dia 250mm","No",2]
[]
[null,108,"ii)  Dia 200mm","No",5]
[]
[null,109,"iii) Dia 150mm ","No",5]
[]
[null,110,"BALANCING DAMPERS i)  Dia 250mm","No",6]
[]
[null,111,"ii)  Dia 200mm","No",8]
[]
[null,112,"iii) Dia 150mm ","No",12]
[]
[null,113,"SUPPLY AIR DIFFUSERS Supply and install  ( 600x600 )  VAV Swirl Air  Diffusers c/w (600x600x400) Supply Air Plenum Boxes and Thermal Controls","No",12]
[]
[null,114,"RETURN AIR GRILLS Supply and install  ( 600x600 )  Egg Crate Return Air Griils c/w (600x600x400) Return Air Plenum Boxes","No",12]
[]
[null,115,"HARD WIRED REMOTE CONTROLS Supply and install  Hard Wired Remote Controls","No",12]
[]
[null,116,"SOUND ATTENUATORS i) 500x400, 1200mm Long, Splitter Type","No",1]
[]
[null,117,"VAV PRESSURE CONTROL DAMPER i) 500x400,  c/w Sensor and Wiring","No",1]
[]
[null,118,"ACUTE CARE i) AHU-01( 28,5 KW ), Supply Air Fan at 1520 l/s & 400Pa ESP. The unit shall be VRV HYBRID c/w 3 STAGE FILTRATION SYSTEM","No",1]
[]
[null,119,"RECTANGULAR  LOW PRESSURE GALVANISED SHEET METAL DUCTWORK, EXTERNALLY INSULATED WITH ALUMINIUM FOIL FACED FIBREGLASS AS PER SPECIFICATION  SUITABLE FOR IN-CEILING APPLICATION c/w SUPPORTS *SUPPLY AIR DUCTING* i) 500x500","m",5]
[]
[null,120,"ii) 600x400","m",5]
[]
[null,121,"iii) 550x400","m",2]
[]
[null,122,"iv 475X350","m",5]
[]
[null,123,"v) 450x350","m",3]
[]
[null,124,"vi) 350x350","m",3]
[]
[null,125,"vii) 275x300","m",4]
[]
[null,126,"viii) 250x350","m",4]
[]
[null,127,"ix) 200x350","m",6]
[]
[null,128,"x) Dia 250mm","m",2]
[]
[null,129,"xi) Dia 200mm","m",20]
[]
[null,130,"xii) Dia 150mm","m",5]
[]
[null,131,"xiii) Dia 250mm Flexible Ducting","m",10]
[]
[null,132,"xiv) Dia 200mm Flexible Ducting","m",25]
[]
[null,133,"xv) Dia 150mm Flexible Ducting","m",6]
[]
[null,134,"RECTANGULAR  LOW PRESSURE GALVANISED SHEET METAL DUCTWORK, EXTERNALLY INSULATED WITH ALUMINIUM FOIL FACED FIBREGLASS AS PER SPECIFICATION  SUITABLE FOR IN-CEILING APPLICATION c/w SUPPORTS *RETURN AIR DUCTING* i) 500x400","m",15]
[]
[null,135,"ii) 400x350","m",4]
[]
[null,136,"iii) 350x350","m",2]
[]
[null,137,"iv) 275x350","m",10]
[]
[null,138,"v) 175x350","m",10]
[]
[null,139,"vi) Dia 250mm","m",5]
[]
[null,140,"vii) Dia 200mm","m",12]
[]
[null,141,"viii) Dia 150mm","m",6]
[]
[null,142,"ix) Dia 250mm Flexible Ducting","m",5]
[]
[null,143,"x) Dia 200mm Flexible Ducting","m",5]
[]
[null,144,"xi) Dia 150mm Flexible Ducting","m",12]
[]
[null,145,"TRANSFORMATION PIECES ( SUPPLY AIR DUCT ) i) 500x400 > 400x400, 600L","No",1]
[]
[null,146,"ii) 400x350 > 350x350, 600L","No",1]
[]
[null,147,"iii) 250x300 > 150x300, 600L","No",1]
[]
[null,148,"iv) 200x300 > 150x250, 600L","No",1]
[]
[null,149,"TRANSFORMATION PIECES ( RETURN AIR DUCT ) i) 400x350 > 300x300, 600L","No",1]
[]
[null,150,"ii) 200x250 > 150x250, 600L","No",1]
[]
[null,151,"SHOE PIECES i)  475x350","No",2]
[]
[null,152,"ii)  250x350","No",2]
[]
[null,153,"iii)  200x300 ","No",2]
[]
[null,154,"SPIGOTS i)  Dia 250mm","No",2]
[]
[null,155,"ii)  Dia 200mm","No",5]
[]
[null,156,"iii) Dia 150mm ","No",5]
[]
[null,157,"BALANCING DAMPERS i)  Dia 250mm","No",6]
[]
[null,158,"ii)  Dia 200mm","No",8]
[]
[null,159,"iii) Dia 150mm ","No",12]
[]
[null,160,"SUPPLY AIR DIFFUSERS Supply and install  ( 600x600 )  VAV Swirl Air  Diffusers c/w (600x600x400) Supply Air Plenum Boxes and Thermal Controls","No",16]
[]
[null,161,"RETURN AIR GRILLS Supply and install  ( 600x600 )  Egg Crate Return Air Griils c/w (600x600x400) Return Air Plenum Boxes","No",16]
[]
[null,162,"HARD WIRED REMOTE CONTROLS Supply and install  Hard Wired Remote Controls","No",16]
[]
[null,163,"SOUND ATTENUATORS i) 500x400, 1200mm Long, Splitter Type","No",1]
[]
[null,164,"VAV PRESSURE CONTROL DAMPER i) 500x400,  c/w Sensor and Wiring","No",1]
[]
[null,165,"PHARMACY UNIT i) AHU-04( 30,5 KW ), Supply Air Fan at 1686 l/s & 400Pa ESP. The unit shall be VRV HYBRID c/w 3 STAGE FILTRATION SYSTEM","No",1]
[]
[null,166,"RECTANGULAR  LOW PRESSURE GALVANISED SHEET METAL DUCTWORK, EXTERNALLY INSULATED WITH ALUMINIUM FOIL FACED FIBREGLASS AS PER SPECIFICATION  SUITABLE FOR IN-CEILING APPLICATION c/w SUPPORTS *SUPPLY AIR DUCTING* i) 700x400","m",10]
[]
[null,167,"ii) 600x400","m",6]
[]
[null,168,"iii) 500x400","m",5]
[]
[null,169,"iv 475X350","m",5]
[]
[null,170,"v) 450x350","m",3]
[]
[null,171,"vi) 350x350","m",3]
[]
[null,172,"vii) 275x300","m",4]
[]
[null,173,"viii) 250x350","m",4]
[]
[null,174,"ix) 200x350","m",6]
[]
[null,175,"x) Dia 250mm","m",2]
[]
[null,176,"xi) Dia 200mm","m",20]
[]
[null,177,"xii) Dia 150mm","m",5]
[]
[null,178,"xiii) Dia 250mm Flexible Ducting","m",10]
[]
[null,179,"xiv) Dia 200mm Flexible Ducting","m",25]
[]
[null,180,"xv) Dia 150mm Flexible Ducting","m",6]
[]
[null,181,"RECTANGULAR  LOW PRESSURE GALVANISED SHEET METAL DUCTWORK, EXTERNALLY INSULATED WITH ALUMINIUM FOIL FACED FIBREGLASS AS PER SPECIFICATION  SUITABLE FOR IN-CEILING APPLICATION c/w SUPPORTS *RETURN AIR DUCTING* i) 500x400","m",15]
[]
[null,182,"ii) 400x350","m",4]
[]
[null,183,"iii) 350x350","m",2]
[]
[null,184,"iv) 275x350","m",10]
[]
[null,185,"v) 175x350","m",10]
[]
[null,186,"vi) Dia 250mm","m",5]
[]
[null,187,"vii) Dia 200mm","m",12]
[]
[null,188,"viii) Dia 150mm","m",6]
[]
[null,189,"ix) Dia 250mm Flexible Ducting","m",5]
[]
[null,190,"x) Dia 200mm Flexible Ducting","m",5]
[]
[null,191,"xi) Dia 150mm Flexible Ducting","m",12]
[]
[null,192,"TRANSFORMATION PIECES ( SUPPLY AIR DUCT ) i) 500x400 > 400x400, 600L","No",1]
[]
[null,193,"ii) 400x350 > 350x350, 600L","No",1]
[]
[null,194,"iii) 250x300 > 150x300, 600L","No",1]
[]
[null,195,"iv) 200x300 > 150x250, 600L","No",1]
[]
[null,196,"TRANSFORMATION PIECES ( RETURN AIR DUCT ) i) 400x350 > 300x300, 600L","No",1]
[]
[null,197,"ii) 200x250 > 150x250, 600L","No",1]
[]
[null,198,"SHOE PIECES i)  475x350","No",2]
[]
[null,199,"ii)  250x350","No",2]
[]
[null,200,"iii)  200x300 ","No",2]
[]
[null,201,"SPIGOTS i)  Dia 250mm","No",2]
[]
[null,202,"ii)  Dia 200mm","No",5]
[]
[null,203,"iii) Dia 150mm ","No",5]
[]
[null,204,"BALANCING DAMPERS i)  Dia 250mm","No",6]
[]
[null,205,"ii)  Dia 200mm","No",8]
[]
[null,206,"iii) Dia 150mm ","No",12]
[]
[null,207,"SUPPLY AIR DIFFUSERS Supply and install  ( 600x600 )  VAV Swirl Air  Diffusers c/w (600x600x400) Supply Air Plenum Boxes and Thermal Controls","No",15]
[]
[null,208,"RETURN AIR GRILLS Supply and install  ( 600x600 )  Egg Crate Return Air Griils c/w (600x600x400) Return Air Plenum Boxes","No",15]
[]
[null,209,"HARD WIRED REMOTE CONTROLS Supply and install  Hard Wired Remote Controls","No",15]
[]
[null,210,"SOUND ATTENUATORS i) 750x400, 1200mm Long, Splitter Type","No",1]
[]
[null,211,"VAV PRESSURE CONTROL DAMPER i) 750x400,  c/w Sensor and Wiring","No",1]
[]
[null,212,"ADMISSIONS COUNTER AND DATA CAPTURE i) AC-01( 2,6 KW ), DX HEAT PUMP Mid Wall Split Unit c/w Condensate Pump","No",2]
[]
[null,213,"ii) Refrigerant Pipework","m",30]
[]
[null,214,"iii) Dia 25mm Condensate Pipework","m",30]
[]
[null,215,"iv) Thermostatic Control ( Remote Controllers )","No",2]
[]
[null,216,"CONTROL ROOM i) AC-01( 2,6 KW ), DX HEAT PUMP Mid Wall Split Unit ","No",1]
[]
[null,217,"ii) Refrigerant Pipework","m",4]
[]
[null,218,"iii) Dia 25mm Condensate Pipework","m",4]
[]
[null,219,"iv) Thermostatic Control ( Remote Controllers )","No",1]
[]
[null,220,"UPS ROOM i) AC-02( 2,6 KW ), COOLING ONLY Mid Wall Split Unit c/w Condensate Pump","No",2]
[]
[null,221,"ii) Refrigerant Pipework","m",50]
[]
[null,222,"iii) Dia 25mm Condensate Pipework","m",50]
[]
[null,223,"iv) Thermostatic Control ( Remote Controllers )","No",1]
[]
[null,224,"SERVER ROOM i) AC-02( 2,6 KW ), COOLING ONLY Mid Wall Split Unit c/w Condensate Pump","No",2]
[]
[null,225,"ii) Refrigerant Pipework","m",60]
[]
[null,226,"iii) Dia 25mm Condensate Pipework","m",60]
[]
[null,227,"iv) Thermostatic Control ( Remote Controllers )","No",1]
[]
[null,228,"SOLAR INVERTER ROOM i) AC-03( 7,5 KW ), COOLING ONLY Mid Wall Split Unit ","No",2]
[]
[null,229,"ii) Refrigerant Pipework","m",8]
[]
[null,230,"iii) Dia 25mm Condensate Pipework","m",8]
[]
[null,231,"iv) Thermostatic Control ( Remote Controllers )","No",2]
[]
[null,232,"PHARMACY STORE AND SURGICAL STORE i) AC-02( 2,6 KW ), COOLING ONLY Mid Wall Split Unit c/w Condensate Pump","No",2]
[]
[null,233,"ii) Refrigerant Pipework","m",8]
[]
[null,234,"iii) Dia 25mm Condensate Pipework","m",8]
[]
[null,235,"iv) Thermostatic Control ( Remote Controllers )","No",2]
[]
[null,236,"DOOR GRILLS i) Natural Anodized (300 x 300) Doors Grills","No",8]
[]
[null,237,"ii) Natural Anodized (400 x 400) Doors Grills","No",16]
[]
[null,238,"2 HOUR FUSIBLE LINK FIRE DAMPERS i) 900x400","No",1]
[]
[null,239,"ii) 750x400","No",2]
[]
[null,240,"iii) 550x400","No",2]
[]
[null,241,"iv) 500x400","No",2]
[]
[null,242,"v) 400x400","No",2]
[]
[null,243,"ELECTRICAL CONNECTION TO ALL HVAC EQUIPMENT","SUM",1]
[]
[null,null,"Carried forward to summary of section ",{"$nulls":3},{"$f":"SUM(G3196:G3686)","v":0}]
[]
[null,null,"SECTION NO. 4","H1"]
[]
[null,null,"BILL NO.2","H1"]
[]
[null,null,"HOT AND COLD WATER SERVICES","H1"]
[]
[null,null,"COMPLIANCE","H2"]
[]
[null,1,"As Built Drawings ( 3 Sets and 3 CDs )","SUM",1]
[]
[null,2,"Operation and Maintenance Manuals ( 3 Hard Copies and 3 CDs )","SUM",1]
[]
[null,3,"Training Of Technical Staff Upon Completion","SUM",1]
[]
[null,4,"Project Management and Supervision During Construction","SUM",1]
[]
[null,5,"12 Months Maintenance After Final Handover","SUM",1]
[]
[null,6,"Health And Safety File","SUM",1]
[]
[null,7,"Covid 19 File","SUM",1]
[]
[null,8,"HOT AND COLD WATER SERVICESMATERNITY OBSTETRIC UNIT, MOTHER AND CHILD MCWHHEAT PUMPS Supply and Install Direct Heating / Constant Temperature Output Heat Pumps (NOT Cycle Heating Type)to deliver 70 °C outlet temperature. Heat Pumps to deliver10 KW @ -2/-4 °C (DB/WB) @ an altitude of 1035m.c/w circulation pumps, accessories and controlsHeatpumps to be ALLIANCE Model OR equal approved","No",2]
[]
[null,9,"CALORIFIERS Supply and Install an insulated ALL weather proofwater storage tank complete with external In-Line Heater booster element.2 coats red oxide exterior primer.5year Warranty internal lining) Glass wool and Galvanized Cladding)Storage Tank Capacity:500 litresElectrical Back-Up Element: 6 kW","No",1]
[]
[null,10,"Charge systems, bleed off air and pressure test in the presence of the Engineer and/or Clerk of works","Item","1.00"]
[]
[null,11,"Hot Water Return PUMPS (Duty and Standby) Supply and Install Duty and  Standby Pump Setas specified c/w valves and strainersFlow: 0.6 litres/sec @ 100kPa","No",2]
[]
[null,null,"Class II Copper Pipe: Class II copper water piping in accordance with SANS 460 installed complete with short lengths, cutting, plain couplings, capillary solder and jointing strictly in accordance with the Manufacturer's instructions, support bracksts etc.  ","H3"]
[]
[null,12,"i) Dia 54","m",60]
[]
[null,13,"ii) Dia 42","m",80]
[]
[null,14,"iii) Dia 35","m",65]
[]
[null,15,"iv) Dia 28","m",40]
[]
[null,16,"v) Dia 22","m",60]
[]
[null,17,"vi) Dia 15","m",72]
[]
[null,null,"Bends: Extra over copper piping for capillary fittings in accordance with SANS 1067 - 2 complete with hangers, brackets, soldering , etc.","H3"]
[]
[null,18,"dia 54","No",10]
[]
[null,19,"dia 42","No",6]
[]
[null,20,"dia 35","No",10]
[]
[null,21,"dia 28","No",6]
[]
[null,22,"dia 22","No",25]
[]
[null,23,"dia 15","No",30]
[]
[null,null,"Tees: Extra over copper piping for capillary fittings in accordance with SANS 1067 - 2 complete with hangers, brackets, soldering , etc.","H3"]
[]
[null,24,"dia 54-54-54","No",4]
[]
[null,25,"dia 42-42-42","No",4]
[]
[null,26,"dia 35-35-35","No",10]
[]
[null,27,"dia 28-28-28","No",10]
[]
[null,28,"dia 22-22-22","No",20]
[]
[null,29,"dia 15-15-15","No",25]
[]
[null,null,"Reducers Extra over copper piping for capillary fittings in accordance with SANS 1067 - 2 complete with hangers, brackets, soldering , etc.","H3"]
[]
[null,30,"i) 54 - 42","No",2]
[]
[null,31,"ii) 42 - 35","No",8]
[]
[null,32,"iii) 35 - 28","No",8]
[]
[null,33,"iv) 28 - 22","No",10]
[]
[null,34,"v) 22 - 15","No",20]
[]
[null,null,"Isolating Valves: Ball type Isolating Valve complete with couplings to piping, etc., all strictly in accordance with Manufacturer's instructions and complying to SANS 1056 - 3  ","H3"]
[]
[null,35,"i) Dia 54","No",6]
[]
[null,36,"ii) Dia 42","No",4]
[]
[null,37,"iii) Dia 35","No",4]
[]
[null,38,"iv) Dia 28","No",4]
[]
[null,null,"Non  Return Valves: Lift Lype Non Return Valve complete with couplings to piping, etc., all strictly in accordance with Manufacturer's instructions. ","H3"]
[]
[null,39,"i) Dia 54","No",4]
[]
[null,40,"ii) Dia 42","No",4]
[]
[null,41,"iii) Dia 35","No",2]
[]
[null,42,"iv) Dia 28","No",2]
[]
[null,43,"v) Dia 22","No",6]
[]
[null,null,"AAV - AUTOMATIC AIR VENTS: Specified Strainer complete with couplings to piping, etc., all strictly in accordance with Manufacturer's instructions.","H3"]
[]
[null,44,"i) Dia 22","No",4]
[]
[null,null,"Pressure Reducing Valve","H3"]
[]
[null,45,"i) Dia 54","No",1]
[]
[null,null,"STRAINERS","H3"]
[]
[null,46,"i) Dia 54","No",4]
[]
[null,47,"ii) Dia 22","No",6]
[]
[null,null,"Thermaflex Pipe Insulation Thermaflex 25mm insulation","H3"]
[]
[null,48,"i) Dia 54","m",60]
[]
[null,49,"ii) Dia 42","m",80]
[]
[null,50,"iii) Dia 35","m",65]
[]
[null,51,"iv) Dia 28","m",40]
[]
[null,52,"v) Dia 22","m",60]
[]
[null,53,"vi) Dia 15","m",72]
[]
[null,null,"Pipe Insulation (Exposed piping) 25 mm thick snap-on preformed glass fibre insulation with a density of 80 kg/m3 and covered with 0.5mm thick galvanised sheet metal cladding.","H3"]
[]
[null,54,"i) Dia 54","m",20]
[]
[null,null,"Insulation to fittings (plastered finish) including T's, bends, reducers, valves, etc.","H3"]
[]
[null,55,"i) Dia 54","No",30]
[]
[null,56,"ii) Dia 42","No",25]
[]
[null,57,"iii) Dia 35","No",20]
[]
[null,58,"iv) Dia 28","No",25]
[]
[null,59,"v) Dia 22","No",40]
[]
[null,60,"vi) Dia 15","No",80]
[]
[null,null," Control Panel And Electrical Connections In Plant Room","H3"]
[]
[null,61,"i) Main distribution Board wiring c/w controls for 2 Calorifiers and 2-off heatpumps and circulation pumps","No",1]
[]
[null,62,"CHRONIC CARE UNITHEAT PUMPS Supply and Install Direct Heating / Constant Temperature Output Heat Pumps (NOT Cycle Heating Type)to deliver 70 °C outlet temperature. Heat Pumps to deliver10 KW @ -2/-4 °C (DB/WB) @ an altitude of 1035m.c/w circulation pumps, accessories and controlsHeatpumps to be ALLIANCE Model OR equal approved","No",2]
[]
[null,63,"CALORIFIERS Supply and Install an insulated ALL weather proofwater storage tank complete with external In-Line Heater booster element.2 coats red oxide exterior primer.5year Warranty internal lining) Glass wool and Galvanized Cladding)Storage Tank Capacity:500 litresElectrical Back-Up Element: 6 kW","No",1]
[]
[null,64,"Charge systems, bleed off air and pressure test in the presence of the Engineer and/or Clerk of works","Item","1.00"]
[]
[null,65,"Hot Water Return PUMPS (Duty and Standby) Supply and Install Duty and  Standby Pump Setas specified c/w valves and strainersFlow: 0.6 litres/sec @ 100kPa","No",2]
[]
[null,null,"Class II Copper Pipe: Class II copper water piping in accordance with SANS 460 installed complete with short lengths, cutting, plain couplings, capillary solder and jointing strictly in accordance with the Manufacturer's instructions, support bracksts etc.  ","H3"]
[]
[null,66,"i) Dia 54","m",20]
[]
[null,67,"ii) Dia 42","m",60]
[]
[null,68,"iii) Dia 35","m",50]
[]
[null,69,"iv) Dia 28","m",40]
[]
[null,70,"v) Dia 22","m",55]
[]
[null,71,"vi) Dia 15","m",50]
[]
[null,null,"Bends: Extra over copper piping for capillary fittings in accordance with SANS 1067 - 2 complete with hangers, brackets, soldering , etc.","H3"]
[]
[null,72,"dia 54","No",8]
[]
[null,73,"dia 42","No",6]
[]
[null,74,"dia 35","No",10]
[]
[null,75,"dia 28","No",6]
[]
[null,76,"dia 22","No",30]
[]
[null,77,"dia 15","No",26]
[]
[null,null,"Tees: Extra over copper piping for capillary fittings in accordance with SANS 1067 - 2 complete with hangers, brackets, soldering , etc.","H3"]
[]
[null,78,"dia 54-54-54","No",4]
[]
[null,79,"dia 42-42-42","No",4]
[]
[null,80,"dia 35-35-35","No",12]
[]
[null,81,"dia 28-28-28","No",12]
[]
[null,82,"dia 22-22-22","No",20]
[]
[null,83,"dia 15-15-15","No",20]
[]
[null,null,"Reducers Extra over copper piping for capillary fittings in accordance with SANS 1067 - 2 complete with hangers, brackets, soldering , etc.","H3"]
[]
[null,84,"i) 54 - 42","No",2]
[]
[null,85,"ii) 42 - 35","No",6]
[]
[null,86,"iii) 35 - 28","No",10]
[]
[null,87,"iv) 28 - 22","No",12]
[]
[null,88,"v) 22 - 15","No",20]
[]
[null,null,"Isolating Valves: Ball type Isolating Valve complete with couplings to piping, etc., all strictly in accordance with Manufacturer's instructions and complying to SANS 1056 - 3  ","H3"]
[]
[null,89,"i) Dia 54","No",6]
[]
[null,90,"ii) Dia 42","No",4]
[]
[null,91,"iii) Dia 35","No",4]
[]
[null,92,"iv) Dia 28","No",4]
[]
[null,null,"Non  Return Valves: Lift Lype Non Return Valve complete with couplings to piping, etc., all strictly in accordance with Manufacturer's instructions. ","H3"]
[]
[null,93,"i) Dia 54","No",4]
[]
[null,94,"ii) Dia 42","No",4]
[]
[null,95,"iii) Dia 35","No",2]
[]
[null,96,"iv) Dia 28","No",2]
[]
[null,97,"v) Dia 22","No",6]
[]
[null,null,"AAV - AUTOMATIC AIR VENTS: Specified Strainer complete with couplings to piping, etc., all strictly in accordance with Manufacturer's instructions.","H3"]
[]
[null,98,"i) Dia 22","No",4]
[]
[null,null,"Pressure Reducing Valve","H3"]
[]
[null,99,"i) Dia 54","No",1]
[]
[null,null,"STRAINERS","H3"]
[]
[null,100,"i) Dia 54","No",4]
[]
[null,101,"ii) Dia 22","No",6]
[]
[null,null,"Thermaflex Pipe Insulation Thermaflex 25mm insulation","H3"]
[]
[null,102,"i) Dia 54","m",60]
[]
[null,103,"ii) Dia 42","m",80]
[]
[null,104,"iii) Dia 35","m",65]
[]
[null,105,"iv) Dia 28","m",40]
[]
[null,106,"v) Dia 22","m",60]
[]
[null,107,"vi) Dia 15","m",72]
[]
[null,null,"Pipe Insulation (Exposed Piping) 25 mm thick snap-on preformed glass fibre insulation with a density of 80 kg/m3 and covered with 0.5mm thick galvanised sheet metal cladding.","H3"]
[]
[null,108,"i) Dia 54","m",20]
[]
[null,null,"Insulation to fittings (plastered finish) including T's, bends, reducers, valves, etc.","H3"]
[]
[null,109,"i) Dia 54","No",30]
[]
[null,110,"ii) Dia 42","No",25]
[]
[null,111,"iii) Dia 35","No",20]
[]
[null,112,"iv) Dia 28","No",25]
[]
[null,113,"v) Dia 22","No",40]
[]
[null,114,"vi) Dia 15","No",80]
[]
[null,null," Control Panel And Electrical Connections In Plant Room","H3"]
[]
[null,115,"i) Main distribution Board wiring c/w controls for 2 Calorifiers and 2-off heatpumps and circulation pumps","No",1]
[]
[null,116,"ACUTE CARE UNITHEAT PUMPS Supply and Install Direct Heating / Constant Temperature Output Heat Pumps (NOT Cycle Heating Type)to deliver 70 °C outlet temperature. Heat Pumps to deliver10 KW @ -2/-4 °C (DB/WB) @ an altitude of 1035m.c/w circulation pumps, accessories and controlsHeatpumps to be ALLIANCE Model OR equal approved","No",2]
[]
[null,117,"CALORIFIERS Supply and Install an insulated ALL weather proofwater storage tank complete with external In-Line Heater booster element.2 coats red oxide exterior primer.5year Warranty internal lining) Glass wool and Galvanized Cladding)Storage Tank Capacity:500 litresElectrical Back-Up Element: 6 kW","No",1]
[]
[null,118,"Charge systems, bleed off air and pressure test in the presence of the Engineer and/or Clerk of works","Item","1.00"]
[]
[null,119,"Hot Water Return PUMPS (Duty and Standby) Supply and Install Duty and  Standby Pump Setas specified c/w valves and strainersFlow: 0.6 litres/sec @ 100kPa","No",2]
[]
[null,null,"Class II Copper Pipe: Class II copper water piping in accordance with SANS 460 installed complete with short lengths, cutting, plain couplings, capillary solder and jointing strictly in accordance with the Manufacturer's instructions, support bracksts etc.  ","H3"]
[]
[null,120,"i) Dia 54","m",20]
[]
[null,121,"ii) Dia 42","m",60]
[]
[null,122,"iii) Dia 35","m",50]
[]
[null,123,"iv) Dia 28","m",40]
[]
[null,124,"v) Dia 22","m",55]
[]
[null,125,"vi) Dia 15","m",50]
[]
[null,null,"Bends: Extra over copper piping for capillary fittings in accordance with SANS 1067 - 2 complete with hangers, brackets, soldering , etc.","H3"]
[]
[null,126,"dia 54","No",8]
[]
[null,127,"dia 42","No",6]
[]
[null,128,"dia 35","No",10]
[]
[null,129,"dia 28","No",6]
[]
[null,130,"dia 22","No",30]
[]
[null,131,"dia 15","No",26]
[]
[null,null,"Tees: Extra over copper piping for capillary fittings in accordance with SANS 1067 - 2 complete with hangers, brackets, soldering , etc.","H3"]
[]
[null,132,"dia 54-54-54","No",4]
[]
[null,133,"dia 42-42-42","No",4]
[]
[null,134,"dia 35-35-35","No",12]
[]
[null,135,"dia 28-28-28","No",12]
[]
[null,136,"dia 22-22-22","No",20]
[]
[null,137,"dia 15-15-15","No",20]
[]
[null,null,"Reducers Extra over copper piping for capillary fittings in accordance with SANS 1067 - 2 complete with hangers, brackets, soldering , etc.","H3"]
[]
[null,138,"i) 54 - 42","No",2]
[]
[null,139,"ii) 42 - 35","No",6]
[]
[null,140,"iii) 35 - 28","No",10]
[]
[null,141,"iv) 28 - 22","No",12]
[]
[null,142,"v) 22 - 15","No",20]
[]
[null,null,"Isolating Valves: Ball type Isolating Valve complete with couplings to piping, etc., all strictly in accordance with Manufacturer's instructions and complying to SANS 1056 - 3  ","H3"]
[]
[null,143,"i) Dia 54","No",6]
[]
[null,144,"ii) Dia 42","No",4]
[]
[null,145,"iii) Dia 35","No",4]
[]
[null,146,"iv) Dia 28","No",4]
[]
[null,null,"Non  Return Valves: Lift Lype Non Return Valve complete with couplings to piping, etc., all strictly in accordance with Manufacturer's instructions. ","H3"]
[]
[null,147,"i) Dia 54","No",4]
[]
[null,148,"ii) Dia 42","No",4]
[]
[null,149,"iii) Dia 35","No",2]
[]
[null,150,"iv) Dia 28","No",2]
[]
[null,151,"v) Dia 22","No",6]
[]
[null,null,"AAV - AUTOMATIC AIR VENTS: Specified Strainer complete with couplings to piping, etc., all strictly in accordance with Manufacturer's instructions.","H3"]
[]
[null,152,"i) Dia 22","No",4]
[]
[null,null,"Pressure Reducing Valve","H3"]
[]
[null,153,"i) Dia 54","No",1]
[]
[null,null,"STRAINERS","H3"]
[]
[null,154,"i) Dia 54","No",4]
[]
[null,155,"ii) Dia 22","No",6]
[]
[null,null,"Thermaflex Pipe Insulation Thermaflex 25mm insulation","H3"]
[]
[null,156,"i) Dia 54","m",60]
[]
[null,157,"ii) Dia 42","m",80]
[]
[null,158,"iii) Dia 35","m",65]
[]
[null,159,"iv) Dia 28","m",40]
[]
[null,160,"v) Dia 22","m",60]
[]
[null,161,"vi) Dia 15","m",72]
[]
[null,null,"Pipe Insulation (Exposed Piping) 25 mm thick snap-on preformed glass fibre insulation with a density of 80 kg/m3 and covered with 0.5mm thick galvanised sheet metal cladding.","H3"]
[]
[null,162,"i) Dia 54","m",20]
[]
[null,null,"Insulation to fittings (plastered finish) including T's, bends, reducers, valves, etc.","H3"]
[]
[null,163,"i) Dia 54","No",30]
[]
[null,164,"ii) Dia 42","No",25]
[]
[null,165,"iii) Dia 35","No",20]
[]
[null,166,"iv) Dia 28","No",25]
[]
[null,167,"v) Dia 22","No",40]
[]
[null,168,"vi) Dia 15","No",80]
[]
[null,null," Control Panel And Electrical Connections In Plant Room","H3"]
[]
[null,169,"i) Main distribution Board wiring c/w controls for 2 Calorifiers and 2-off heatpumps and circulation pumps","No",1]
[]
[null,170,"PHARMACY UNIT 50 litre Split  Type Vertical Heatpump Geyser 400 kPa pressure rating and 3.5 kW input 1kw Heatpump c/w insulation, control, accessories and wiring to local isolator. Heatpump to be Alliance Model equal or approved","No",1]
[]
[null,null,"Class II Copper Pipe: Class II copper water piping in accordance with SANS 460 installed complete with short lengths, cutting, plain couplings, capillary solder and jointing strictly in accordance with the Manufacturer's instructions, support bracksts etc.  ","H3"]
[]
[null,171,"i) Dia 42","m",50]
[]
[null,172,"ii) Dia 35","m",45]
[]
[null,173,"iii) Dia 28","m",48]
[]
[null,174,"iv) Dia 22","m",80]
[]
[null,175,"iv) Dia 15","m",50]
[]
[null,176,"Ceiling Mounted Instant Water Heater 10 litre Ceiling Mounted Instant Water Heater 400 kPa pressure rating  c/w  controls, accessories and wiring to local isolator","No",5]
[]
[null,177,"MAIN CENTRAL AREA 50 litre Split  Type Vertical Heatpump Geyser 400 kPa pressure rating and 3.5 kW input 1kw Heatpump c/w insulation, control, accessories and wiring to local isolator. Heatpump to be Alliance Model equal or approved","No",1]
[]
[null,null,"Class II Copper Pipe: Class II copper water piping in accordance with SANS 460 installed complete with short lengths, cutting, plain couplings, capillary solder and jointing strictly in accordance with the Manufacturer's instructions, support bracksts etc.  ","H3"]
[]
[null,178,"i) Dia 42","m",40]
[]
[null,179,"ii) Dia 35","m",40]
[]
[null,180,"iii) Dia 28","m",30]
[]
[null,181,"iv) Dia 22","m",60]
[]
[null,182,"iv) Dia 15","m",50]
[]
[null,183,"STAFF CHANGING ROOMS 50 litre Split  Type Vertical Heatpump Geyser 400 kPa pressure rating and 3.5 kW input 1kw Heatpump c/w insulation, control, accessories and wiring to local isolator. Heatpump to be Alliance Model equal or approved","No",1]
[]
[null,null,"Class II Copper Pipe: Class II copper water piping in accordance with SANS 460 installed complete with short lengths, cutting, plain couplings, capillary solder and jointing strictly in accordance with the Manufacturer's instructions, support bracksts etc.  ","H3"]
[]
[null,184,"i) Dia 42","m",40]
[]
[null,185,"ii) Dia 35","m",40]
[]
[null,186,"iii) Dia 28","m",30]
[]
[null,187,"iv) Dia 22","m",60]
[]
[null,188,"iv) Dia 15","m",50]
[]
[null,null,"Carried to summary of section",{"$nulls":3},{"$f":"SUM(G3691:G4155)","v":0}]
[]
[null,null,"SECTION NO. 4","H1"]
[]
[null,null,"BILL NO. 3","H1"]
[]
[null,null,"FIRE AND PROTECTION SERVICES","H1"]
[]
[null,null,"COMPLIANCE","H2"]
[]
[null,1,"As Built Drawings ( 3 Sets and 3 CDs )","SUM",1]
[]
[null,2,"Operation and Maintenance Manuals ( 3 Hard Copies and 3 CDs )","SUM",1]
[]
[null,3,"Training Of Technical Staff Upon Completion","SUM",1]
[]
[null,4,"Project Management and Supervision During Construction","SUM",1]
[]
[null,5,"12 Months Maintenance After Final Handover","SUM",1]
[]
[null,6,"Health And Safety File","SUM",1]
[]
[null,7,"Covid 19 File","SUM",1]
[]
[null,null,"PROVISIONAL SUMS","H2"]
[]
[null,null,"Include the folowing Provisional Sums (which may be utilised or omitted at the discretion of the Engineer), in the Tender Price for required associated services.","H3"]
[]
[null,8,"Provisional Sum for Contingencies","SUM",1]
[]
[null,null,"FIRE PROTECTION SERVICES","H2"]
[]
[null,9,"FIRE HOSE REELS Supply and install fire hose reels complete as specified in cabinets with breakable glass","No",12]
[]
[null,null,"PIPEWORK FOR FIRE HOSE REELS Supply and install medium grade, seamless galvanised mild steel pipework complete with pipe supports and accessories as specified and shown on the drawings.","H3"]
[]
[null,10,"i) Ø50mm","m",75]
[]
[null,11,"ii) Ø40mm","m",60]
[]
[null,12,"iii) Ø32mm","m",50]
[]
[null,13,"iv) Ø25mm","m",60]
[]
[null,null,"Extra over pipework as follows: BENDS","H3"]
[]
[null,14,"i) Ø50mm","No",10]
[]
[null,15,"ii) Ø40mm","No",2]
[]
[null,16,"iii) Ø32mm","No",8]
[]
[null,17,"iv) Ø25mm","No",20]
[]
[null,null,"REDUCERS","H3"]
[]
[null,18,"i) Ø50 x 40mm","No",2]
[]
[null,19,"ii) Ø40 x 32mm","No",4]
[]
[null,20,"iii) Ø32 x 25mm","No",6]
[]
[null,null,"REDUCING TEES","H3"]
[]
[null,21,"i) Ø50 x 25 x 50mm","No",5]
[]
[null,22,"ii) Ø40 x 25 x 40mm","No",10]
[]
[null,23,"iii) Ø32 x 25 x 32mm","No",10]
[]
[null,null,"ELBOWS","H3"]
[]
[null,24,"i) Ø50 ","No",5]
[]
[null,25,"ii) Ø40","No",10]
[]
[null,26,"iii) Ø25","No",40]
[]
[null,null,"PORTABLE FIRE EXTINGUISHERS Supply and install fire extinguishers complete with cabinets, with breakable glass as specified","H3"]
[]
[null,27,"i) 4.5kg dry chemical powder.","No",18]
[]
[null,28,"ii) 5kg carbon dioxide ( NOT INSTALLED IN CABINETS )","No",12]
[]
[null,null,"PHOTOLUMINESCENT SIGNAGE","H3"]
[]
[null,29,"i) E3 ","No",20]
[]
[null,30,"ii) F4","No",9]
[]
[null,31,"iv) E6","No",10]
[]
[null,32,"v) F13","No",6]
[]
[null,33,"v) E1","No",10]
[]
[null,34,"v) E2","No",8]
[]
[null,35,"v) E10","No",6]
[]
[null,null,"FIRE AND DOMESTIC WATER  BOOSTER PUMP SETSupply, deliver, off-load and store on site a pressure boosting units complete with manifolds, valves, 500ldiaphragm type expansion vessel, interconnecting piping, pressure gauges and other accessories as specified and shown on the drawings.","H3"]
[]
[null,36,"i) Variable Speed Vertical Multi-Stage Water Pumps ( 3 Off ) Total Duty: 77.4m3/hr @350kPa. Each Pump @25,8 m3/hr","Pairs","1.0"]
[]
[null,37,"ii) Install Item ( i )","Item","1.00"]
[]
[null,38,"FIRE HYDRANTS Supply and install Dia. 65mm  fire hydrants complete as specified ","No",5]
[]
[null,null,"Carried forward to summary of section",{"$nulls":3},{"$f":"SUM(G4159:G4264)","v":0}]
[]
[null,null,"SECTION NO. 4","H1"]
[]
[null,null,"BILL NO. 4","H1"]
[]
[null,null,"DENTAL CHAIRS","H1"]
[]
[null,null,"COMPLIANCE","H2"]
[]
[null,1,"As Built Drawings ( 3 Sets and 3 CDs )","SUM",1]
[]
[null,2,"Operation and Maintenance Manuals ( 3 Hard Copies and 3 CDs )","SUM",1]
[]
[null,3,"Training Of Technical Staff Upon Completion","SUM",1]
[]
[null,4,"Project Management and Supervision During Construction","SUM",1]
[]
[null,5,"12 Months Maintenance After Final Handover","SUM",1]
[]
[null,6,"Health And Safety File","SUM",1]
[]
[null,7,"Covid 19 File","SUM",1]
[]
[null,null,"PROVISIONAL SUMS","H2"]
[]
[null,null,"Include the folowing Provisional Sums (which may be utilised or omitted at the discretion of the Engineer), in the Tender Price for required associated services.","H3"]
[]
[null,8,"Provisional Sum for Contingencies","SUM",1]
[]
[null,9,"Dental Chair Complete ","No",2]
[]
[null,10,"Dental Light Complete","No",2]
[]
[null,11,"Dental Unit Complete","No",2]
[]
[null,12,"Dental Cabinet Complete","No",2]
[]
[null,13,"Dental Handpiece tubing Complete","No",4]
[]
[null,14,"Dental handpiece complete","No",4]
[]
[null,15,"Dental straight handpiece fitting ","No",4]
[]
[null,16,"Dental contra-angle handpiece fitting","No",4]
[]
[null,17,"Dental prophylaxis handpiece","No",4]
[]
[null,18,"Dental micro motor complete","No",4]
[]
[null,19,"Dental cuspidor/spittoon complete","No",4]
[]
[null,20,"Dental vacuum assistant instrumentation complete","No",4]
[]
[null,21,"Dental chair connection boy complete","No",4]
[]
[null,22,"Cattani Pal 38 Suction","No",2]
[]
[null,23,"Dental oil free compressor system","No",2]
[]
[null,24,"Dental Dr Stool /Operator Stool ","No",2]
[]
[null,25,"Dental amalgamator complete ","No",2]
[]
[null,26,"Dental LED type curing light complete","No",2]
[]
[null,27,"Digital X-Ray unit complete","No",2]
[]
[null,28,"Pan X-Ray unit complete","No",1]
[]
[null,29,"Dental ultra-sonic scaler complete ","No",2]
[]
[null,30,"Durr dental developer digital","No",2]
[]
[null,31,"Computer system for digital developing","No",1]
[]
[null,32,"EZ 9 Autoclave Sterilizer","No",2]
[]
[null,null,"Carried forward to summary of section",{"$nulls":3},{"$f":"SUM(G4267:G4341)","v":0}]
[]
[null,1,"HVAC","Page",133,0,{"$f":"G3687","v":0}]
[]
[null,2,"Hot and Cold Water Services","Page",147,0,{"$f":"G4157","v":0}]
[]
[null,3,"Fire Protection Services","Page",150,0,{"$f":"G4265","v":0}]
[]
[null,4,"Dental Chairs","Page",152,0,{"$f":"G4343","v":0}]
[]
[null,null,"SECTION SUMMARY - MECHANICAL WORK",{"$nulls":3},{"$f":"SUM(G4345:G4352)","v":0}]
[]
[null,null,"SECTION NO. 5","H1"]
[]
[null,null,"BILL NO. 1","H1"]
[]
[null,null,"ELECTRICAL WORK","H2"]
[]
[null,null,"COMPLIANCE WITH CONDITIONS","H3"]
[]
[null,1,"Nett price for compliance with the Conditions of Contract, the Special Conditions of Contract, and various specifications, which","SUM",1]
[]
[null,null,"costs are not specifically covered elsewhere or by unit rates","H3"]
[]
[null,null,"SURETY","H3"]
[]
[null,2,"Allow for the provision of a performance guarantee for the contract value - refer to the main contract preliminaries attached","SUM",1]
[]
[null,null,"SITE ESTABLISHMENT","H3"]
[]
[null,3,"Allow for the electrical site establishment, all associated services and for storage of plant, materials and equipment including protection thereof","SUM",1]
[]
[null,null,"TRANSPORT","H3"]
[]
[null,4,"Provide and arrange for transport and off loading of all electrical material and equipment to site as well as workmen and staff","SUM",1]
[]
[null,null,"COMMISSIONING AND TESTING","H3"]
[]
[null,5,"Supply all test equipment and labour for testing, commissioning and and adjustment for all the sections of the installation.","SUM",1]
[]
[null,null,"DRAWINGS","H3"]
[]
[null,6,"Making reference, to other relevant drawings e.g. Civil, Structural, Architectural existing services etc.","SUM",1]
[]
[null,null,"AS BUILT DRAWINGS","H3"]
[]
[null,7,"Compilation of as built drawings for the complete electrical installation","SUM",1]
[]
[null,null,"EXTRACTS FROM THE PRINCIPAL CONTRACTOR\\","H3"]
[]
[null,8,"Allowance for any costs associated with the requirements of the Principal Contract preliminaries which may affect the selected sub contract.","SUM",1]
[]
[null,null,"MAINTENANCE","H3"]
[]
[null,9,"Allow for a maintenance period as per PW 379 for defects in equipment, material and workmanship but wear and tear and normal maintenance excluded","SUM",1]
[]
[null,null,"GUARANTEE PERIOD","H3"]
[]
[null,10,"Allow for a guarantee period as per PW379 on all the electrical and electronic equipment but items such as lamps excluded","SUM",1]
[]
[null,null,"ADDITIONAL","H3"]
[]
[null,null,"Allow for the following additional item(s): ","H3"]
[]
[null,11,"Ablution facilities","SUM",1]
[]
[null,12,"Water & electrical connections","SUM",1]
[]
[null,13,"Any time related items","SUM",1]
[]
[null,14,"Training of local residents re: the installation of cables, conduits, etc.(if applicable)","SUM",1]
[]
[null,15,"Storage facility for all the metirials on site ","SUM",1]
[]
[null,null,"STRIPING EXISTING INSTALLATION","H3"]
[]
[null,16,"Allow a sum amount for the stripping of the electrical installation, liasion with the Client, handing over of all equipment to the Client, arrange for switching off of power supplies and make save of\\ outlet points, etc","SUM",1]
[]
[null,null,"OTHER NECESSARY WORKS","H3"]
[]
[null,17,"All other works necessary to complete the installation in a satisfactory manner, and in accordance with the drawings, specification, SABS Code of Practice, the Local Authorities requirements, and to the Engineers satisfaction to include for items specified or shown but not itemised in this bill.","SUM",1]
[]
[null,null,"ELECTRICAL RETICULATION INSTALLATION","H3"]
[]
[null,null,"NOTE: Tenderers are advised to study the specification before pricing the bill.","H3"]
[]
[null,null,"DISTRIBUTION BOARDS","H3"]
[]
[null,null,"Allowance should be made for the following electrical equipment.","H3"]
[]
[null,null,"Supply, deliver, install and commissioning of electrical distribution boards painted steel panel complete with doors, frames, sub-frames, chassis, fixtures, fittings, terminations, busbars, wiring, labels danger signs and with spare space etc as per specification.","H3"]
[]
[null,null,"Equipment to be provided in distribution board","H3"]
[]
[null,null,"See attached single line diagram for details of the equipment to be provided in the electrical \\distribution board where applicable","H3"]
[]
[null,18,"Supply and install main New kiosk with metering unit complete with all accessories.                                                       Supply","Item","1.00"]
[]
[null,19,"Install","Item","1.00"]
[]
[null,20,"Supply and install Kiosk 1 complete with all accessories.   Supply","Item","1.00"]
[]
[null,21,"Install","Item","1.00"]
[]
[null,22,"Supply and install Kiosk 2 complete with all accessories.   Supply","Item","1.00"]
[]
[null,23,"Install","Item","1.00"]
[]
[null,24,"Supply and install new LV Panel with all accessories. Supply","Item","1.00"]
[]
[null,25,"Install","Item","1.00"]
[]
[null,26,"Supply and install  MDB with all accessories. Supply","Item","1.00"]
[]
[null,27,"Install","Item","1.00"]
[]
[null,28,"Supply and install DB-CC with all accessories. Supply","Item","1.00"]
[]
[null,29,"Install","Item","1.00"]
[]
[null,30,"Supply and install DB-MAT with all accessories. Supply","Item","1.00"]
[]
[null,31,"Install","Item","1.00"]
[]
[null,32,"Supply and install DB-PH with all accessories. Supply","Item","1.00"]
[]
[null,33,"Install","Item","1.00"]
[]
[null,34,"Supply and install DB-PHA with all accessories. Supply","Item","1.00"]
[]
[null,35,"Install","Item","1.00"]
[]
[null,36,"Supply and install DB-MCA with all accessories. Supply","Item","1.00"]
[]
[null,37,"Install","Item","1.00"]
[]
[null,38,"Supply and install DB-AC with all accessories. Supply","Item","1.00"]
[]
[null,39,"Install","Item","1.00"]
[]
[null,40,"Supply and install DB-GH with all accessories.","Item","1.00"]
[]
[null,41,"Supply","Item","1.00"]
[]
[null,42,"InstallElectrical danger signs for all DB's.                                        Supply","No",15]
[]
[null,43,"Install","No",15]
[]
[null,null,"LOW VOLTAGE CABLES","H3"]
[]
[null,null,"600/1000V Grade PVC/PVC/SWA/PVC stranded copper conductor cables, terminations and bare copper earth conductors","H3"]
[]
[null,null,"16 mm sqr 4 core PVC/PVC/SWA/PVC normal power supply cable ","H3"]
[]
[null,44,"Supply","m",600]
[]
[null,45,"Install","m",600]
[]
[null,46,"10 mm sqr bare copper conductor Supply","m",600]
[]
[null,47,"Install","m",600]
[]
[null,48,"Cable termination of cable and BCEW complete with glands, shrouds, lugs, connections and commissioning Supply","Item","46.00"]
[]
[null,49,"Install","Item","46.00"]
[]
[null,null,"50 mm sqr 4 core PVC/PVC/SWA/PVC normal power cable from","H3"]
[]
[null,50,"Supply","m",110]
[]
[null,51,"Install","m",110]
[]
[null,52,"35 mm sqr bare copper conductor Supply","m",110]
[]
[null,53,"Install","m",110]
[]
[null,54,"Cable termination of cable and BCEW complete with glands, shrouds, lugs, connections and commissioning Supply","Item","4.00"]
[]
[null,55,"Install","Item","4.00"]
[]
[null,56,"70 mm sqr 4core PVC/PVC/SWA/PVC normal power supply cable from Main DB Supply","m",70]
[]
[null,57,"Install","m",70]
[]
[null,58,"50 mm sqr bare copper conductor Supply","m",70]
[]
[null,59,"Install","m",70]
[]
[null,60,"Cable termination of cable and BCEW complete with glands, shrouds, lugs, connections and commissioning Supply","Item","2.00"]
[]
[null,61,"Install","Item","2.00"]
[]
[null,null,"95 mm sqr 4 core PVC/PVC/SWA/PVC normal power supply cable ","H3"]
[]
[null,62,"Supply","m",130]
[]
[null,63,"Install","m",130]
[]
[null,64,"70 mm sqr bare copper conductor Supply","m",130]
[]
[null,65,"Install","m",130]
[]
[null,66,"Cable termination of cable and BCEW complete with glands, shrouds, lugs, connections and commissioning Supply","Item","4.00"]
[]
[null,67,"Install","Item","4.00"]
[]
[null,68,"35 mm sqr 4-core PVC/PVC/SWA/PVC normal power supply cable from Main DB to DB-BMSupply","m",120]
[]
[null,69,"Install","m",120]
[]
[null,70,"25 mm sqr bare copper conductor Supply","m",120]
[]
[null,71,"Install","m",120]
[]
[null,72,"Cable termination of cable and BCEW complete with glands, shrouds, lugs, connections and commissioning Supply","Item","2.00"]
[]
[null,73,"Install","Item","2.00"]
[]
[null,null,"25 mm sqr 4-core PVC/PVC/SWA/PVC  normal supply cable ","H3"]
[]
[null,74,"Supply","m",120]
[]
[null,75,"Install","m",120]
[]
[null,76,"16 mm sqr bare copper conductor Supply","m",120]
[]
[null,77,"Install","m",120]
[]
[null,78,"Cable termination of cable and BCEW complete with glands, shrouds, lugs, connections and commissioning Supply","Item","4.00"]
[]
[null,79,"Install","Item","4.00"]
[]
[null,80,"Supply and install DB-J, 1 & 2 with all accessories. Supply","Item","3.00"]
[]
[null,81,"Install","Item","3.00"]
[]
[null,82,"Supply and install 80kVA UPS with at least 2hrs battery backup Supply","Item","1.00"]
[]
[null,83,"Install","Item","1.00"]
[]
[null,null,"120mm sqr 4-core PVC/PVC/SWA/PVC  supply cable from  ","H3"]
[]
[null,84,"Supply","m",200]
[]
[null,85,"Install","m",200]
[]
[null,86,"95 mm sqr bare copper conductor Supply","m",200]
[]
[null,87,"Install","m",200]
[]
[null,88,"Cable termination of cable and BCEW complete with glands, shrouds, lugs, connections and commissioning Supply","Item","2.00"]
[]
[null,89,"Install","Item","2.00"]
[]
[null,90,"10mm sqr 4-core PVC/PVC/SWA/PVC emergency supply cable from  Supply","m",60]
[]
[null,91,"Install","m",60]
[]
[null,92,"6 mm sqr bare copper conductor Supply","m",60]
[]
[null,93,"Install","m",60]
[]
[null,94,"Cable termination of cable and BCEW complete with glands, shrouds, lugs, connections and commissioning Supply","Item","2.00"]
[]
[null,95,"Install","Item","2.00"]
[]
[null,null,"16mm sqr 3-core PVC/PVC/SWA/PVC emergency supply cable ","H3"]
[]
[null,96,"Supply","m",200]
[]
[null,97,"Install","m",200]
[]
[null,98,"10 mm sqr bare copper conductor Supply","m",200]
[]
[null,99,"Install","m",200]
[]
[null,100,"Cable termination of cable and BCEW complete with glands, shrouds, lugs, connections and commissioning Supply","Item","4.00"]
[]
[null,101,"Install","Item","4.00"]
[]
[null,102,"Cable testing","SUM",1]
[]
[null,103,"Labels - cable numbers","SUM",1]
[]
[null,null,"CABLE LADDERS AND TRUNKING","H3"]
[]
[null,null,"Allowance should be made for the following electrical equipment","H3"]
[]
[null,null,"Heavy duty hot dipped galvanised cable ladder welded construction 2mm material thickness 76 mm side rail height complete with all risers, droppers, bends, horisontal tees, horisontal crosscovers, height reducing splices, splices, adjustable splices, bolts, nuts, washers, spring washers, supporting brackets, cantilever brackets or hangers etc as required and specified:","H3"]
[]
[null,104,"600 mm wide cable ladder                                                         Supply","m",20]
[]
[null,105,"Install","m",20]
[]
[null,106,"100 mm wide cable ladder Supply","m",30]
[]
[null,107,"Install","m",30]
[]
[null,108,"150 mm wide cable tray Supply","m",250]
[]
[null,109,"Install","m",250]
[]
[null,110,"300 mm wide cable mash basket Supply","m",300]
[]
[null,111,"Install","m",300]
[]
[null,112,"110 mm Cable sleeves and man hole's Supply and install a 110 mm PVC sleeves completewith all accessories 110mm cable sleevesSupply","m",1500]
[]
[null,113,"Install","m",1500]
[]
[null,114,"800mm x 800mm x 600mm manhole Supply","No",10]
[]
[null,115,"Install","No",10]
[]
[null,null,"Excavate and backfill cable trench 800deep 600wide including compacting","H3"]
[]
[null,116,"In hand - pickable soil","m3",600]
[]
[null,117,"In Soft Rock","m3",320]
[]
[null,118,"In hard Rock","m3",200]
[]
[null,119,"Danger Tape","m",3500]
[]
[null,null,"INTERNAL ELECTRICAL INSTALLATION","H3"]
[]
[null,null,"Complete electrical installation: internal small power and lighting","H3"]
[]
[null,null,"NOTE: Tenderers are advised to study the specification before pricing the bill.","H3"]
[]
[null,null,"SMALL POWER AND LIGHTING","H3"]
[]
[null,null,"SWITCHED SOCKET OUTLETS","H3"]
[]
[null,null,"Switched socket outlets and accessories as specified in the specification:","H3"]
[]
[null,null,"Allowance should be made for the following electrical equipment","H3"]
[]
[null,null,"16 Ampere round 3 pin 250 V grade switched socket outlets complete with cover plates, screws, etc installed in flush draw boxes or power skirting.","H3"]
[]
[null,null,"600V/1000V grade PVC insulated stranded copper conductor drawn in conduit 4 mm sqr PVC conductors and 2.5mm sqr BCEW","H3"]
[]
[null,null,"Draw boxes, conduits equipped with draw wire placed in position for casting into concrete or screed, for building in or chased into concrete or brickwork and for surface mounted in ceiling voids included dending threading, jointing, short lengths, draw boxes, couplings, bends, tees, and saddles etc as specified:","H3"]
[]
[null,120,"16 Amp single switched socket outlet complete with cover plate for installation in a 100 mm x 100 mm drawbox, etc Supply","No",200]
[]
[null,121,"Install","No",200]
[]
[null,122,"16 Amp double switched socket outlet complete with cover plate for installation in a 100 mm x 100 mm drawbox, etc Supply","No",60]
[]
[null,123,"Install","No",60]
[]
[null,124,"16 Amp normal switched socket outlet complete with cover plate for installation on power skirting, etc Supply","No",60]
[]
[null,125,"Install","No",60]
[]
[null,126,"16 Amp dedicated switched socket outlet complete with cover plate for installation on power skirting, etc Supply","No",60]
[]
[null,127,"Install","No",60]
[]
[null,128,"16A single switched dedicated socket outlet flush mounted complete with all accessories. Supply","No",60]
[]
[null,129,"Install","No",60]
[]
[null,130,"5A un-switched socket outlet surface mounted on P2000 complete with all accessories Supply","No",160]
[]
[null,131,"Install","No",160]
[]
[null,132,"16A Pedestrial single switched dedicated socket outlet flush mounted complete with all accessories. Supply","No",1]
[]
[null,133,"Install","No",1]
[]
[null,134,"4 mm sqr PVC insulated conductor Supply","m",6500]
[]
[null,135,"Install","m",6500]
[]
[null,136,"2.5 mm sqr Bare Copper Earth Wire Supply","m",3250]
[]
[null,137,"Install","m",3250]
[]
[null,138,"2.5 mm sqr PVC insulated conductor Supply","m",813]
[]
[null,139,"Install","m",813]
[]
[null,140,"4 mm sqr 5-core PVC/PVC/SWA/PVC Supply","m",null,null,"Rate only"]
[]
[null,141,"Install","m",null,null,"Rate only"]
[]
[null,142,"4 mm sqr Surfix / Norse cable Supply","m",null,null,"Rate only"]
[]
[null,143,"Install","m",null,null,"Rate only"]
[]
[null,144,"100 mm x 100 mm draw box flush mounted complete chased in Supply","No",60]
[]
[null,145,"Install","No",60]
[]
[null,146,"100 mm x 50 mm draw box surface mounted complete installed comptete with all accessories  Supply","No",10]
[]
[null,147,"Install","No",10]
[]
[null,148,"20 mm diameter PVC conduit complete installed with all bends, fixing saddles, adaptors, chased into walls, ect. as specified. Supply","m",3500]
[]
[null,149,"Install","m",3500]
[]
[null,150,"25 mm diameter PVC conduit complete installed with all bends, fixing saddles, adaptors, chased into walls, ect. as specified. Supply","m",1710]
[]
[null,151,"Install","m",1710]
[]
[null,152,"Supply and install three compactment powerskirting  comptete with all accessories Supply","m",100]
[]
[null,153,"Install","m",100]
[]
[null,154,"Supply and install electrical photo cell comptete with all accessories Supply","m",9]
[]
[null,155,"Install","m",9]
[]
[null,null,"LIGHT FITTINGS","H3"]
[]
[null,null,"Luminaries and accessories as specified in the specification","H3"]
[]
[null,null,"Allowance should be made for the following electrical equipment","H3"]
[]
[null,null,"Light fittings as specified in the specification - the light fitting specified must comply to the quality specified in the specification.","H3"]
[]
[null,null,"600V/1000V grade PVC insulated stranded copper conductor drawn in conduit - 2.5 mm sqr PVC conductors and 2.5mm sqr BCEW","H3"]
[]
[null,null,"Draw boxes, conduits equipped with draw wire placed in position for casting into concrete or screed, for building in or chased into concrete or brickwork and for surface mounted in ceiling voids including bending threading, short lengths, draw boxes, couplings, bends, tees and saddles etc as specified:","H3"]
[]
[null,null,"Installed and mounted to round draw boxes in or ceiling voids or roof trusses including all fixing brackets, supports, connectors, connections complete with lamps","H3"]
[]
[null,156,"Type B2 Supply","No",70]
[]
[null,157,"Install","No",70]
[]
[null,158,"Type A Supply","No",60]
[]
[null,159,"Install","No",60]
[]
[null,160,"Type  D Supply","No",50]
[]
[null,161,"Install","No",50]
[]
[null,162,"Type  D1 Supply","No",40]
[]
[null,163,"Install","No",40]
[]
[null,164,"Type  BL Supply","No",30]
[]
[null,165,"Install","No",30]
[]
[null,166,"Type  P Supply","No",40]
[]
[null,167,"Install","No",40]
[]
[null,168,"Type  F2 Supply","No",20]
[]
[null,169,"Install","No",20]
[]
[null,170,"Type  F3 Supply","No",160]
[]
[null,171,"Install","No",160]
[]
[null,172,"Type  H Supply","No",10]
[]
[null,173,"Install","No",10]
[]
[null,174,"Type  EL Supply","No",12]
[]
[null,175,"Install","No",12]
[]
[null,176,"Type  F Supply","No",10]
[]
[null,177,"Install","No",10]
[]
[null,null,"Supply and install motion lighting sensor complete with all accessories ","H3"]
[]
[null,178,"Supply","m",14]
[]
[null,179,"Install","m",14]
[]
[null,180,"Exit light fitting with battery backup Supply","m",8]
[]
[null,181,"Install","m",8]
[]
[null,182,"2.5 mm sqr PVC insulated conductor Supply","m",7500]
[]
[null,183,"Install","m",7500]
[]
[null,184,"2.5 mm sqr Bare Copper Earth Wire Supply","m",3750]
[]
[null,185,"Install","m",3750]
[]
[null,null,"LIGHT SWITCHES","H3"]
[]
[null,null,"Light switches and accessories as specified in the specification","H3"]
[]
[null,null,"Allowance should be made for the following electrical equipment:","H3"]
[]
[null,null,"16 Ampere 250 V grade light switches complete with cover plates, screws etc installed in flush draw box","H3"]
[]
[null,null,"Draw boxes, conduits equipped with draw wire placed in position for casting into concrete or screed, for building in or chased into concrete or brickwork and for surface mounted in ceiling voids included bending threading, jointing, short lengths, draw boxes, couplings, bends, tees and saddles etc as specified:","H3"]
[]
[null,186,"Single lever one way light switch comptete with all accessories                                                                                                                              Supply","No",30]
[]
[null,187,"Install","No",30]
[]
[null,188,"Single lever one way master light switch comptete with all accessories                                                                                                                              Supply","No",2]
[]
[null,189,"Install","No",2]
[]
[null,190,"20 mm diameter PVC conduit complete installed with all bends, fixing saddles, adaptors, chased into walls, ect. as specified. Supply","m",800]
[]
[null,191,"Install","No",800]
[]
[null,192,"Single lever two way light switch comptete with all accessories                                                                                                                              Supply","No",1]
[]
[null,193,"Install","No",1]
[]
[null,null,"ISOLATORS AND POWER OUTLET POINTS","H3"]
[]
[null,null,"Isolators and power outlet points accessories as specified in the specification:","H3"]
[]
[null,null,"Allowance should be made for the following electrical equipment:","H3"]
[]
[null,null,"30 Ampere and 60 Ampere 250 V grade isolators complete with cover plates, screws, etc. installed in flush or surface mounted draw boxes or power skirting.","H3"]
[]
[null,null,"600V/1000V grade PVC insulated stranded copper conductors drawn in conduit - PVC conductor and BCEW - current carrying capacity of conductors to be in accordance with SABS 0124","H3"]
[]
[null,194,"20 Ampere 230 V double pole isolater single phase complete with cover plates installed as specified Supply","No",20]
[]
[null,195,"Install","No",20]
[]
[null,196,"20 Ampere 230 V single pole isolater single phase complete with cover plates installed as specified Supply","No",2]
[]
[null,197,"Install","No",2]
[]
[null,198,"60 Ampere 400 V four pole isolater single phase complete with cover plates installed as specified Supply","No",2]
[]
[null,199,"Install","No",2]
[]
[null,200,"4 mm sqr PVC insulated conductor Supply","m",500]
[]
[null,201,"Install","m",500]
[]
[null,202,"2.5 mm sqr Bare Copper Earth Wire Supply","m",250]
[]
[null,203,"Install","m",250]
[]
[null,204,"4 mm sqr Surfix / Norse cable Supply","m",null,null,"Rate only"]
[]
[null,205,"Install","m",null,null,"Rate only"]
[]
[null,206,"100 mm x 100 mm draw box flush mounted complete chased in Supply","No",24]
[]
[null,207,"Install","No",24]
[]
[null,208,"100 mm x 100 mm draw box surface mounted complete installed Supply","No",12]
[]
[null,209,"Install","No",12]
[]
[null,210,"25 mm diameter PVC conduit complete installed with all bends, fixing saddles, adaptors, chased into walls, ect. as specified. Supply","m",500]
[]
[null,211,"Install","m",500]
[]
[null,null,"WIRE WAYS","H3"]
[]
[null,null,"Conduits, draw boxes  and accessories as specified in the specification","H3"]
[]
[null,null,"Allowance should be made for the following electrical equipment:","H3"]
[]
[null,null,"Draw boxes for electrical, telephone, data, fire detection, air conditioning equipment, etc.","H3"]
[]
[null,null,"Draw boxes, conduits equipped with draw wire placed in position for casting into concrete or screed, for building in or chased into concrete or brickwork and for surface mounted in ceiling voids included bending threading, jointing, short lengths, draw boxes, couplings, bends, tees, and saddles etc as specified:","H3"]
[]
[null,212,"100 mm x 50 mm x 50 mm draw box complete with all accessories Supply","No",14]
[]
[null,213,"Install","No",14]
[]
[null,214,"400 mm x 400 mm x 200 mm Telephone box complete with all accessories Supply","No",1]
[]
[null,215,"Install","No",1]
[]
[null,null,"EARTHING AND BONDING","H3"]
[]
[null,216,"Complete earthing and bonding of all water pipes, waste pipes, trunking, cable ladders, trays, etc","SUM",1]
[]
[null,217,"Earthing and lightning protection system to be tested and upgrade complete as required, etc.","SUM",1]
[]
[null,218,"Clean earth installation for the voice data installation to be tested and upgrade complete as required, etc.","SUM",1]
[]
[null,null,"TESTING AND COMMISSIONING","H3"]
[]
[null,219,"Testing and commissioning of the complete electrical installation","SUM",1]
[]
[null,null,"AS BUILT DRAWINGS","H3"]
[]
[null,220,"Trace the existing installation and compile a complete set of marked upas built drawings to be submitted in the operating and maintenance manuals","SUM",1]
[]
[null,null,"CERTIFICATE OF COMPLIANCE","H3"]
[]
[null,221,"Issuing a certificate of compliance for the complete electrical installation","SUM",1]
[]
[null,null,"CLEAN UP AND RESTORATION OF SITE","H3"]
[]
[null,222,"Clean up and restoration of the site after completion and during con- struction to the satisfaction of the engineer and the client.","SUM",1]
[]
[null,null,"200kVA GENERATOR SERVICES INSTALLATION","H3"]
[]
[null,223,"200kVA Stand by diesel generator set with AMF panela and change over panel , complete with all equipment as specified: Supply","No",1]
[]
[null,224,"Install","No",1]
[]
[null,225,"Air-inlet and outlet louvers: Supply","No",1]
[]
[null,226,"Install","No",1]
[]
[null,227,"Sound Attenuation, air inlet sound attenuator                                                                       Supply","No",1]
[]
[null,228,"Air outlet sound attenuator: Supply ","No",1]
[]
[null,229,"Installation","No",1]
[]
[null,230,"Sound proof Doors: Supply","No",1]
[]
[null,231,"Install","No",1]
[]
[null,232,"Mild steel residential exhaust wit exhaust lagged inside the enlosure Supply","No",1]
[]
[null,233,"Install","No",1]
[]
[null,234,"fire valve shut-off kit Supply","No",1]
[]
[null,235,"Install","No",1]
[]
[null,236,"Compilation of Operation and Maintenance Manuals: Supply","No",3]
[]
[null,237,"Certificate of compliance Supply","No",1]
[]
[null,238,"Testing, inspection and Commisioning","SUM",1]
[]
[null,null,"Provisional Sums ","H3"]
[]
[null,null," lightning protection and earthing ","H3"]
[]
[null,239,"Design, Supply and installed of lightning protection by specialist ","SUM",1]
[]
[null,240,"Profit","%IT"]
[]
[null,241,"Attendance","%IT"]
[]
[null,null,"Connection Fee","H3"]
[]
[null,242,"Application of connection from Eskom ","SUM",1]
[]
[null,243,"Profit","%IT"]
[]
[null,244,"Attendance","%IT"]
[]
[null,null,"Solar installation ","H3"]
[]
[null,245,"Application of connection from Eskom ","SUM",1]
[]
[null,246,"Profit","%IT"]
[]
[null,247,"Attendance","%IT"]
[]
[null,null,"Carried forward to summary of section",{"$nulls":3},{"$f":"SUM(G4356:G5007)","v":0}]
[]
[null,null,"SECTION NO. 5","H1"]
[]
[null,null,"BILL NO. 2","H1"]
[]
[null,null,"SMOKE DETECTION INSTALLATION ","H1"]
[]
[null,null,"PRELIMINARIES","H2"]
[]
[null,null,"Note: Allowance for measure ments to be taken on site before material is ordered. The contractor will not order of the bill of quantities but measure on site before ordering and order according to measurements on site.","H3"]
[]
[null,1,"COMPLIANCE WITH CONDITIONS Nett price for compliance with the Conditions of Contract, the Special Conditions of Contract, and various specifications, which costs are not specifically covered elsewhere or by unit rates ","SUM",1]
[]
[null,2,"SITE ESTABLISHMENT Allow for the electrical site establishment, all associated services and for storage of plant, materials and equipment including protection thereof","SUM",1]
[]
[null,3,"TRANSPORT Provide and arrange for transport and off loading of all electrical material and equipment to site as  well as workmen and staff","SUM",1]
[]
[null,4,"COMMISSIONING AND TESTING Supply all test equipment and labour for testing, commissioning and adjustment for all the sections of the installation.","SUM",1]
[]
[null,5,"DRAWINGS Making reference, to other relevant drawings e.g Civil, Structural, Architectural, existing services etc.","SUM",1]
[]
[null,6,"AS BUILT DRAWINGS Compilation of as built drawings for the complete electrical installation","SUM",1]
[]
[null,7,"EXTRACTS FROM THE PRINCIPAL CONTRACT Allowance for any costs associated with the requirements of the Principal Contract preliminaries which may affect the selected sub contract.","SUM",1]
[]
[null,8,"MAINTENANCE Allow for a maintenance period of 3 months defects in equipment, material and workmanship but wear and tear and normal maintenance excluded","SUM",1]
[]
[null,9,"GUARANTEE PERIOD Allow for a 12 months guarantee period on all the electrical and electronic equipment but items such as lamps excluded","SUM",1]
[]
[null,10,"ALLOW FOR THE FOLLOWING ADDITIONAL ITEMS: Ablution facilities","SUM",1]
[]
[null,11,"Water & electrical connections","SUM",1]
[]
[null,12,"Any time related items","SUM",1]
[]
[null,13,"Training of local residents re: the installation of cables, conduits, etc.","SUM",1]
[]
[null,null,"OTHER NECESSARY WORKS All other works necessary to complete the installation in a satisfactory manner, and in accordance with the drawings, specification, SABS Code of Practice, the Local Authorities requirements, and to the Engineers  satisfaction to include for items specified or shown but not itemised in this bill.","H3"]
[]
[null,14,"Quality & Scope of Work, Specification and design change ","Item","1.00"]
[]
[null,15,"Contract Requirements","Item","1.00"]
[]
[null,16,"Company Head Office overhead costs","Item","1.00"]
[]
[null,17,"Compliance with OHS Regulations (latest version)","Item","1.00"]
[]
[null,null,"FIRE DETECTION INSTALLATION ","H2"]
[]
[null,null,"Complete installation: Reticulation for fire detection ","H3"]
[]
[null,null,"NOTE: Tenderers are advised to study the specification before pricing the bill.","H3"]
[]
[null,null,"Design, supply, delivery, installation and commissioning of the complete fire detection installation according to the relevant SABS specifications and as specified:","H3"]
[]
[null,18,"Addressable fire detection panel complete with power supply, battery charger, battery backup , 2 loops, switching/ mini switching monitor units, sounder control loop, loop powder sounder, software, panels, keyboards,etc as specified Supply","No",4]
[]
[null,19,"Install","No",4]
[]
[null,20,"Optical detector complete with baseplate as specified fixed to suspended ceiling tiles, fixed boarding, concrete slab soffit, forming a hole through the ceiling tiles or boarding for wiring etc Supply","No",92]
[]
[null,21,"Install","No",92]
[]
[null,22,"Heat detector complete with baseplate as specified fixed to suspended ceiling tiles, fixed boarding, concrete slab soffit, forming a hole through the ceiling tiles or boarding for wiring etc Supply","No",12]
[]
[null,23,"Install","No",12]
[]
[null,24,"Red breakglass unit complete as specified fixed to drawbox provided in brick walls etc Supply","No",4]
[]
[null,25,"Install","No",4]
[]
[null,26,"Green breakglass unit complete as specified fixed to drawbox provided in brick walls etc Supply","No",null,null,"Rate only"]
[]
[null,27,"Install","No",null,null,"Rate only"]
[]
[null,28,"Fire alarm sounders as specified fixed to suspened ceiling tiles, fixed boarding, concrete slab soffit, forming a hole through the ceiling tiles or boarding for wiring etc Supply","No",20]
[]
[null,29,"Install","No",20]
[]
[null,30,"Fire shutdown relays complete with contacts as specified for AC units and extract fans Supply","No",12]
[]
[null,31,"Install","No",12]
[]
[null,32,"Lightning and surge protecting installation for the complete system in all zones Supply","No",8]
[]
[null,33,"Install","No",8]
[]
[null,34,"Fire strobe light and alarm as  specified fixed to suspened ceiling tiles, fixed boarding, concrete slab soffit, forming a hole through the ceiling tiles or boarding for wiring etc Supply","No",null,null,"Rate only"]
[]
[null,35,"Install","No",null,null,"Rate only"]
[]
[null,36,"Fire retarded cable complete with all required fittings and accessories, teminations, lugs, etc Supply","m",3000]
[]
[null,37,"Install","m",3000]
[]
[null,38,"Allowance for any items required for the operation of the complete system but not listed above","Item","1.00"]
[]
[null,39,"Complete system engineering testing and commissioning","Item","1.00"]
[]
[null,40,"Communication LINK cable between the panels distance 100 meters","Item","1.00"]
[]
[null,41,"Provision of a complete detailed list of material offered submitted with the tender","Item","1.00"]
[]
[null,42,"Fire door holding magnets complete supplied and installed Supply","No",20]
[]
[null,43,"Install","No",20]
[]
[null,44,"25 mm diameter steel conduit Supply","m",800]
[]
[null,45,"Install","m",800]
[]
[null,46,"60 mm round drawboxes Supply","No",104]
[]
[null,47,"Install","No",104]
[]
[null,48,"50 mm x 100 mm drawboxes Supply","No",20]
[]
[null,49,"Install","No",20]
[]
[null,50,"42 mm x 42 mm galvanised steel wire trunking Supply","m",200]
[]
[null,51,"Install","m",200]
[]
[null,52,"25 mm diameter flexible conduit links from wire way to detector poitions complete with round draw box at one end and around cover plate equipped with an adapter on the other end for connection of the flexible conduit and connection to the wire way Supply","m",104]
[]
[null,53,"Install","m",104]
[]
[null,null,"QUEUE MANAGEMENT SYSTEM - Casualty ","H2"]
[]
[null,null,"Complete installation: Queue Management System","H3"]
[]
[null,null,"NOTE: Tenderers are advised to study the specification before pricing the bill","H3"]
[]
[null,null,"Design, supply, delivery, installation and commissioning of the complete Queue Management systems according to the relevantspecifications and as specified:","H3"]
[]
[null,null,"Floor Standing Ticket Kiosk With 10\" Touched Screen supplied, installed and commissioned as specified","H3"]
[]
[null,54,"Supply","Item","1.00"]
[]
[null,55,"Install","Item","1.00"]
[]
[null,null,"Queue display 40\" Screen TV queues on the left, with Reserved area for advertising and ticket calling is displayed above the advertising area supplied, installed and commissioned as specified","H3"]
[]
[null,56,"Supply ","Item","1.00"]
[]
[null,57,"Install","Item","1.00"]
[]
[null,null,"Software Call Pad, Runs on existing IT Infrastructure, Preforms same advanced functions as the queue Management keypad, Display additional information supplied, installed and commissioned as specified","H3"]
[]
[null,58,"Supply ","No",7]
[]
[null,59,"Install","No",7]
[]
[null,60,"Three (3) sets of Complete Operating and Maintenance manual for the system as specified","No",1]
[]
[null,61,"Three (3) sets of Complete As built drawings for the complete system as specified","No",1]
[]
[null,62,"Allowance for any items required for the complete system operation but not listed above as per the specification required attach a list of equipment shall be submitted if this item is priced ","Sets","1.0"]
[]
[null,63,"Complete training course for operators, the tendered shall submit full details of the proposed training course for approval by the Client ","Sets","1.0"]
[]
[null,64,"Provision of electronic services","Item","1.00"]
[]
[null,null,"Carried forward to summary of section",{"$nulls":3},{"$f":"SUM(G5011:G5171)","v":0}]
[]
[null,null,"SECTION NO. 5","H1"]
[]
[null,null,"BILL NO. 3","H1"]
[]
[null,null,"ITC SYSTEMS","H2"]
[]
[null,null,"Note: Allowance for measure to be taken on site before material is ordered. The contractor will not order of the bill of quantities but measure on site before ordering and order according to measurements on site.","H3"]
[]
[null,1,"COMPLIANCE WITH CONDITIONS Nett price for compliance with the Conditions of Contract, the Special Conditions of Contract, and various specifications, which costs are not specifically covered elsewhere or by unit rates","SUM",1]
[]
[null,2,"SITE ESTABLISHMENT Allow for the electrical site establishment, all associated services and for storage of plant, materials and equipment including protection thereof","SUM",1]
[]
[null,3,"TRANSPORT Provide and arrange for transport and off loading of all electrical material and equipment to site as well as workmen and staff","SUM",1]
[]
[null,4,"COMMISSIONING AND TESTING Supply all test equipment and labour for testing, commissioning and adjustment for all the sections of the installation.","SUM",1]
[]
[null,5,"DRAWINGS Making reference, to other relevant drawings e.g Civil, Structural, Architectural, existing services etc.","SUM",1]
[]
[null,6,"AS BUILT DRAWINGS Compilation of as built drawings for the complete electrical installation","SUM",1]
[]
[null,7,"EXTRACTS FROM THE PRINCIPAL CONTRACT Allowance for any costs associated with the requirements fo the Principal Contract preliminaries which may affect the selected sub contract.","SUM",1]
[]
[null,8,"MAINTENANCE Allow for a maintenance period of 3 months defects in equipment, material and workmanship but wear and tear and normal maintenance excluded","SUM",1]
[]
[null,9,"GUARANTEE PERIOD Allow for a 12 months guarantee period on all the electrical and electronic equipment but items such as lamps excluded","SUM",1]
[]
[null,10,"ALLOW FOR THE FOLLOWING ADDITIONAL ITEMS: Ablution facilities","SUM",1]
[]
[null,11,"Water & Electrical connections","SUM",1]
[]
[null,12,"Any time related items","SUM",1]
[]
[null,13,"Training of local residents re: the installation of cables, conduits, etc.","SUM",1]
[]
[null,null,"STRIPPING EXISTING INSTALLATION Allow a sum amount for the stripping fo the electrical installation, liaison with the Client, handing over of all equipment to the Client, arranging for switching off of power supplies and make save of outlet points, etc","H3"]
[]
[null,null,"OTHER NECESSARY WORKSAll other works necessary to complete the installation in a satisfactory manner, and in accordance with the drawings, specification, SABS Code of Practice, the Local Authorities requirements, and to the Engineerssatisfaction to include for items specified or swhon but not itemised in this bill.","H3"]
[]
[null,14,"Quality & Scope of Work, Spefication and design change","Item","1.00"]
[]
[null,15,"Contract Requirements","Item","1.00"]
[]
[null,16,"Company Head Office overhead costs","Item","1.00"]
[]
[null,17,"Compliance with OHS Regulations (latest version)","Item","1.00"]
[]
[null,18,"Programming and phasing of work on a live site","Item","1.00"]
[]
[null,null,"Complete installation: Access Control System","H3"]
[]
[null,null,"NOTE: Tenderers are advised to study the specification before pricing the bill","H3"]
[]
[null,null,"ACCESS CONTROL SYSTEM","H2"]
[]
[null,null,"Design, supply, delivery, installation and commissioning of the complete Access Control System according to the relevant SABSspecifications and as specified:","H3"]
[]
[null,19,"Controllers complete supplied, installed, commissioned with battery back up and required operating software as specified Supply","Item","10.00"]
[]
[null,20,"Install","Item","10.00"]
[]
[null,21,"Maglock Door Locks complete with door monitor contacts brackets supplied, installed and commissioned as specified Supply ","Item","20.00"]
[]
[null,22,"Install","Item","20.00"]
[]
[null,23,"Biometric Fingerprint complete supplied, installed, commissioned with battery supplied, installed and commissioned as specified Supply ","No",10]
[]
[null,24,"Install","No",10]
[]
[null,25,"Outside IP65 Biometric Fingerprint complete supplied, installed,commissioned with battery supplied, installed and commissioned as specifiedSupply","No",10]
[]
[null,26,"Install","No",10]
[]
[null,27,"Cat 5 Cable comple supplied and installed as specified for the net- working of the controllers to the system computer Supply","m",400]
[]
[null,28,"Install","m",400]
[]
[null,29,"One to One Intercom system complete supplied, installed and commissioned as specified Supply","No",2]
[]
[null,30,"Install","No",2]
[]
[null,31,"Cabling for the connection of the card readers, maglocks to the con- trollers complete supplied and installed in conduits as specified Supply","m",400]
[]
[null,32,"Install","m",400]
[]
[null,33,"Green Break Glass units complete supplied and installed as speci- fied in the specification Supply","No",8]
[]
[null,34,"Install","No",8]
[]
[null,35,"Server Computer and Operator Station complete supplied, installed and commissioned as specified Supply","Item","1.00"]
[]
[null,36,"Install","Item","1.00"]
[]
[null,37,"System Operating Software complete supplied, installed and com- missioned as required for the operation of the system as specified Supply","Item","1.00"]
[]
[null,38,"Install","Item","1.00"]
[]
[null,39,"Complete System Engineering, testing commissioning for the complete system as required for the operation of the system as specified","Item","1.00"]
[]
[null,40,"Six (6) sets of Complete Operating and Maintenance manual for the system as specified","Sets","6.0"]
[]
[null,41,"Six (6) sets of Complete As built drawings for the complete system as specification","Sets","6.0"]
[]
[null,42,"Allowance for any items required for the complete system operation but not listed above as per the specification required attach a list of equipment shall be submitted if this item is priced Supply","SUM",1]
[]
[null,43,"Install","SUM",1]
[]
[null,44,"1 x IXP400 System Controller","Item","1.00"]
[]
[null,45,"1 x Impronet Engine","Item","1.00"]
[]
[null,46,"7 x TP Link Web Managed 24 Port 10/100/1000 Gigabit Switch","Item","7.00"]
[]
[null,47,"14 x 1000Mbps SFP module","Item","14.00"]
[]
[null,48,"Complete training course for operators, the tendered shall submit full details of the proposed training course for approval by the Client","Item","1.00"]
[]
[null,null,"Complete installation: CCTV Camera System","H3"]
[]
[null,null,"NOTE: Tenderers are advised to study the specification before pricing the bill.","H3"]
[]
[null,null,"CCTV CAMERA SYSTEM INSTALLATION","H2"]
[]
[null,null,"Design, supply, delivery, installation and commisioning of the complete CCTV Camera System installation according to the relevantSABS specifcations and as specified:","H3"]
[]
[null,49,"16 Channel Digital Video Recorder complete supplied installed and commissioned as specified with complete set of operating software Supply","No",3]
[]
[null,50,"Install","No",3]
[]
[null,51,"24\" LCD Colour Monitors complete supplied installed and commissioned as specified with complete set of operating software Supply","No",5]
[]
[null,52,"Install","No",5]
[]
[null,53,"3 Megapixel Real-time 360 ˚indoor Dome Network Camera vandal proof camera complete supplied, installed and commissioned as specified for the complete system Supply","No",15]
[]
[null,54,"Install","No",15]
[]
[null,55,"3 Megapixel Day & Night Indoor Dome Network Camera complete supplied installed, and commissioned as specified for the complete system Supply","No",20]
[]
[null,56,"Install  ","No",20]
[]
[null,57,"24 V ac 1Amp Camera Power Supplies according to the camera suppliers / manufacturers specifications complete supplied installed and commissioned a specified Supply ","No",30]
[]
[null,58,"Install","No",30]
[]
[null,59,"Medium Outdoor Aluminum Camera housing Beige IP 65 complete supplied installed and commissioned as specified Supply ","No",10]
[]
[null,60,"Install","No",10]
[]
[null,61,"Indoor / Outdoor Fixing Brackets Beige Wall Mounted for the cameras complete supplied and installed with the cameras Supply ","No",20]
[]
[null,62,"Install","No",20]
[]
[null,63,"Pin Hole Colour/Mono Super High Resolution Cameras complete supplied installed and commisioned as specified for the complete system Supply","No",2]
[]
[null,64,"Install ","No",2]
[]
[null,65,"24 V ac 1Amp Camera Power Supplies according to the camera suppliers / manufacturers specifications complete supplied installed and commissioned a specified Supply ","No",2]
[]
[null,66,"Install","No",2]
[]
[null,67,"Pin Hole Camera housing IP 65 complete supplied installed and commissioned as specified Supply ","No",2]
[]
[null,68,"Install","No",2]
[]
[null,69,"Fixing Brackets Beige Wall/ceiling Mounted for the pin hole cameras complete supplied and installed with the cameras Supply ","No",2]
[]
[null,70,"Install","No",2]
[]
[null,71,"Fibre Optic Video Signal cabling complete supplied and installed Supply ","m",1000]
[]
[null,72,"Install","m",1000]
[]
[null,73,"Fibre Optic TX RX for CCTV Video Signal cabling connections to equipment complete supplied and installedSupply ","No",null,null,"Rate only"]
[]
[null,74,"Install","No",null,null,"Rate only"]
[]
[null,75,"Fibre Optic Cable Splicing complete supplied and installed Supply ","No",32]
[]
[null,76,"Install","No",32]
[]
[null,77,"40\" LED Colour Monitors complete supplied installed and commissioned as specified  with complete set of operating software                             Supply","No",2]
[]
[null,78,"Install","No",2]
[]
[null,79,"RG 59 communication Cable with BNC Connectors Supply ","m",null,null,"Rate only"]
[]
[null,80,"Install","m",null,null,"Rate only"]
[]
[null,81,"16 Way video surge suppresion unit, rack mounted Supply ","No",null,null,"Rate only"]
[]
[null,82,"Install","No",null,null,"Rate only"]
[]
[null,83,"Matrix switcher complete with key board and joy stick Supply ","No",null,null,"Rate only"]
[]
[null,84,"Install","No",null,null,"Rate only"]
[]
[null,85,"Wiring of a Matrix swticher with RG 17 cable complete Supply","No",null,null,"Rate only"]
[]
[null,86,"Install","No",null,null,"Rate only"]
[]
[null,87,"19\" 32U Floor Standing Rack Supply ","No",1]
[]
[null,88,"Install","No",1]
[]
[null,89,"Allowance for any items required for the complete system but not listed above the tenderer shall submit a detail itemised list if this item is priced","Item","1.00"]
[]
[null,90,"Complete system engineering testing and commisioning","Item","1.00"]
[]
[null,91,"Remote viewing station","Item","1.00"]
[]
[null,92,"Six Sets of maintenance and operating manuals","Sets","6.0"]
[]
[null,93,"As Built drawings of the complete system installation","Sets","6.0"]
[]
[null,94,"Complete training course for operators - submit full details","Item","1.00"]
[]
[null,95,"Provision of a complete detailed itemised list of material offered must","Item","1.00"]
[]
[null,null,"ITC INSTALLATION","H2"]
[]
[null,96,"ITC Installation Meganet CAT6 Network Infrastructure MegaNet CAT6 premise cable","No",2500]
[]
[null,97,"MegaNet 25 x 50 Outlets CAT5e","No",40]
[]
[null,98,"MegaNet 50 x 50 Collar","No",40]
[]
[null,99,"MegaNet 25x50 blank","No",40]
[]
[null,100,"MegaNet CAT6 1meter data patch lead with labels","No",40]
[]
[null,101,"MegaNet CAT6 3,0m data patch lead with labels","No",40]
[]
[null,102,"Accessories and fixing kits","No",40]
[]
[null,103,"Installation, termination and testing","No",1]
[]
[null,104,"MegaNet CAT6 24Way Patch panel MegaNet CAT6 24Way Patch panel","No",2]
[]
[null,105,"1U Brush panel","No",5]
[]
[null,106,"4Core HDD Multimode Fibre Infrastructure 4Core HDD Multimode Fibre cable","No",100]
[]
[null,107,"24Port LC Fibre Patch Panel ","No",2]
[]
[null,108,"Entry glad","No",1]
[]
[null,109,"Fibre management kit","No",1]
[]
[null,110,"LC Multimode Midcoupler","No",4]
[]
[null,111,"LC Multimode Unjacketed pigtails","No",8]
[]
[null,112,"2meter LC/LC duplex OM3 patch leads","No",4]
[]
[null,113,"Accessories and Fixing kits","No",1]
[]
[null,114,"Multimode Splicing and OTDR Test ","No",8]
[]
[null,115,"Installation","No",1]
[]
[null,116,"12U Swingframe Network Cabinet 12U Swingframe Network Cabinet","No",1]
[]
[null,117,"Single Fan unit","No",1]
[]
[null,118,"5Way Power Duct Low cost PVC","No",1]
[]
[null,119,"Installation","No",1]
[]
[null,120,"PoE TP Link Web Managed Network Switch PoE TP Link Web Managed 48 Port 10/100/1000 Gigabit Switch","No",1]
[]
[null,121,"1000Mbps SFP module","No",2]
[]
[null,122,"Rubytech 24Port Fibre SFP L 2 Plus Managed Gigabit Switch","No",2]
[]
[null,123,"1000Mbps SFP module","No",6]
[]
[null,null,"Supply and Install 30kVA UPS with 2 hour battery backup Complete with all accessories including the isolator and the breaker","H3"]
[]
[null,124,"PYRAMID DSP 60KVA UPS","No",1]
[]
[null,125,"BC 60 BATTERY CABINET","No",1]
[]
[null,126,"100A/H BATTERY DEEP CYCLE","No",62]
[]
[null,127,"BATTERY LINKS","No",1]
[]
[null,128,"DELIVERY & COMM","No",1]
[]
[null,null,"Carried forward to summary of section",{"$nulls":3},{"$f":"SUM(G5177:G5461)","v":0}]
[]
[null,1,"Electrical work","Page",174,0,{"$f":"G5009","v":0}]
[]
[null,2,"Smoke detection","Page",180,0,{"$f":"G5173","v":0}]
[]
[null,3,"ITC","Page",190,0,{"$f":"G5463","v":0}]
[]
[null,null,"SECTION SUMMARY - ELECTRICAL WORK",{"$nulls":3},{"$f":"SUM(G5465:G5469)","v":0}]
[]
[null,1,"PRELIMINARIES","Page",null,0,{"$f":"G781","v":0}]
[]
[null,2,"BUILDING WORKS","Page",null,0,{"$f":"G2404","v":0}]
[]
[null,3,"EXTERNAL WORK","Page",null,0,{"$f":"G3189","v":0}]
[]
[null,4,"MECHANICAL WORK","Page",null,0,{"$f":"G4353","v":0}]
[]
[null,5,"ELECTRICAL WORK","Page",null,0,{"$f":"G5471","v":0}]
[]
[null,null,"Subtotal","ST",null,null,{"$f":"SUM(G5473:G5482)","v":0}]
[]
[null,null,"ADD: Value added Tax at 15%","TAX","15.00",null,{"$f":"G5483*15%","v":0}]
[]
[null,null,"TENDER AMOUNT",{"$nulls":3},{"$f":"SUM(G5483:G5486)","v":0}]